Workbook

Sheet Batch_Input (hidden)
D2: Regeneration Forecast
D3: Foothills Reforestation Interactive Planning System
B5: INPUT PARAMETERS
B7: Stand identifier | G7: =StandId -> Stand3
B8: Natural sub-region | G8: =IF(NSR=1,"Lower Foothills","Upper Foothills") -> Lower Foothills
B9: Soil nutrient class | G9: =IF(Nutrient=1,"Rich",IF(Nutrient=2,"Medium","Poor")) -> Poor
B10: Soil moisture class | G10: =IF(Moisture=1,"Dry/Mesic",IF(Moisture=2,"Moist","Undefined")) -> Dry/Mesic
B11: Timber year of cut | G11: =HYear -> 1997
B12: Site preparation method | G12: =IF(MSPrep=1,"None",IF(MSPrep=2,"Drag","Mound")) -> None
B13: Reporting age (12-14 years) | G13: =YSHpa -> 13
B14: Planted trees per ha | G14: =PSph-1 -> 0
B15: Planting year | G15: =IF(G14=0,"Never",PYear) -> Never
B16: Plant early? | G16: =IF(PSeason=TRUE,"Yes","No") -> No
B17: Weed? | G17: =IF(Weed=TRUE,"Yes","No") -> Yes
B18: Climatic Risk | G18: =IF(Risk=1,"High",IF(Risk=2,"Low","Undefined")) -> Low
B19: Establishment survey? | G19: =IF(ES=TRUE,"Yes","No") -> Yes
B20: Establishment survey year | G20: =IF(ES=TRUE,ESYear,"Not applicable") -> 2003
B21: Under-height pine included? | G21: =IF(ES=TRUE,IF(ESUh=TRUE,"Yes","No"),"Not applicable") -> Yes
B22: % stocked at survey for pine | G22: =IF(ES=TRUE,ESPctPl-1,"Not applicable") -> 83
B23: % stocked at survey for hardwood | G23: =IF(ES=TRUE,ESPctHw-1,"Not applicable") -> 38
B24: Planting year warning | G24: =Input!H24 -> OK
B25: # of G.S. to performance assessment | G25: =Input!G25 -> 
B26: Years to establishment survey | G26: =IF(ES=TRUE,Input!G26,"Not applicable") -> 6
B27: Under-height warning | G27: =Input!H27 -> OK
B28: Site preparation warning | G28: =Input!H28 -> Site preparation method may not be applicable to soil nutrient class
B30: ="Date of Printing: " & TEXT(NOW(),"YYYY-MM-DD") -> Date of Printing: 2020-03-05

Sheet Input
D2: FRIPSY
D3: Foothills Reforestation Interactive Planning System
B5: Stand Identifier | E5: Natural Sub-Region | H5: Soil Nutrient Class | K5: Soil Moisture Class
B6: Stand3
B8: Harvest and Site Preparation | F8: Planting and Tending | J8: Establishment Survey
B15: Performance Reporting
AR18: 0
H19: 0 | K19: 83 | M19: 38
D20: ='Input Ranges'!B9 -> 2010
B23: Input Validation
G24: ='Input Ranges'!B10 -> Never | H24: =IF(AND(PYear<HYear,PSph-1>0),PYearInvalid,"OK") -> OK
G25: =IF(Names!E14>0,Stocking!I14," ") ->  | H25: =IF(Names!E14>0,IF(G25>13,GSSPinvalid,IF(G25<9,GSSPinvalid,"OK")),"Not applicable") -> Not applicable
G26: =IF(ES=TRUE,ESYear-HYear," ") -> 6 | H26: =IF(ES=TRUE,IF(G26>8,ESYearInvalid,IF(G26<5,ESYearInvalid,"OK")),"Not applicable") -> OK
G27: ='Input Ranges'!B15 -> Yes | H27: =IF(ES=TRUE, IF(ESUh=TRUE,"OK",UhInclude),"Not applicable") -> OK
G28: =IF(MSPrep=1,"None",IF(MSPrep=2,"Drag","Mound")) -> None | H28: =IF(Output!B50=TRUE,SiteWarning,"OK") -> Site preparation method may not be applicable to soil nutrient class

Sheet Names (hidden)
A1: Title | B1: Sub-title | C1: Name | D1: Value | E1: Transformation
A2: Stand Identifier | C2: StandId | D2: =Input!B6 -> Stand3
A3: Natural Sub-region | C3: NSR | D3: 1
A4: Soil Nutrient Class | C4: Nutrient | D4: 3
A5: Soil Moisture Class | C5: Moisture | D5: 1
A6: Harvest year | C6: HYear | D6: 1997
A7: Mechanical site preparation | C7: MSPrep | D7: 1
A8: Cones per square metre | C8: Cones | D8: 1 | E8: =Cones-1 -> 0
A9: Warning | B9: Cones | C9: ConeWarning | D9: Too low for reliable prediction of ingress
A10: Planted? | C10: Plant | D10: FALSE
A11: Planting year | C11: PYear | D11: 1999
A12: Planting season | C12: PSeason | D12: FALSE
A13: Warning | C13: GSSPinvalid | D13: Invalid: planting too early or too late for projection
A14: Planted stems per ha | C14: PSph | D14: 1 | E14: =PSph-1 -> 0
A15: Weeded? | C15: Weed | D15: TRUE
A16: Establishment surveyed? | C16: ES | D16: TRUE
A17: Establishment survey year | C17: ESYear | D17: 2003
A18: Warning | B18: Est survey year | C18: ESYearInvalid | D18: Invalid: outside interval permitted for establishment survey
A19: Establishment survey percent stocking - pine | C19: ESPctPl | D19: 84 | E19: =ESPctPl-1 -> 83
A20: Underheight included in establishment survey | C20: ESUh | D20: TRUE
A21: Warning | B21: Under-height | C21: UhInclude | D21: Exclusion of u/h may result in under-projection of stocking
A22: Establishment survey percent stocking - hardwoods | C22: ESPctHw | D22: 39 | E22: =ESPctHw-1 -> 38
A23: Years since harvest at performance assessment | C23: YSHpa | D23: 13
A25: Ingress stocking probability index (SPIN) | B25: Intercept | C25: SPIa | D25: 6.28723371 | E25: Replaced
A26: Ingress stocking probability index (SPIN) | B26: SitePrepGroup[1] | C26: SPIb | D26: 0.34579138 | E26: Replaced
A27: Ingress stocking probability index (SPIN) | B27: SitePrepGroup[2] | C27: SPIc | D27: -0.9509912 | E27: Replaced
A28: Ingress stocking probability index (SPIN) | B28: Moisture2014Broad[DryMesic] | C28: SPId | D28: -0.330635 | E28: Replaced
A29: Ingress stocking probability index (SPIN) | B29: LnYSD | C29: SPIe | D29: -2.9899809 | E29: Replaced
A30: Ingress stocking probability index (SPIN) | B30: LnCones | C30: SPIf | D30: -0.7446678 | E30: Replaced
A33: Stocking probability at YSH 10 (GS9) | B33: Intercept | C33: SP10a | D33: 0.1252261 | E33: Replaced
A34: Stocking probability at YSH 10 (GS9) | B34: SPI | C34: SP10b | D34: 0.8876074 | E34: Replaced
A35: Stocking probability at YSH 10 (GS9) - 30 cm min ht | B35: Intercept | C35: SP10_30a | D35: 0.0608651 | E35: Replaced
A36: Stocking probability at YSH 10 (GS9) - 30 cm min ht | B36: SPI | C36: SP10_30b | D36: 0.9272107 | E36: Replaced
A38: Stocking probability at YSH 12 (GS11) | B38: Intercept | C38: SP12a | D38: 0.1239945 | E38: Replaced
A39: Stocking probability at YSH 12 (GS11) | B39: SPI | C39: SP12b | D39: 0.8935963 | E39: Replaced
A40: Stocking probability at YSH 12 (GS11) - 30 cm min ht | B40: Intercept | C40: SP12_30a | D40: 0.0706379 | E40: Replaced
A41: Stocking probability at YSH 12 (GS11) - 30cm min ht | B41: SPI | C41: SP12_30b | D41: 0.9383391 | E41: Replaced
A43: SPI from stocking yr 8 measured at 30cm | B43: Intercept | C43: SPI_From8_30a | D43: 0.152418 | E43: Replaced
A44: SPI from stocking yr 8 measured at 30cm | B44: SPI8_30 | C44: SPI_From8_30b | D44: 0.8740123 | E44: Replaced
A46: Mean annual mortality % of planted stock | B46: High | C46: PctM_H | D46: 4.3107298 | E46: Replaced
A47: Mean annual mortality % of planted stock | B47: Moderate | C47: PctM_M | D47: 1.7052413 | E47: Replaced
A48: Mean annual mortality % of planted stock | B48: Low | C48: PctM_L | D48: 1.202077582 | E48: Replaced
A50: Stocking probability - planted stock | B50: Intercept | C50: SPPa | D50: 2.86145373
A51: Stocking probability - planted stock | B51: SqrtN | C51: SPPb | D51: -0.1306714
A52: Stocking probability - planted stock | B52: Reduction constant | C52: SPPc | E52: Not used | F52: 0.076
A54: Deciduous stocking index (DSI) - non-weeded | B54: Intercept | C54: DSIa | D54: 1.227959
A55: Deciduous stocking index (DSI) - non-weeded | B55: NSR[LF] | C55: DSIb | D55: -0.9349417
A56: Deciduous stocking index (DSI) - non-weeded | B56: Nutrient[1] | C56: DSIc | D56: -2.3091377
A57: Deciduous stocking index (DSI) - non-weeded | B57: Nutrient[2] | C57: DSId | D57: -0.0879442
A60: Weibull parameters for trees per plot - LnB | B60: Intercept | C60: LnBa | D60: -0.458116 | E60: Replaced
A61: Weibull parameters for trees per plot - LnB | B61: Nutrient[1] | C61: LnBb | D61: -0.23937 | E61: Replaced
A62: Weibull parameters for trees per plot - LnB | B62: Nutrient[2] | C62: LnBc | D62: 0.1726513 | E62: Replaced
A63: Weibull parameters for trees per plot - LnB | B63: Moisture2[MesicDry] | C63: LnBd | D63: 0.1306693 | E63: Replaced
A64: Weibull parameters for trees per plot - LnB | B64: PSI | C64: LnBe | D64: 3.4354931 | E64: Replaced
A65: Weibull parameters for trees per plot - LnB | B65: PSI2 | C65: LnBf | D65: 3.7601703 | E65: Replaced
A66: Weibull parameters for trees per plot - LnB | B66: PlantedTph | C66: LnBg | D66: -5.1e-05 | E66: Replaced
A67: Weibull parameters for trees per plot - LnB | B67: Poly Centering Factor | C67: LnBh | D67: 0.781631 | E67: Replaced
A69: Weibull parameters for trees per plot - LnC | B69: Intercept | C69: LnCa | D69: -0.391492 | E69: Replaced
A70: Weibull parameters for trees per plot - LnC | B70: PSI | C70: LnCb | D70: 0.7847934 | E70: Replaced
A71: Weibull parameters for trees per plot - LnC | B71: PSI2 | C71: LnCc | D71: 1.438892 | E71: Replaced
A72: Weibull parameters for trees per plot - LnC | B72: Poly Centering Factor | C72: LnCd | D72: 0.78773 | E72: Replaced
A74: Weibull parameters for GLD natural-Bnd GS11 | B74: Intercept | C74: Bnd11a | D74: 5.6972106 | E74: Replaced
B75: Nutrient[1] | C75: Bnd11b | D75: 0.833735 | E75: Replaced
B76: Nutrient[2] | C76: Bnd11c | D76: 0.311083 | E76: Replaced
B77: DecidP_GE130Yr8 | C77: Bnd11d | D77: -3.967606 | E77: Replaced
A78: Weibull parameters for GLD natural-Cnd GS11 | B78: Intercept | C78: Cnd11a | D78: 2.7603488 | E78: Replaced
B79: Nutrient[1] | C79: Cnd11b | D79: -0.204355 | E79: Replaced
B80: Nutrient[2] | C80: Cnd11c | D80: 0.2542087 | E80: Replaced
B81: DecidP_GE130Yr8 | C81: Cnd11d | D81: -1.06604 | E81: Replaced
A83: Weibull parameters for GLD planted-Bpd GS9 | B83: Intercept | C83: Bpd9a | D83: 7.9755978 | E83: Replaced
B84: Nutrient[1] | C84: Bpd9b | D84: 1.6400996 | E84: Replaced
B85: Nutrient[2] | C85: Bpd9c | D85: -0.256265 | E85: Replaced
B86: PlantedTph | C86: Bpd9d | D86: -0.000243 | E86: Replaced
B87: DecidP_GE130Yr8 | C87: Bpd9e | D87: -3.195535 | E87: Replaced
A88: Weibull parameters for GLD planted-Cpd GS9 | B88: Intercept | C88: Cpd9a | D88: 5.2197737 | E88: Replaced
B89: Nutrient[1] | C89: Cpd9b | D89: 0.786388 | E89: Replaced
B90: Nutrient[2] | C90: Cpd9c | D90: 0.1440909 | E90: Replaced
B91: PlantedTph | C91: Cpd9d | D91: -4.3e-05 | E91: Replaced
B92: DecidP_GE130Yr8 | C92: Cpd9e | D92: -2.563787 | E92: Replaced
A94: Weibull parameters for GLD planted-Bpd GS11 | B94: Intercept | C94: Bpd11a | D94: 10.458888 | E94: Replaced
B95: Nutrient[1] | C95: Bpd11b | D95: 2.0674933 | E95: Replaced
B96: Nutrient[2] | C96: Bpd11c | D96: -0.450054 | E96: Replaced
B97: PlantedTph | C97: Bpd11d | D97: -0.00042 | E97: Replaced
B98: DecidP_GE130Yr8 | C98: Bpd11e | D98: -4.062135 | E98: Replaced
A99: Weibull parameters for GLD planted-Cpd GS11 | B99: Intercept | C99: Cpd11a | D99: 5.6504314 | E99: Replaced
B100: Nutrient[1] | C100: Cpd11b | D100: 0.6194654 | E100: Replaced
B101: Nutrient[2] | C101: Cpd11c | D101: 0.2408932 | E101: Replaced
B102: PlantedTph | C102: Cpd11d | D102: -6.5e-05 | E102: Replaced
B103: DecidP_GE130Yr8 | C103: Cpd11e | D103: -2.95778 | E103: Replaced
A105: Tree height natural - GS11 | B105: Intercept | C105: LnHtN11a | D105: 4.0718795 | E105: Replaced
B106: Nutrient[1] | C106: LnHtN11b | D106: 0.0177777 | E106: Replaced
B107: Nutrient[2] | C107: LnHtN11c | D107: 0.0464301 | E107: Replaced
B108: LnGLD | C108: LnHtN11d | D108: 0.8637553 | E108: Replaced
B109: DecidP_GE130Yr8 | C109: LnHtN11e | D109: 0.1130663 | E109: Replaced
A111: Tree height planted - GS9 | B111: Intercept | C111: LnHtP9a | D111: 4.0106774 | E111: Replaced
B112: Nutrient[1] | C112: LnHtP9b | D112: 0.0674049 | E112: Replaced
B113: Nutrient[2] | C113: LnHtP9c | D113: 0.0241279 | E113: Replaced
B114: LnGld | C114: LnHtP9d | D114: 0.8002612 | E114: Replaced
B115: PlantedTph | C115: LnHtP9e | D115: 2.1e-05 | E115: Replaced
B116: DecidP_GE130Yr8 | C116: LnHtP9f | D116: 0.2688964 | E116: Replaced
A117: Tree height planted - GS11 | B117: Intercept | C117: LnHtP11a | D117: 4.141048 | E117: Replaced
B118: Nutrient[1] | C118: LnHtP11b | D118: 0.0887983 | E118: Replaced
B119: Nutrient[2] | C119: LnHtP11c | D119: 0.030242 | E119: Replaced
B120: LnGld | C120: LnHtP11d | D120: 0.7701617 | E120: Replaced
B121: PlantedTph | C121: LnHtP11e | D121: 2.92e-05 | E121: Replaced
B122: DecidP_GE130Yr8 | C122: LnHtP11f | D122: 0.2434809 | E122: Replaced
A124: DBH | B124: Intercept | C124: DBHa | D124: -1.880784
B125: GLD | C125: DBHb | D125: 0.4813184
B126: Ht | C126: DBHc | D126: 0.0080906
A128: Operational adjustment factors | B128: Ingress stocking proportion | C128: OAFspn | D128: 0.983
B129: Plantation mortality | C129: OAFpm | E129: Not used
B130: Plantation stocking curve X-axis | C130: OAFspp | D130: 73
B131: Lower CI for ingress stocking | C131: OAFci | D131: 0.07
A132: RSA Top Height Natural | B132: Intercept | C132: THNa | D132: 62.977258
B133: AvHt | C133: THNb | D133: 1.3273521
B134: TphN | C134: THNc | D134: -0.001028
F135: Replaced Values
A136: RSA Top Height Planted | B136: Intercept | C136: THPa | D136: 31.324197 | F136: 12.441642
B137: AvHt | C137: THPb | D137: 0.9143934 | F137: 0.9066153
B138: TphN | C138: THPc | D138: -0.000853 | F138: -0.000682
B139: LnTphP | C139: THPd | D139: 12.641155 | F139: 14.368759
B140: DSI | C140: THPe | D140: 0 | F140: 51.887349
A142: Stocking probability at performance age | B142: Intercept | C142: SPa | D142: 0.0988378
B143: PSI | C143: SPb | D143: 0.863577
B144: GS | C144: SPc | D144: 0.0050129
B145: DSI | C145: SPd | D145: -0.031464
A147: Stocking probability at perf age - 30cm min ht | B147: Intercept | C147: SP30a | D147: 0.024594
B148: PSI | C148: SP30b | D148: 0.8829758
B149: GS | C149: SP30c | D149: 0.0092855
B150: DSI | C150: SP30d | D150: -0.109052
A152: Mean annual mortality % of LF planted stock | B152: Intercept | C152: PctMa | D152: 2.0438519 | E152: Replaced
B153: MoistureBroad[DryMesic] | C153: PctMb | D153: 0.7392065 | E153: Replaced
B154: SitePrep[No] | C154: PctMc | D154: 0.8498433 | E154: Replaced
B155: DSI | C155: PctMd | D155: 1.3037843 | E155: Replaced
A157: Weibull parameters for trees per plot - LnB | B157: Intercept | C157: LnBa | D157: 0.0015275
B158: PSI | C158: LnBb | D158: 3.2168048
B159: PSI2 | C159: LnBc | D159: 3.6271521
B160: GS | C160: LnBd | D160: -0.0312
B161: SitePrepGroup[1] | C161: LnBe | D161: 0.0459564
B162: SitePrepGroup[2] | C162: LnBf | D162: 0.172215
B163: NutrientClass[1] | C163: LnBg | D163: -0.111698
B164: NutrientClass[2] | C164: LnBh | D164: 0.2011131
B165: PlantedTph | C165: LnBi | D165: -4.7e-05
B166: Poly Centering Factor | C166: LnBj | D166: 0.77727
A168: Weibull parameters for trees per plot - LnC | B168: Intercept | C168: LnCa | D168: -0.486458
B169: PSI | C169: LnCb | D169: 0.5851067
B170: PSI2 | C170: LnCc | D170: 1.4563457
B171: GS | C171: LnCd | D171: 0.0253254
B172: SitePrepGroup[1] | C172: LnCe | D172: -0.032151
B173: SitePrepGroup[2] | C173: LnCf | D173: 0.1353683
B174: Poly Centering Factor | C174: LnCg | D174: 0.78188
A176: Weibull parameters for GLD natural-Bnd | B176: Intercept | C176: Bnda | D176: -2.633028
B177: Nutrient[1] | C177: Bndb | D177: 0.3417994
B178: Nutrient[2] | C178: Bndc | D178: 0.5714356
B179: DecidP_GE130Yr8 | C179: Bndd | D179: -3.64524
B180: GS | C180: Bnde | D180: 0.738388
A182: Weibull parameters for GLD natural-Cnd | B182: Intercept | C182: Cnda | D182: 1.4377202
B183: Nutrient[1] | C183: Cndb | D183: -0.151272
B184: Nutrient[2] | C184: Cndc | D184: 0.2258182
B185: DecidP_GE130Yr8 | C185: Cndd | D185: -1.037644
B186: Gs | C186: Cnde | D186: 0.1174076
A188: Weibull parameters for GLD planted-Bpd | B188: Intercept | C188: Bpda | D188: 0.0586871
B189: Nutrient[1] | C189: Bpdb | D189: 2.0659697
B190: Nutrient[2] | C190: Bpdc | D190: -0.431298
B191: DecidP_GE130Yr8 | C191: Bpdd | D191: -3.873716
B192: GS | C192: Bpde | D192: 0.9189954
B193: PlantedTph | C193: Bpdf | D193: -0.000376
A195: Weibull parameters for GLD planted-Cpd | B195: Intercept | C195: Cpda | D195: 3.8635505
B196: Nutrient[1] | C196: Cpdb | D196: 0.6321094
B197: Nutrient[2] | C197: Cpdc | D197: 0.200107
B198: DecidP_GE130Yr8 | C198: Cpdd | D198: -2.607481
B199: GS | C199: Cpde | D199: 0.1480922
B200: PlantedTph | C200: Cpdf | D200: -8.8e-05
A202: Tree height natural (Ln) | B202: Intercept | C202: HtNa | D202: 3.5511228
B203: Nutrient[1] | C203: HtNb | D203: 0.0108321
B204: Nutrient[2] | C204: HtNc | D204: 0.0352278
B205: LnGLD | C205: HtNd | D205: 0.8455082
B206: DecidP_GE130Yr8 | C206: HtNe | D206: 0.107162
B207: GS | C207: HtNf | D207: 0.0504338
A209: Tree height planted (Ln) | B209: Intercept | C209: HtPa | D209: 3.6357274
B210: Nutrient[1] | C210: HtPb | D210: 0.0776874
B211: Nutrient[2] | C211: HtPc | D211: 0.027479
B212: LnGld | C212: HtPd | D212: 0.7880878
B213: DecidP_GE130Yr8 | C213: HtPe | D213: 0.2657773
B214: GS | C214: HtPf | D214: 0.0404019
B215: PlantedTph | C215: HtPg | D215: 3.15e-05
A217: Aspen proportion of DSI | B217: If Nutrient Rich of Medium | C217: AwRM | D217: 0.925587
B218: If Nutrient Poor | C218: AwPoor | D218: 0.535714
A220: Aw stocking probability at performance - leave | B220: Intercept | C220: SPALa | D220: 0.0513077
B221: AwP_GE130Yr8 | C221: SPALb | D221: 0.9522357
A223: Aw stocking probability at performance - weed | B223: Intercept | C223: SPAWa | D223: 0.0308555
B224: AwP_GE130Yr8 | C224: SPAWb | D224: 1.1961117
A226: Parameters for Aw trees per leave plot - LnB | B226: Intercept | C226: LnBAwa | D226: 1.925209
B227: SPINAw | C227: LnBAwb | D227: 1.2470011
B228: NSR[LF] | C228: LnBAwc | D228: 0.1628704
B229: GS | C229: LnBAwd | D229: -0.046878
A231: Parameters for Aw trees per leave plot - coeff C | B231: Average coefficient C | C231: CAw | D231: 1.999288
A233: Aw trees per weeded plot | B233: Average Aw trees per weeded plot | C233: NAw | D233: 3.588817
A235: Aw Top Height - leave | B235: Intercept | C235: AwTHLa | D235: -24.67136
B236: NSR[LF] | C236: AwTHLb | D236: 40.526237
... 38 more rows

Sheet Input Ranges (hidden)
A1: NSR | B1: NUTRIENT | C1: MOISTURE | D1: SITE PREPARATION | E1: RISK
A3: Lower Foothills | B3: Rich | C3: Dry / Mesic | D3: None | E3: High
A4: Upper Foothills | B4: Medium | C4: Moist | D4: Drag | E4: Low
B5: Poor | D5: Mound
A7: Control Panel
A8: Mech site prep | B8: =IF(MSPrep=TRUE,"Yes","No") -> No
A9: Perf Reporting Year | B9: =HYear+YSHpa -> 2010
A10: Planting year | B10: =IF(Names!E14>0,PYear,"Never") -> Never
A11: Plant early? | B11: =IF(Names!E14>0,IF(PSeason=TRUE,"Yes","No")," ") -> 
A12: Weeding? | B12: =IF(Weed=TRUE,"Yes","No") -> Yes
A13: Survey year | B13: =IF(ES=TRUE,ESYear,"Never ") -> 2003
A14: Surveyed | B14: =IF(ES=TRUE,"Yes","No") -> Yes
A15: Under-height | B15: =IF(ES=TRUE,IF(ESUh=TRUE,"Yes","No")," ") -> Yes
A16: % stocking pine | B16: =IF(ES=TRUE,Names!E19," ") -> 83
A17: % hardwoods | B17: =IF(ES=TRUE,Names!E22," ") -> 38
A19: List Box Range
A20: 0
A21: 1
A22: 2
A23: 3
A24: 4
A25: 5
A26: 6
A27: 7
A28: 8
A29: 9
A30: 10
A31: 11
A32: 12
A33: 13
A34: 14
A35: 15
A36: 16
A37: 17
A38: 18
A39: 19
A40: 20
A41: 21
A42: 22
A43: 23
A44: 24
A45: 25
A46: 26
A47: 27
A48: 28
A49: 29
A50: 30
A51: 31
A52: 32
A53: 33
A54: 34
A55: 35
A56: 36
A57: 37
A58: 38
A59: 39
A60: 40
A61: 41
A62: 42
A63: 43
A64: 44
A65: 45
A66: 46
A67: 47
A68: 48
A69: 49
A70: 50
A71: 51
A72: 52
A73: 53
A74: 54
A75: 55
A76: 56
A77: 57
A78: 58
A79: 59
A80: 60
A81: 61
A82: 62
A83: 63
A84: 64
A85: 65
A86: 66
A87: 67
A88: 68
A89: 69
A90: 70
A91: 71
A92: 72
A93: 73
A94: 74
A95: 75
A96: 76
A97: 77
A98: 78
A99: 79
A100: 80
A101: 81
A102: 82
A103: 83
A104: 84
A105: 85
A106: 86
A107: 87
A108: 88
A109: 89
A110: 90
A111: 91
A112: 92
A113: 93
A114: 94
A115: 95
A116: 96
A117: 97
A118: 98
A119: 99
A120: 100
A121: 101
A122: 102
A123: 103
A124: 104
A125: 105
A126: 106
A127: 107
A128: 108
A129: 109
A130: 110
A131: 111
A132: 112
A133: 113
A134: 114
A135: 115
A136: 116
A137: 117
A138: 118
A139: 119
A140: 120
A141: 121
A142: 122
A143: 123
A144: 124
A145: 125
A146: 126
A147: 127
A148: 128
A149: 129
A150: 130
A151: 131
A152: 132
A153: 133
A154: 134
A155: 135
A156: 136
A157: 137
A158: 138
A159: 139
A160: 140
A161: 141
A162: 142
A163: 143
A164: 144
A165: 145
A166: 146
A167: 147
A168: 148
A169: 149
A170: 150
A171: 151
A172: 152
A173: 153
A174: 154
A175: 155
A176: 156
A177: 157
A178: 158
A179: 159
A180: 160
A181: 161
A182: 162
A183: 163
A184: 164
A185: 165
A186: 166
A187: 167
A188: 168
A189: 169
A190: 170
A191: 171
A192: 172
A193: 173
A194: 174
A195: 175
A196: 176
A197: 177
A198: 178
A199: 179
A200: 180
A201: 181
A202: 182
A203: 183
... 4317 more rows

Sheet Stocking (hidden)
A1: STOCKING INDEX AND PROBABILITIES FOR LODGEPOLE PINE INGRESS - NO ESTABLISHMENT SURVEY (BARE LAND MODEL)
A2: Nutrient (not used) | B2: Site Prep | C2: Moisture | D2: Index | E2: YSH8 | F2: LnYSD8 | G2: Cones | H2: LnCones | I2: Lin | J2: SPNIPred1 | K2: SPNPred | L2: SPN_30Pred | M2: DIA | N2: SPTotalEs | O2: SPNIPred2
B3: =MSPrep -> 1 | C3: =IF(Moisture<2,"MesicDry","Moist") -> MesicDry | D3: =INDEX(B5:D10,MATCH(B3&C3,B5:B11&C5:C11,0),3) -> 1 | G3: =Cones-1 -> 0 | I3: =LOOKUP(D3,D5:D10,I5:I10) -> -0.9991460762 | J3: =(((1+EXP(I3))^-1)*OAFspn)*S7 -> 0.3498927047 | K3: =SPa+SPb*J3+SPc*(YSHpa-1)+SPd*H79 -> 0.4608261167 | L3: =SP30a+SP30b*J3+SP30c*(YSHpa-1)+SP30d*H79 -> 0.4438376756 | M3: =YSHpa-1 -> 12 | N3: =(ESPctPl-1)/100 -> 0.83 | O3: =IF(PSph=1,1-(1-N3)*(1-J3)/(1-J51),IF(J51<=N3,J3,IF(J51>N3,1-(1-N3)*(1-J3)/(1-J51),0))) -> 0.8462306461 | S3: Cell O2: Previously '=IF(J51<=N3,J3,IF(J51>N3,1-(1-N3)*(1-J3)/(1-J51),0))
A4: Nutrient (not used) | B4: Site Prep | C4: Moisture | D4: Index | E4: YSH | F4: LnYSD | G4: Cones | H4: LnCones | I4: Lin | S4: Changed to allow up and down adjustment of ingress stocking in non-planted stands
B5: 1 | C5: MesicDry | D5: 1 | E5: 8 | F5: =LN(E5) -> 2.079441542 | G5: =Cones-1 -> 0 | H5: =IF(G5<1,-10,LN(G5)) -> -10 | I5: =Da+Db*1+Dc*0+Dd*F5 -> -0.9991460762
B6: 1 | C6: Moist | D6: 2 | E6: 8 | F6: =LN(E6) -> 2.079441542 | G6: 0 | H6: =IF(G6<1,-10,LN(G6)) -> -10 | I6: =Wa+Wb*1+Wc*0+Wd*F6 -> -1.781972443 | S6: EPH stocking adjustment factor
B7: 2 | C7: MesicDry | D7: 3 | E7: 8 | F7: =LN(E7) -> 2.079441542 | G7: 0 | H7: -10 | I7: =Da+Db*0+Dc*1+Dd*F7 -> -2.412711996 | S7: =IF(MSPrep=1,0.487,IF(MSPrep=2,0.924,0.866)) -> 0.487
B8: 2 | C8: Moist | D8: 4 | E8: 8 | F8: 2.079441542 | G8: 0 | H8: -10 | I8: =Wa+Wb*0+Wc*1+Wd*F8 -> -2.221391543
B9: 3 | C9: MesicDry | D9: 5 | E9: 8 | F9: 2.079441542 | G9: 0 | H9: -10 | I9: =Da+Db*(-1)+Dc*(-1)+Dd*F9 -> -0.5470409162
B10: 3 | C10: Moist | D10: 6 | E10: 8 | F10: 2.079441542 | G10: 0 | H10: -10 | I10: =Wa+Wb*(-1)+Wc*(-1)+Wd*F10 -> -0.255362343
A12: PLANTATION DENSITY AND STOCKING (AT ESTAB. SURVEY AND PERFORMANCE AGE) | G12: PSPH> | H12: =Names!E14 -> 0
A13: Site Preparation Group | B13: Moisture | C13: Risk | D13: Index | E13: PctM | F13: YSPes | G13: GSSPes | H13: YSPperf | I13: GSSPperf | J13: SurvivalEs | K13: PlantedStemsPhEs | L13: LinEs | M13: SPPesUncorrected | N13: StockProbPlantedEsPred | O13: SurvivalPerf | P13: PlantedStemPhPerfPred | Q13: LinPerfPred | R13: SPPperfUncorrected | S13: SPPperfPred
E14: =IF(NSR=1,E15,E30) -> 3.375575202 | F14: =ESYear-PYear -> 4 | G14: =IF(PSeason=TRUE,F14+1,F14) -> 4 | H14: =HYear+YSHpa-PYear -> 11 | I14: =IF(PSeason=TRUE,H14+1,H14) -> 11 | J14: =1-(E14/100*G14) -> 0.8649769919 | K14: =H12*J14 -> 0 | L14: =IF(K14<OAFspp,SPPa+SPPb*(SQRT(OAFspp)),SPPa+SPPb*(SQRT(K14-OAFspp))) -> 1.744996799 | M14: =MIN(((1+EXP(L14))^-1),K14/1000) -> 0 | N14: =IF(M14<0,0,M14) -> 0 | O14: =1-(E14/100*I14) -> 0.6286867278 | P14: =H12*O14 -> 0 | Q14: =IF(P14<OAFspp,SPPa+SPPb*(SQRT(OAFspp)),SPPa+SPPb*(SQRT(P14-OAFspp))) -> 1.744996799 | R14: =MIN(((1+EXP(Q14))^-1),P14/1000) -> 0 | S14: =IF(R14>0,R14,0) -> 0
A15: =MSPrep -> 1 | B15: =IF(Moisture<2,"MesicDry","Moist") -> MesicDry | C15: =IF(Risk=1,"High","Low") -> Low | D15: =INDEX(A17:D28,MATCH(A15&B15&C15,A17:A28&B17:B28&C17:C28,0),4) -> 2 | E15: =LOOKUP(D15,D17:D28,E17:E28) -> 3.375575202
A16: Site Preparation Group (LF) | B16: Moisture | C16: Risk | D16: Index | E16: PctM
A17: 1 | B17: MesicDry | C17: High | D17: 1 | E17: =EXP(MortLa+MortLb*1+MortLc*1+MortLd*0+MortLe*1+MortLf*C$95) -> 5.170522463
A18: 1 | B18: MesicDry | C18: Low | D18: 2 | E18: =EXP(MortLa+MortLb*(-1)+MortLc*1+MortLd*0+MortLe*1+MortLf*C$95) -> 3.375575202
A19: 1 | B19: Moist | C19: High | D19: 3 | E19: =EXP(MortLa+MortLb*1+MortLc*1+MortLd*0+MortLe*(-1)+MortLf*C$95) -> 2.538255769
A20: 1 | B20: Moist | C20: Low | D20: 4 | E20: =EXP(MortLa+MortLb*(-1)+MortLc*1+MortLd*0+MortLe*(-1)+MortLf*C$95) -> 1.657100088
A21: 2 | B21: MesicDry | C21: High | D21: 5 | E21: =EXP(MortLa+MortLb*1+MortLc*0+MortLd*1+MortLe*1+MortLf*C$95) -> 2.016590351
A22: 2 | B22: MesicDry | C22: Low | D22: 6 | E22: =EXP(MortLa+MortLb*(-1)+MortLc*0+MortLd*1+MortLe*1+MortLf*C$95) -> 1.316530859
A23: 2 | B23: Moist | C23: High | D23: 7 | E23: =EXP(MortLa+MortLb*1+MortLc*0+MortLd*1+MortLe*(-1)+MortLf*C$95) -> 0.9899622578
A24: 2 | B24: Moist | C24: Low | D24: 8 | E24: =EXP(MortLa+MortLb*(-1)+MortLc*0+MortLd*1+MortLe*(-1)+MortLf*C$95) -> 0.6462967858
A25: 3 | B25: MesicDry | C25: High | D25: 9 | E25: =EXP(MortLa+MortLb*1+MortLc*(-1)+MortLd*(-1)+MortLe*1+MortLf*C$95) -> 2.079924386
A26: 3 | B26: MesicDry | C26: Low | D26: 10 | E26: =EXP(MortLa+MortLb*(-1)+MortLc*(-1)+MortLd*(-1)+MortLe*1+MortLf*C$95) -> 1.357878479
A27: 3 | B27: Moist | C27: High | D27: 11 | E27: =EXP(MortLa+MortLb*1+MortLc*(-1)+MortLd*(-1)+MortLe*(-1)+MortLf*C$95) -> 1.021053503
A28: 3 | B28: Moist | C28: Low | D28: 12 | E28: =EXP(MortLa+MortLb*(-1)+MortLc*(-1)+MortLd*(-1)+MortLe*(-1)+MortLf*C$95) -> 0.6665947026
A30: =MSPrep -> 1 | B30: =IF(Moisture<2,"MesicDry","Moist") -> MesicDry | C30: =IF(Risk=1,"High","Low") -> Low | D30: =INDEX(A32:D43,MATCH(A30&B30&C30,A32:A43&B32:B43&C32:C43,0),4) -> 2 | E30: =LOOKUP(D30,D32:D43,E32:E43) -> 2.254681227
A31: Site Preparation Group (UF) | B31: Moisture | C31: Risk | D31: Index | E31: PctM
A32: 1 | B32: MesicDry | C32: High | D32: 1 | E32: =EXP(MortUa+MortUb*1+MortUc*1+MortUd*0+MortUe*1) -> 3.935541171
A33: 1 | B33: MesicDry | C33: Low | D33: 2 | E33: =EXP(MortUa+MortUb*(-1)+MortUc*1+MortUd*0+MortUe*1) -> 2.254681227
A34: 1 | B34: Moist | C34: High | D34: 3 | E34: =EXP(MortUa+MortUb*1+MortUc*1+MortUd*0+MortUe*(-1)) -> 2.319736496
A35: 1 | B35: Moist | C35: Low | D35: 4 | E35: =EXP(MortUa+MortUb*(-1)+MortUc*1+MortUd*0+MortUe*(-1)) -> 1.32898275
A36: 2 | B36: MesicDry | C36: High | D36: 5 | E36: =EXP(MortUa+MortUb*1+MortUc*0+MortUd*1+MortUe*1) -> 1.692817499
A37: 2 | B37: MesicDry | C37: Low | D37: 6 | E37: =EXP(MortUa+MortUb*(-1)+MortUc*0+MortUd*1+MortUe*1) -> 0.9698193131
A38: 2 | B38: Moist | C38: High | D38: 7 | E38: =EXP(MortUa+MortUb*1+MortUc*0+MortUd*1+MortUe*(-1)) -> 0.9978019193
A39: 2 | B39: Moist | C39: Low | D39: 8 | E39: =EXP(MortUa+MortUb*(-1)+MortUc*0+MortUd*1+MortUe*(-1)) -> 0.5716431763
A40: 3 | B40: MesicDry | C40: High | D40: 9 | E40: =EXP(MortUa+MortUb*1+MortUc*(-1)+MortUd*(-1)+MortUe*1) -> 2.570820735
A41: 3 | B41: MesicDry | C41: Low | D41: 10 | E41: =EXP(MortUa+MortUb*(-1)+MortUc*(-1)+MortUd*(-1)+MortUe*1) -> 1.472829529
A42: 3 | B42: Moist | C42: High | D42: 11 | E42: =EXP(MortUa+MortUb*1+MortUc*(-1)+MortUd*(-1)+MortUe*(-1)) -> 1.515325701
A43: 3 | B43: Moist | C43: Low | D43: 12 | E43: =EXP(MortUa+MortUb*(-1)+MortUc*(-1)+MortUd*(-1)+MortUe*(-1)) -> 0.8681338249
A45: PLANTATION DENSITY AND STOCKING (AT YEAR 8)
E46: PctM | F46: YSPes | G46: GSSPes | H46: YSP8 | I46: GSSP8 | J46: SurvivalEs | K46: PlantedStemsPhEs | L46: LinEs | M46: SPPesUncorrected | N46: StockProbPlantedEsPred | O46: Survival8 | P46: PlantedStemPh8Pred | Q46: Lin8Pred | R46: SPP8Uncorrected | S46: SPP8Pred
E47: =E14 -> 3.375575202 | F47: =ESYear-PYear -> 4 | G47: =IF(PSeason=TRUE,F47+1,F47) -> 4 | H47: =HYear+8-PYear -> 6 | I47: =IF(PSeason=TRUE,H47+1,H47) -> 6 | J47: =1-(E47/100*G47) -> 0.8649769919 | K47: =H12*J47 -> 0 | L47: =IF(K47<OAFspp,SPPa+SPPb*(SQRT(OAFspp)),SPPa+SPPb*(SQRT(K47-OAFspp))) -> 1.744996799 | M47: =MIN(((1+EXP(L47))^-1),K47/1000) -> 0 | N47: =IF(M47<0,0,M47) -> 0 | O47: =1-(E47/100*I47) -> 0.7974654879 | P47: =H12*O47 -> 0 | Q47: =IF(P47<OAFspp,SPPa+SPPb*(SQRT(OAFspp)),SPPa+SPPb*(SQRT(P47-OAFspp))) -> 1.744996799 | R47: =MIN(((1+EXP(Q47))^-1),P47/1000) -> 0 | S47: =IF(R47>0,R47,0) -> 0
A49: STOCKING FOR LODGEPOLE PINE INGRESS AT YEAR OF ESTABLISHMENT SURVEY - PREDICTED BY BARE LAND MODEL
A50: Nutrient (not used) | B50: Site Prep | C50: Moisture | D50: Index | E50: YSHes | F50: LnYSD8 | G50: Cones | H50: LnCones | I50: Lin | J50: SPNesPred
B51: =MSPrep -> 1 | C51: =IF(Moisture<2,"MesicDry","Moist") -> MesicDry | D51: =INDEX(B53:D58,MATCH(B51&C51,B53:B58&C53:C58,0),3) -> 1 | G51: =Cones-1 -> 0 | I51: =LOOKUP(D51,D53:D58,I53:I58) -> -0.3538474551 | J51: =(((1+EXP(I51))^-1)*OAFspn)*S7 -> 0.2812726503
A52: Nutrient (not used) | B52: Site Prep | C52: Moisture | D52: Index | E52: YSD | F52: LnYSD | G52: Cones | H52: LnCones | I52: Lin
B53: 1 | C53: MesicDry | D53: 1 | E53: =ESYear-HYear -> 6 | F53: =LN(E53) -> 1.791759469 | G53: =Cones-1 -> 0 | H53: =IF(G53<1,-10,LN(G53)) -> -10 | I53: =Da+Db*1+Dc*0+Dd*F53 -> -0.3538474551
B54: 1 | C54: Moist | D54: 2 | E54: 6 | F54: =LN(E54) -> 1.791759469 | G54: 0 | H54: =IF(G54<1,-10,LN(G54)) -> -10 | I54: =Wa+Wb*1+Wc*0+Wd*F54 -> -0.7876097737
B55: 2 | C55: MesicDry | D55: 3 | E55: 6 | F55: =LN(E55) -> 1.791759469 | G55: 0 | H55: -10 | I55: =Da+Db*0+Dc*1+Dd*F55 -> -1.767413375
B56: 2 | C56: Moist | D56: 4 | E56: 6 | F56: 1.791759469 | G56: 0 | H56: -10 | I56: =Wa+Wb*0+Wc*1+Wd*F56 -> -1.227028874
B57: 3 | C57: MesicDry | D57: 5 | E57: 6 | F57: 1.791759469 | G57: 0 | H57: -10 | I57: =Da+Db*(-1)+Dc*(-1)+Dd*F57 -> 0.09825770491
B58: 3 | C58: Moist | D58: 6 | E58: 6 | F58: 1.791759469 | G58: 0 | H58: -10 | I58: =Wa+Wb*(-1)+Wc*(-1)+Wd*F58 -> 0.7390003263
A60: ADJUSTED PLANTATION STOCKING AND STOCKING FOR LODGEPOLE PINE INGRESS AT YEAR OF ESTABLISHMENT SURVEY - ESTIMATED FROM SURVEYED TOTAL STOCKING AND PLANTATION STOCKING
A61: StockProbPlantedEsAdjusted | D61: =IF(ES=TRUE,IF((ESPctPl-1)/100<N14,(ESPctPl-1)/100,N14),N14) -> 0 | E61: If ESPctPl is less than the predicted plantation stocking at ES (N20), then the adjusted stocking (D66) = EsPctPl/100. Otherwise N20 is retained.
A62: StockProbPlantedPerfAdjusted | D62: =IF(ES=TRUE,IF((ESPctPl-1)/100<N14,P14/K14*(ESPctPl-1)/100,S14),S14) -> 0 | E62: If ESPctPl is less than the predicted plantation stocking at ES (N20), then the adjusted stocking at performance (D67) =Planted sphPred / Planted Sph Es * EsPctPl/100. Otherwise s20 is retained.
A63: Planted SphPerfAdjusted | D63: =IF(ES=TRUE,IF((ESPctPl-1)/100<N14,P14*(ESPctPl-1)/100/N14,P14),P14) -> 0 | E63: If ESPctPl is less than the predicted plantation stocking at ES (N20), then the adjusted SPH at performance (D68) = Predicted sph (P20) * (ESPct/100) / Stocking Pred at ES (N20). Otherwise P20 is retained.
A64: SPNesEst | D64: If ESPctPl is less than predicted plantation stocking, natural stocking is assumed to be zero, otherwise estimated natural stocking = (ES stocking -predicted plantation stocking) / 1-predicted plantation stocking). | E64: (NOT USED)
A66: STOCKING INDEX AND PROBABILITIES FOR LODGEPOLE PINE INGRESS - WITH ESTABLISHMENT SURVEY INPUTS
A67: SPNIa | F67: Adjusted natural stocking index = the ratio of the current estimated stocking to the predicted stocking * the predicted index. Adjusted for low cones | G67: (NOT USED)
B68: SPNIEst | C68: SPNEst | D68: SPN_30Est
B69: =O3 -> 0.8462306461 | C69: =IF(B69>0,SPa+SPb*B69+SPc*(YSHpa-1)+SPd*C95,0) -> 0.8778216027 | D69: =IF(B69>0,SP30a+SP30b*B69+SP30c*(YSHpa-1)+SP30d*C95,0) -> 0.8417814217
A71: TOTAL (PLANTED AND NATURAL COMBINED) STOCKING PROBABILITIES
B72: SPperfEst | C72: SPperf_30Est
B73: =D62+((1-D62)*C69) -> 0.8778216027 | C73: =D62+((1-D62)*D69) -> 0.8417814217 | F73: Total stocking = Plantation stocking+ ((1-plantation stocking) * Natural stocking)
B74: SPperfPred | C74: SPperf_30Pred
B75: =S14+((1-S14)*K3) -> 0.4608261167 | C75: =S14+((1-S14)*L3) -> 0.4438376756 | F75: Equivalent values without ES inputs
A77: DECIDUOUS STOCKING INDEX - NO ESTABLISHMENT SURVEY | M77: STOCKING ADJUSTMENTS BASED ON ESTABLISHMENT SURVEY | T77: SPTotalEs | U77: =N3 -> 0.83
A78: Tended (non-weeded only) | B78: NSR | C78: Nutrient | D78: Index | E78: Lin | F78: DSI_NoWeed | H78: DSI | M78: SPNesPred | O78: =J51 -> 0.2812726503 | Q78: INGRESS | R78: SPPesPredAdj | T78: =D61 -> 0 | V78: PLANTED
A79: No | B79: =IF(NSR=1,"LF","UF") -> LF | C79: =Nutrient -> 3 | D79: =INDEX(B81:D86,MATCH(B79&C79,B81:B86&C81:C86,0),3) -> 3 | F79: =LOOKUP(D79,D81:D86,F81:F86) -> 0.06356011367 | H79: =IF(Weed=FALSE,F79,D89) -> 0.01035391582 | M79: SPNesPredAdj | O79: =IF(O78+T78<U77,U77-T78,IF(O78<=U77,O78,IF(O78>U77,U77))) -> 0.83 | R79: SPPI | T79: =S47 -> 0
A80: Tended (non-weeded only) | B80: NSR | C80: Nutrient | D80: Index | E80: Lin | F80: DSI | M80: SPNIadj | O80: =O3 -> 0.8462306461 | R80: SPPIadj | T80: =IF(T79>U77,U77,T79) -> 0
A81: No | B81: LF | C81: 1 | D81: 1 | E81: =DSIa+DSIb*1+DSIc*1+DSId*0 -> -2.0161204 | F81: =((1+EXP(E81))^-1) -> 0.8824792539 | M81: TOTAL STOCKING AT ESTABLISHMENT SURVEY | R81: TOTAL STOCKING AT 8 YEARS
A82: No | B82: LF | C82: 2 | D82: 2 | E82: =DSIa+DSIb*1+DSIc*0+DSId*1 -> 0.2050731 | F82: =((1+EXP(E82))^-1) -> 0.4489106464 | M82: SPTesPred | O82: =MIN(0.999,T78+((1-T78)*O79)) -> 0.83 | R82: SPTI | T82: =T80+((1-T80)*O80) -> 0.8462306461
A83: No | B83: LF | C83: 3 | D83: 3 | E83: =DSIa+DSIb*1+DSIc*(-1)+DSId*(-1) -> 2.6900992 | F83: 0.06356011367 | M83: SPNesPred30adj | R83: ADJUSTED TOTAL STOCKING AT 8 YEARS
A84: No | B84: UF | C84: 1 | D84: 4 | E84: =DSIa+DSIb*(-1)+DSIc*1+DSId*0 -> -0.146237 | F84: 0.5364942366 | R84: SPTIadj1 | T84: =1-(1-U77)*(1-T82)/(1-O82) -> 0.8462306461
A85: No | B85: UF | C85: 2 | D85: 5 | E85: =DSIa+DSIb*(-1)+DSIc*0+DSId*1 -> 2.0749565 | F85: 0.1115548514 | R85: SPTIadj2 | T85: =IF(T84>O80,T84,O80) -> 0.8462306461
A86: No | B86: UF | C86: 3 | D86: 6 | E86: =DSIa+DSIb*(-1)+DSIc*(-1)+DSId*(-1) -> 4.5599826 | F86: 0.01035391582 | R86: TOTAL STOCKING AT 8 YEARS 30cm+
R87: SPTI_30 | T87: =T80+((1-T80)*F96) -> 0.7938248078
A88: Tended (weeded only) | C88: Nutrient | D88: DSI_Weed | R88: SPTI_30adj | T88: =T85*T87/T82 -> 0.7938248078
A89: Yes | D89: =IF(Nutrient=1,D90,IF(Nutrient=2,D91,D92)) -> 0.01035391582
A90: Yes | C90: 1 | D90: 0.049107 | E90: Stratum average
A91: Yes | C91: 2 | D91: 0.036222 | E91: Stratum average
A92: Yes | C92: 3 | D92: =F86 -> 0.01035391582 | E92: Estimated value for non-weeded used because lower than nutrient class average
A94: SELECTED STOCKING VALUES | B94: Unadjusted | C94: Adjusted
A95: DSI | B95: =IF(ES=TRUE,(ESPctHw-1)/100,H79) -> 0.38 | C95: =IF(B122=TRUE,0,IF(B95>1,1,B95)) -> 0.38
A96: SPNI | B96: =IF(ES=TRUE,O3,J3) -> 0.8462306461 | C96: =IF(B122=TRUE,0,IF(B96>1,1,B96)) -> 0.8462306461 | D96: SPNI30 | E96: =(C96-SPI_From8_30a)/SPI_From8_30b -> 0.7938248078 | F96: =IF(E96>0,E96,0) -> 0.7938248078 | G96: <Adjusted SPNI30
A97: SPN | B97: =IF(ES=TRUE,C69,K3) -> 0.8778216027 | C97: =IF(B122=TRUE,0,IF(B97>1,1,B97)) -> 0.8778216027
A98: SPN_30 | B98: =IF(ES=TRUE,D69,L3) -> 0.8417814217 | C98: =IF(B122=TRUE,0,IF(B98>1,1,B98)) -> 0.8417814217
A99: SPPperf | B99: =IF(ES=TRUE,D62,S14) -> 0 | C99: =IF(B122=TRUE,0,IF(B99>1,1,B99)) -> 0 | D99: SPPIadj | E99: =IF(B122=TRUE,0,IF(ES=TRUE,T80,S47)) -> 0
A100: SPPperf_30 | B100: =B99 -> 0 | C100: =IF(B122=TRUE,0,IF(B100>1,1,B100)) -> 0
A101: SPperf | B101: =IF(ES=TRUE,B73,B75) -> 0.8778216027 | C101: =IF(B122=TRUE,0,IF(B101>1,1,B101)) -> 0.8778216027 | D101: SPTIadj | E101: =IF(G101>1,1,G101) -> 0.8462306461 | F101: =E$99+((1-E$99)*C$96) -> 0.8462306461 | G101: =IF(B122=TRUE,0,IF(ES=TRUE,T85,F101)) -> 0.8462306461
A102: SPperf_30 | B102: =IF(ES=TRUE,C73,C75) -> 0.8417814217 | C102: =IF(B122=TRUE,0,IF(B102>1,1,B102)) -> 0.8417814217 | D102: SPTI_30ad
A103: PlantedSphPerf | B103: =D63 -> 0 | C103: =IF(B122=TRUE,0,B103) -> 0
A105: WEIBULL PARAMETERS FOR INGRESS TREES PER STOCKED PLOT AT PERFORMANCE
A106: Site Preparation Group | B106: Nutrient | C106: Index | D106: SPNI | E106: Psi2b | F106: PlantedTph | G106: LnB | H106: TppB | I106: Psi2c | J106: LnC | K106: TppC
A107: =MSPrep -> 1 | B107: =Nutrient -> 3 | C107: =INDEX(A109:C117,MATCH(A107&B107,A109:A117&B109:B117,0),3) -> 3 | H107: =LOOKUP(C107,C109:C117,H109:H117) -> 10.20703086 | K107: =LOOKUP(C107,C109:C117,K109:K117) -> 1.331707238
A108: Site Preparation Group | B108: Nutrient | C108: Index | D108: SPNI | E108: Psi2b | F108: PlantedTph | G108: LnB | H108: TppB | I108: Psi2c | J108: LnC | K108: TppC
A109: 1 | B109: 1 | C109: 1 | D109: =$C$96 -> 0.8462306461 | E109: =(D109-LnBj)^2 -> 0.00475557071 | F109: =H$12 -> 0 | G109: =LnBa+LnBb*D109+LnBc*E109+LnBd*(YSHpa-1)+LnBe*1+LnBf*0+LnBg*1+LnBh*0+LnBi*H12 -> 2.300793883 | H109: =EXP(G109) -> 9.982103928 | I109: =(D109-LnCg)^2 -> 0.004141005653 | J109: =LnCa+LnCb*D109+LnCc*I109+LnCd*(YSHpa-1)+LnCe*1+LnCf*0 -> 0.2864617566 | K109: =EXP(J109) -> 1.331707238
A110: 1 | B110: 2 | C110: 2 | D110: =$C$96 -> 0.8462306461 | E110: 0.00475557071 | F110: =H$12 -> 0 | G110: =LnBa+LnBb*D110+LnBc*E110+LnBd*(YSHpa-1)+LnBe*1+LnBf*0+LnBg*0+LnBh*1+LnBi*H12 -> 2.613604983 | H110: 13.64816367 | I110: 0.004141005653 | J110: =LnCa+LnCb*D110+LnCc*I110+LnCd*(YSHpa-1)+LnCe*1+LnCf*0 -> 0.2864617566 | K110: 1.331707238
A111: 1 | B111: 3 | C111: 3 | D111: 0.8462306461 | E111: 0.00475557071 | F111: 0 | G111: =LnBa+LnBb*D111+LnBc*E111+LnBd*(YSHpa-1)+LnBe*1+LnBf*0+LnBg*(-1)+LnBh*(-1)+LnBi*H12 -> 2.323076783 | H111: 10.20703086 | I111: 0.004141005653 | J111: =LnCa+LnCb*D111+LnCc*I111+LnCd*(YSHpa-1)+LnCe*1+LnCf*0 -> 0.2864617566 | K111: 1.331707238
A112: 2 | B112: 1 | C112: 4 | D112: 0.8462306461 | E112: 0.00475557071 | F112: 0 | G112: =LnBa+LnBb*D112+LnBc*E112+LnBd*(YSHpa-1)+LnBe*0+LnBf*1+LnBg*1+LnBh*0+LnBi*H12 -> 2.427052483 | H112: 11.32545087 | I112: 0.004141005653 | J112: =LnCa+LnCb*D112+LnCc*I112+LnCd*(YSHpa-1)+LnCe*0+LnCf*1 -> 0.4539810566 | K112: 1.574568169
A113: 2 | B113: 2 | C113: 5 | D113: 0.8462306461 | E113: 0.00475557071 | F113: 0 | G113: =LnBa+LnBb*D113+LnBc*E113+LnBd*(YSHpa-1)+LnBe*0+LnBf*1+LnBg*0+LnBh*1+LnBi*H12 -> 2.739863583 | H113: 15.48487255 | I113: 0.004141005653 | J113: =LnCa+LnCb*D113+LnCc*I113+LnCd*(YSHpa-1)+LnCe*0+LnCf*1 -> 0.4539810566 | K113: 1.574568169
A114: 2 | B114: 3 | C114: 6 | D114: 0.8462306461 | E114: 0.00475557071 | F114: 0 | G114: =LnBa+LnBb*D114+LnBc*E114+LnBd*(YSHpa-1)+LnBe*0+LnBf*1+LnBg*(-1)+LnBh*(-1)+LnBi*H12 -> 2.449335383 | H114: 11.58064746 | I114: 0.004141005653 | J114: =LnCa+LnCb*D114+LnCc*I114+LnCd*(YSHpa-1)+LnCe*0+LnCf*1 -> 0.4539810566 | K114: 1.574568169
A115: 3 | B115: 1 | C115: 7 | D115: 0.8462306461 | E115: 0.00475557071 | F115: 0 | G115: =LnBa+LnBb*D115+LnBc*E115+LnBd*(YSHpa-1)+LnBe*(-1)+LnBf*(-1)+LnBg*1+LnBh*0+LnBi*H12 -> 2.036666083 | H115: 7.665012036 | I115: 0.004141005653 | J115: =LnCa+LnCb*D115+LnCc*I115+LnCd*(YSHpa-1)+LnCe*(-1)+LnCf*(-1) -> 0.2153954566 | K115: 1.240352305
A116: 3 | B116: 2 | C116: 8 | D116: 0.8462306461 | E116: 0.00475557071 | F116: 0 | G116: =LnBa+LnBb*D116+LnBc*E116+LnBd*(YSHpa-1)+LnBe*(-1)+LnBf*(-1)+LnBg*0+LnBh*1+LnBi*H12 -> 2.349477183 | H116: 10.48008912 | I116: 0.004141005653 | J116: =LnCa+LnCb*D116+LnCc*I116+LnCd*(YSHpa-1)+LnCe*(-1)+LnCf*(-1) -> 0.2153954566 | K116: 1.240352305
A117: 3 | B117: 3 | C117: 9 | D117: 0.8462306461 | E117: 0.00475557071 | F117: 0 | G117: =LnBa+LnBb*H98+LnBc*(H98-0.77727)*(H98-0.77727)+LnBd*H100+LnBe*(-1)+LnBf*(-1)+LnBg*(-1)+LnBh*(-1)+LnBi*H105 -> 1.885280055 | H117: 6.588199242 | I117: 0.004141005653 | J117: =LnCa+LnCb*D117+LnCc*I117+LnCd*(YSHpa-1)+LnCe*(-1)+LnCf*(-1) -> 0.2153954566 | K117: 1.240352305
A119: Input Validation
A120: GSSP invalid | B120: =IF(Input!H25=GSSPinvalid,TRUE) -> FALSE
A121: ES Year invalid | B121: =IF(Input!H26=ESYearInvalid,TRUE) -> FALSE
A122: Run invalid | B122: =OR(B120,B121,B123) -> FALSE
A123: PYear invalid | B123: =IF(Input!H24=PYearInvalid,TRUE) -> FALSE
A124: ASPEN STOCKING AT PERFORMANCE
A125: DSI adjusted for Aw only | B125: =IF(Nutrient=3,C95*AwPoor,C95*AwRM) -> 0.20357132
A126: Non weeded | B126: =SPALa+SPALb*B125 -> 0.2451555784
A127: Weeded | B127: =SPAWa+SPAWb*B125 -> 0.2743495376
A128: Selected | B128: =IF(Weed=TRUE,B127,B126) -> 0.2743495376
A129: Selected and adjusted | B129: =IF(B128>1,1,B128) -> 0.2743495376
A131: ASPEN TREES PER STOCKED PLOT
A132: Ln Coeff B - Leave - LF | B132: =LnBAwa+LnBAwb*B125+LnBAwc*1+LnBAwd*(YSHpa-1) -> 1.77939706
A133: Ln Coeff B - Leave - UF | B133: =LnBAwa+LnBAwb*B125+LnBAwc*(-1)+LnBAwd*(YSHpa-1) -> 1.45365626
A134: Ln Coeff B - Leave - selected | B134: =IF(NSR=1,B132,B133) -> 1.77939706
A135: Coeff B - Leave -selected | B135: =EXP(B134) -> 5.926282148

Sheet TppDraws (hidden)
B1: TppB | C1: =IF(Stocking!C97>0,Stocking!H107,0) -> 10.20703086 | N1: TppBAwL | O1: =IF(Stocking!B129>0,Stocking!B135,0) -> 5.926282148
B2: TPPC | C2: =IF(Stocking!C97>0,Stocking!K107,0) -> 1.331707238 | E2: Sph | K2: Chart input: | N2: TppCAwL | O2: =IF(Stocking!B129>0,CAw,0) -> 1.999288
B3: MeanTpp | D3: =(IF(C1>0,AVERAGE(E7:E100006),0)) -> 9.582178399 | E3: =D3*Stocking!$C$97*1000 -> 8411.443199 | F3: (Nn) | K3: =IF(D3>0,D3," ") -> 9.582178399 | L3: =IF(D3>0,"Mean"," ") -> Mean | N3: MeanTppAwL | O3: =IF(O1>0,AVERAGE(L7:L100006),0) -> 5.303998953 | P3: TppAwSelected | Q3: =IF(Weed=FALSE,O3,O5) -> 3.588817
B4: ModalTpp | D4: =IF(C1>0,MODE(E7:E100006),0) -> 4 | E4: =D4*Stocking!$C$97*1000 -> 3511.286411 | K4: =IF(D4>0,D4," ") -> 4 | L4: =IF(D4>0,"Mode"," ") -> Mode | N4: TppAwW | O4: =IF(Stocking!B129>0,NAw,0) -> 3.588817 | P4: SphAw | Q4: =Q3*Stocking!B129*1000 -> 984.5902846
B5: MedianTpp | D5: =IF(C1>0,MEDIAN(E7:E100006),0) -> 8 | E5: =ROUND(D5,1)*Stocking!$C$97*1000 -> 7022.572821 | F5: TotCount | G5: =SUM(F7:F100006) -> 98274 | K5: 8 | L5: =IF(D5>0,"Median"," ") -> Median | N5: TppAwWadjusted | O5: =IF(O4<O3,O4,O3) -> 3.588817
A6: Number | B6: Random0to1 | C6: X | D6: Xint | E6: XIntGT0 | F6: Count | G6: Percent | I6: Random0to1 | J6: X_Aw | K6: Xint_Aw | L6: XIntGT0_Aw
A7: 1 | B7: 0.9906572917 | C7: =$C$1*(-LN(1-B7))^(1/$C$2) -> 32.48782067 | D7: =ROUND(C7,0) -> 32 | E7: =IF(D7>0,D7) -> 32 | F7: =IF(D7=0,0,1) -> 1 | G7: =F7/$G$5*100 -> 0.00101756314 | I7: 0.9906572917 | J7: =$O$1*(-LN(1-I7))^(1/$O$2) -> 12.81465271 | K7: =ROUND(J7,0) -> 13 | L7: =IF(K7>0,K7) -> 13
A8: 2 | B8: 0.4744144043 | C8: =C$1*(-LN(1-B8))^(1/C$2) -> 7.328327058 | D8: =ROUND(C8,0) -> 7 | E8: =IF(D8>0,D8) -> 7 | F8: 1 | G8: =F8/$G$5*100 -> 0.00101756314 | I8: 0.4744144043 | J8: =$O$1*(-LN(1-I8))^(1/$O$2) -> 4.752646065 | K8: =ROUND(J8,0) -> 5 | L8: =IF(K8>0,K8) -> 5
A9: 3 | B9: 0.2439994492 | C9: 3.921276089 | D9: 4 | E9: 4 | F9: 1 | G9: 0.00101756314 | I9: 0.2439994492 | J9: 3.133576236 | K9: 3 | L9: 3
A10: 4 | B10: 0.3608110155 | C10: 5.581032742 | D10: 6 | E10: 6 | F10: 1 | G10: 0.00101756314 | I10: 0.3608110155 | J10: 3.964089184 | K10: 4 | L10: 4
A11: 5 | B11: 0.9506750388 | C11: 23.34476083 | D11: 23 | E11: 23 | F11: 1 | G11: 0.00101756314 | I11: 0.9506750388 | J11: 10.28257935 | K11: 10 | L11: 10
A12: 6 | B12: 0.911760856 | C12: 19.86776754 | D12: 20 | E12: 20 | F12: 1 | G12: 0.00101756314 | I12: 0.911760856 | J12: 9.23525379 | K12: 9 | L12: 9
A13: 7 | B13: 0.4816558513 | C13: 7.446700645 | D13: 7 | E13: 7 | F13: 1 | G13: 0.00101756314 | I13: 0.4816558513 | J13: 4.803644213 | K13: 5 | L13: 5
A14: 8 | B14: 0.09855875735 | C14: 1.862181858 | D14: 2 | E14: 2 | F14: 1 | G14: 0.00101756314 | I14: 0.09855875735 | J14: 1.908195939 | K14: 2 | L14: 2
A15: 9 | B15: 0.03099932936 | C15: 0.7605947044 | D15: 1 | E15: 1 | F15: 1 | G15: 0.00101756314 | I15: 0.03099932936 | J15: 1.050995996 | K15: 1 | L15: 1
A16: 10 | B16: 0.3333264403 | C16: 5.181997421 | D16: 5 | E16: 5 | F16: 1 | G16: 0.00101756314 | I16: 0.3333264403 | J16: 3.772973192 | K16: 4 | L16: 4
A17: 11 | B17: 0.2865458711 | C17: 4.51653353 | D17: 5 | E17: 5 | F17: 1 | G17: 0.00101756314 | I17: 0.2865458711 | J17: 3.44289249 | K17: 3 | L17: 3
A18: 12 | B18: 0.8484788464 | C18: 16.44319073 | D18: 16 | E18: 16 | F18: 1 | G18: 0.00101756314 | I18: 0.8484788464 | J18: 8.141807629 | K18: 8 | L18: 8
A19: 13 | B19: 0.3851000422 | C19: 5.940021418 | D19: 6 | E19: 6 | F19: 1 | G19: 0.00101756314 | I19: 0.3851000422 | J19: 4.132156723 | K19: 4 | L19: 4
A20: 14 | B20: 0.5642595456 | C20: 8.879983324 | D20: 9 | E20: 9 | F20: 1 | G20: 0.00101756314 | I20: 0.5642595456 | J20: 5.401225488 | K20: 5 | L20: 5
A21: 15 | B21: 0.5560307557 | C21: 8.729384374 | D21: 9 | E21: 9 | F21: 1 | G21: 0.00101756314 | I21: 0.5560307557 | J21: 5.340036568 | K21: 5 | L21: 5
A22: 16 | B22: 0.4583007365 | C22: 7.068442111 | D22: 7 | E22: 7 | F22: 1 | G22: 0.00101756314 | I22: 0.4583007365 | J22: 4.63970547 | K22: 5 | L22: 5
A23: 17 | B23: 0.6610084483 | C23: 10.827668 | D23: 11 | E23: 11 | F23: 1 | G23: 0.00101756314 | I23: 0.6610084483 | J23: 6.163932807 | K23: 6 | L23: 6
A24: 18 | B24: 0.7300913632 | C24: 12.49909508 | D24: 12 | E24: 12 | F24: 1 | G24: 0.00101756314 | I24: 0.7300913632 | J24: 6.782415911 | K24: 7 | L24: 7
A25: 19 | B25: 0.7444836969 | C25: 12.88978866 | D25: 13 | E25: 13 | F25: 1 | G25: 0.00101756314 | I25: 0.7444836969 | J25: 6.922902304 | K25: 7 | L25: 7
A26: 20 | B26: 0.5425688829 | C26: 8.487122517 | D26: 8 | E26: 8 | F26: 1 | G26: 0.00101756314 | I26: 0.5425688829 | J26: 5.24085938 | K26: 5 | L26: 5
A27: 21 | B27: 0.7054246189 | C27: 11.8670117 | D27: 12 | E27: 12 | F27: 1 | G27: 0.00101756314 | I27: 0.7054246189 | J27: 6.55198051 | K27: 7 | L27: 7
A28: 22 | B28: 0.02909458036 | C28: 0.7246934654 | D28: 1 | E28: 1 | F28: 1 | G28: 0.00101756314 | I28: 0.02909458036 | J28: 1.017686126 | K28: 1 | L28: 1
A29: 23 | B29: 0.4963137199 | C29: 7.689503879 | D29: 8 | E29: 8 | F29: 1 | G29: 0.00101756314 | I29: 0.4963137199 | J29: 4.907410917 | K29: 5 | L29: 5
A30: 24 | B30: 0.2254278304 | C30: 3.662932998 | D30: 4 | E30: 4 | F30: 1 | G30: 0.00101756314 | I30: 0.2254278304 | J30: 2.994504801 | K30: 3 | L30: 3
A31: 25 | B31: 0.4813394488 | C31: 7.441507235 | D31: 7 | E31: 7 | F31: 1 | G31: 0.00101756314 | I31: 0.4813394488 | J31: 4.801412473 | K31: 5 | L31: 5
A32: 26 | B32: 0.6632074995 | C32: 10.8765469 | D32: 11 | E32: 11 | F32: 1 | G32: 0.00101756314 | I32: 0.6632074995 | J32: 6.182453234 | K32: 6 | L32: 6
A33: 27 | B33: 0.7960265094 | C33: 14.45717891 | D33: 14 | E33: 14 | F33: 1 | G33: 0.00101756314 | I33: 0.7960265094 | J33: 7.472822608 | K33: 7 | L33: 7
A34: 28 | B34: 0.4333973326 | C34: 6.675616687 | D34: 7 | E34: 7 | F34: 1 | G34: 0.00101756314 | I34: 0.4333973326 | J34: 4.466320018 | K34: 4 | L34: 4
A35: 29 | B35: 0.7556172642 | C35: 13.20454991 | D35: 13 | E35: 13 | F35: 1 | G35: 0.00101756314 | I35: 0.7556172642 | J35: 7.035052981 | K35: 7 | L35: 7
A36: 30 | B36: 0.6375099852 | C36: 10.31994137 | D36: 10 | E36: 10 | F36: 1 | G36: 0.00101756314 | I36: 0.6375099852 | J36: 5.969868627 | K36: 6 | L36: 6
A37: 31 | B37: 0.6744478142 | C37: 11.13031425 | D37: 11 | E37: 11 | F37: 1 | G37: 0.00101756314 | I37: 0.6744478142 | J37: 6.278164113 | K37: 6 | L37: 6
A38: 32 | B38: 0.1836384284 | C38: 3.081223711 | D38: 3 | E38: 3 | F38: 1 | G38: 0.00101756314 | I38: 0.1836384284 | J38: 2.668687816 | K38: 3 | L38: 3
A39: 33 | B39: 0.9547618631 | C39: 23.8467999 | D39: 24 | E39: 24 | F39: 1 | G39: 0.00101756314 | I39: 0.9547618631 | J39: 10.42934899 | K39: 10 | L39: 10
A40: 34 | B40: 0.416888208 | C40: 6.420558767 | D40: 6 | E40: 6 | F40: 1 | G40: 0.00101756314 | I40: 0.416888208 | J40: 4.351916333 | K40: 4 | L40: 4
A41: 35 | B41: 0.01486401809 | C41: 0.4352777916 | D41: 0 | E41: FALSE | F41: 0 | G41: 0 | I41: 0.01486401809 | J41: 0.7246853219 | K41: 1 | L41: 1
A42: 36 | B42: 0.4064282829 | C42: 6.260975795 | D42: 6 | E42: 6 | F42: 1 | G42: 0.00101756314 | I42: 0.4064282829 | J42: 4.279565051 | K42: 4 | L42: 4
A43: 37 | B43: 0.9661578553 | C43: 25.50670661 | D43: 26 | E43: 26 | F43: 1 | G43: 0.00101756314 | I43: 0.9661578553 | J43: 10.90744978 | K43: 11 | L43: 11
A44: 38 | B44: 0.210536537 | C44: 3.455920956 | D44: 3 | E44: 3 | F44: 1 | G44: 0.00101756314 | I44: 0.210536537 | J44: 2.880687281 | K44: 3 | L44: 3
A45: 39 | B45: 0.7624603445 | C45: 13.40391494 | D45: 13 | E45: 13 | F45: 1 | G45: 0.00101756314 | I45: 0.7624603445 | J45: 7.105625778 | K45: 7 | L45: 7
A46: 40 | B46: 0.9529831454 | C46: 23.62337883 | D46: 24 | E46: 24 | F46: 1 | G46: 0.00101756314 | I46: 0.9529831454 | J46: 10.3641612 | K46: 10 | L46: 10
A47: 41 | B47: 0.6362513009 | C47: 10.29345889 | D47: 10 | E47: 10 | F47: 1 | G47: 0.00101756314 | I47: 0.6362513009 | J47: 5.959660034 | K47: 6 | L47: 6
A48: 42 | B48: 0.1101759462 | C48: 2.034399736 | D48: 2 | E48: 2 | F48: 1 | G48: 0.00101756314 | I48: 0.1101759462 | J48: 2.023999077 | K48: 2 | L48: 2
A49: 43 | B49: 0.8002031002 | C49: 14.59822924 | D49: 15 | E49: 15 | F49: 1 | G49: 0.00101756314 | I49: 0.8002031002 | J49: 7.521307192 | K49: 8 | L49: 8
A50: 44 | B50: 0.9425730962 | C50: 22.45315085 | D50: 22 | E50: 22 | F50: 1 | G50: 0.00101756314 | I50: 0.9425730962 | J50: 10.01929245 | K50: 10 | L50: 10
A51: 45 | B51: 0.5757035783 | C51: 9.092777056 | D51: 9 | E51: 9 | F51: 1 | G51: 0.00101756314 | I51: 0.5757035783 | J51: 5.48709712 | K51: 5 | L51: 5
A52: 46 | B52: 0.09705655912 | C52: 1.839697383 | D52: 2 | E52: 2 | F52: 1 | G52: 0.00101756314 | I52: 0.09705655912 | J52: 1.892818063 | K52: 2 | L52: 2
A53: 47 | B53: 0.8509023153 | C53: 16.5485805 | D53: 17 | E53: 17 | F53: 1 | G53: 0.00101756314 | I53: 0.8509023153 | J53: 8.176529484 | K53: 8 | L53: 8
A54: 48 | B54: 0.7780148527 | C54: 13.87540811 | D54: 14 | E54: 14 | F54: 1 | G54: 0.00101756314 | I54: 0.7780148527 | J54: 7.271149702 | K54: 7 | L54: 7
A55: 49 | B55: 0.9281348949 | C55: 21.11631913 | D55: 21 | E55: 21 | F55: 1 | G55: 0.00101756314 | I55: 0.9281348949 | J55: 9.617887402 | K55: 10 | L55: 10
A56: 50 | B56: 0.1241162052 | C56: 2.237748336 | D56: 2 | E56: 2 | F56: 1 | G56: 0.00101756314 | I56: 0.1241162052 | J56: 2.156600903 | K56: 2 | L56: 2
A57: 51 | B57: 0.666167636 | C57: 10.94273284 | D57: 11 | E57: 11 | F57: 1 | G57: 0.00101756314 | I57: 0.666167636 | J57: 6.207487143 | K57: 6 | L57: 6
A58: 52 | B58: 0.6346439117 | C58: 10.25973994 | D58: 10 | E58: 10 | F58: 1 | G58: 0.00101756314 | I58: 0.6346439117 | J58: 5.946649195 | K58: 6 | L58: 6
A59: 53 | B59: 0.4982019822 | C59: 7.721105757 | D59: 8 | E59: 8 | F59: 1 | G59: 0.00101756314 | I59: 0.4982019822 | J59: 4.920835564 | K59: 5 | L59: 5
A60: 54 | B60: 0.1165339282 | C60: 2.127544423 | D60: 2 | E60: 2 | F60: 1 | G60: 0.00101756314 | I60: 0.1165339282 | J60: 2.085262229 | K60: 2 | L60: 2
A61: 55 | B61: 0.07006200346 | C61: 1.424710241 | D61: 1 | E61: 1 | F61: 1 | G61: 0.00101756314 | I61: 0.07006200346 | J61: 1.596465657 | K61: 2 | L61: 2
A62: 56 | B62: 0.1424669011 | C62: 2.501211649 | D62: 3 | E62: 3 | F62: 1 | G62: 0.00101756314 | I62: 0.1424669011 | J62: 2.322566066 | K62: 2 | L62: 2
A63: 57 | B63: 0.41354721 | C63: 6.369422335 | D63: 6 | E63: 6 | F63: 1 | G63: 0.00101756314 | I63: 0.41354721 | J63: 4.32879831 | K63: 4 | L63: 4
A64: 58 | B64: 0.2161645114 | C64: 3.534166113 | D64: 4 | E64: 4 | F64: 1 | G64: 0.00101756314 | I64: 0.2161645114 | J64: 2.923968034 | K64: 3 | L64: 3
A65: 59 | B65: 0.56177916 | C65: 8.834381379 | D65: 9 | E65: 9 | F65: 1 | G65: 0.00101756314 | I65: 0.56177916 | J65: 5.38273408 | K65: 5 | L65: 5
A66: 60 | B66: 0.4251143782 | C66: 6.547145422 | D66: 7 | E66: 7 | F66: 1 | G66: 0.00101756314 | I66: 0.4251143782 | J66: 4.408881525 | K66: 4 | L66: 4
A67: 61 | B67: 0.4991901772 | C67: 7.73767442 | D67: 8 | E67: 8 | F67: 1 | G67: 0.00101756314 | I67: 0.4991901772 | J67: 4.927866688 | K67: 5 | L67: 5
A68: 62 | B68: 0.5853481129 | C68: 9.275293289 | D68: 9 | E68: 9 | F68: 1 | G68: 0.00101756314 | I68: 0.5853481129 | J68: 5.560217093 | K68: 6 | L68: 6
A69: 63 | B69: 0.8075091995 | C69: 14.85107936 | D69: 15 | E69: 15 | F69: 1 | G69: 0.00101756314 | I69: 0.8075091995 | J69: 7.607832196 | K69: 8 | L69: 8
A70: 64 | B70: 0.4702519519 | C70: 7.260737517 | D70: 7 | E70: 7 | F70: 1 | G70: 0.00101756314 | I70: 0.4702519519 | J70: 4.723403564 | K70: 5 | L70: 5
A71: 65 | B71: 0.508816547 | C71: 7.900186498 | D71: 8 | E71: 8 | F71: =IF(D71=0,0,1) -> 1 | G71: 0.00101756314 | I71: 0.508816547 | J71: 4.996566589 | K71: 5 | L71: 5
A72: 66 | B72: 0.4667404643 | C72: =C$1*(-LN(1-B72))^(1/C$2) -> 7.203969041 | D72: =ROUND(C72,0) -> 7 | E72: =IF(D72>0,D72) -> 7 | F72: 1 | G72: =F72/$G$5*100 -> 0.00101756314 | I72: 0.4667404643 | J72: =$O$1*(-LN(1-I72))^(1/$O$2) -> 4.698772483 | K72: =ROUND(J72,0) -> 5 | L72: =IF(K72>0,K72) -> 5
A73: 67 | B73: 0.2414268425 | C73: 3.885459941 | D73: 4 | E73: 4 | F73: 1 | G73: 0.00101756314 | I73: 0.2414268425 | J73: 3.114482558 | K73: 3 | L73: 3
A74: 68 | B74: 0.1673893532 | C74: 2.853640221 | D74: 3 | E74: 3 | F74: 1 | G74: 0.00101756314 | I74: 0.1673893532 | J74: 2.535718013 | K74: 3 | L74: 3
A75: 69 | B75: 0.6898802851 | C75: 11.49008681 | D75: 11 | E75: 11 | F75: 1 | G75: 0.00101756314 | I75: 0.6898802851 | J75: 6.412616917 | K75: 6 | L75: 6
A76: 70 | B76: 0.06058997821 | C76: 1.272692848 | D76: 1 | E76: 1 | F76: 1 | G76: 0.00101756314 | I76: 0.06058997821 | J76: 1.480877634 | K76: 1 | L76: 1
A77: 71 | B77: 0.2695749137 | C77: 4.278282858 | D77: 4 | E77: 4 | F77: 1 | G77: 0.00101756314 | I77: 0.2695749137 | J77: 3.320829053 | K77: 3 | L77: 3
A78: 72 | B78: 0.7929889272 | C78: 14.35611716 | D78: 14 | E78: 14 | F78: 1 | G78: 0.00101756314 | I78: 0.7929889272 | J78: 7.437986512 | K78: 7 | L78: 7
A79: 73 | B79: 0.103559097 | C79: 1.936655906 | D79: 2 | E79: 2 | F79: 1 | G79: 0.00101756314 | I79: 0.103559097 | J79: 1.958694669 | K79: 2 | L79: 2
A80: 74 | B80: 0.1454393262 | C80: 2.54352545 | D80: 3 | E80: 3 | F80: 1 | G80: 0.00101756314 | I80: 0.1454393262 | J80: 2.348664465 | K80: 2 | L80: 2
A81: 75 | B81: 0.4722892279 | C81: 7.293777969 | D81: 7 | E81: 7 | F81: 1 | G81: 0.00101756314 | I81: 0.4722892279 | J81: 4.737709764 | K81: 5 | L81: 5
A82: 76 | B82: 0.5061437893 | C82: 7.854860431 | D82: 8 | E82: 8 | F82: 1 | G82: 0.00101756314 | I82: 0.5061437893 | J82: 4.977453423 | K82: 5 | L82: 5
A83: 77 | B83: 0.9042342593 | C83: 19.36260401 | D83: 19 | E83: 19 | F83: 1 | G83: 0.00101756314 | I83: 0.9042342593 | J83: 9.078171973 | K83: 9 | L83: 9
A84: 78 | B84: 0.1866292174 | C84: 3.12298411 | D84: 3 | E84: 3 | F84: 1 | G84: 0.00101756314 | I84: 0.1866292174 | J84: 2.692725612 | K84: 3 | L84: 3
A85: 79 | B85: 0.7071012798 | C85: 11.90860454 | D85: 12 | E85: 12 | F85: 1 | G85: 0.00101756314 | I85: 0.7071012798 | J85: 6.567267762 | K85: 7 | L85: 7
A86: 80 | B86: 0.3103429014 | C86: 4.853198423 | D86: 5 | E86: 5 | F86: 1 | G86: 0.00101756314 | I86: 0.3103429014 | J86: 3.611774984 | K86: 4 | L86: 4
A87: 81 | B87: 0.8389914371 | C87: 16.0441849 | D87: 16 | E87: 16 | F87: 1 | G87: 0.00101756314 | I87: 0.8389914371 | J87: 8.009671232 | K87: 8 | L87: 8
A88: 82 | B88: 0.2560323073 | C88: 4.088998245 | D88: 4 | E88: 4 | F88: 1 | G88: 0.00101756314 | I88: 0.2560323073 | J88: 3.222226942 | K88: 3 | L88: 3
A89: 83 | B89: 0.7677892771 | C89: 13.56248153 | D89: 14 | E89: 14 | F89: 1 | G89: 0.00101756314 | I89: 0.7677892771 | J89: 7.161506454 | K89: 7 | L89: 7
A90: 84 | B90: 0.3808564549 | C90: 5.876826521 | D90: 6 | E90: 6 | F90: 1 | G90: 0.00101756314 | I90: 0.3808564549 | J90: 4.102822232 | K90: 4 | L90: 4
A91: 85 | B91: 0.008572146768 | C91: 0.2872278487 | D91: 0 | E91: FALSE | F91: 0 | G91: 0 | I91: 0.008572146768 | J91: 0.5494060852 | K91: 1 | L91: 1
A92: 86 | B92: 0.5061673713 | C92: 7.855259653 | D92: 8 | E92: 8 | F92: 1 | G92: 0.00101756314 | I92: 0.5061673713 | J92: 4.977621928 | K92: 5 | L92: 5
A93: 87 | B93: 0.7542609463 | C93: 13.16558272 | D93: 13 | E93: 13 | F93: 1 | G93: 0.00101756314 | I93: 0.7542609463 | J93: 7.021217621 | K93: 7 | L93: 7
A94: 88 | B94: 0.8468580878 | C94: 16.37352219 | D94: 16 | E94: 16 | F94: 1 | G94: 0.00101756314 | I94: 0.8468580878 | J94: 8.118813734 | K94: 8 | L94: 8
A95: 89 | B95: 0.8918873184 | C95: 18.60602671 | D95: 19 | E95: 19 | F95: 1 | G95: 0.00101756314 | I95: 0.8918873184 | J95: 8.840326243 | K95: 9 | L95: 9
A96: 90 | B96: 0.5834715621 | C96: 9.2395451 | D96: 9 | E96: 9 | F96: 1 | G96: 0.00101756314 | I96: 0.5834715621 | J96: 5.5459337 | K96: 6 | L96: 6
A97: 91 | B97: 0.3759218569 | C97: 5.803602084 | D97: 6 | E97: 6 | F97: 1 | G97: 0.00101756314 | I97: 0.3759218569 | J97: 4.06870005 | K97: 4 | L97: 4
A98: 92 | B98: 0.9771968283 | C98: 27.70900647 | D98: 28 | E98: 28 | F98: 1 | G98: 0.00101756314 | I98: 0.9771968283 | J98: 11.52604259 | K98: 12 | L98: 12
A99: 93 | B99: 0.840162846 | C99: 16.09233149 | D99: 16 | E99: 16 | F99: 1 | G99: 0.00101756314 | I99: 0.840162846 | J99: 8.025673393 | K99: 8 | L99: 8
A100: 94 | B100: 0.7476716442 | C100: 12.97874834 | D100: 13 | E100: 13 | F100: 1 | G100: 0.00101756314 | I100: 0.7476716442 | J100: 6.954690792 | K100: 7 | L100: 7
A101: 95 | B101: 0.9298729016 | C101: 21.2635849 | D101: 21 | E101: 21 | F101: 1 | G101: 0.00101756314 | I101: 0.9298729016 | J101: 9.662513848 | K101: 10 | L101: 10
A102: 96 | B102: 0.1549667587 | C102: 2.678597242 | D102: 3 | E102: 3 | F102: 1 | G102: 0.00101756314 | I102: 0.1549667587 | J102: 2.431022184 | K102: 2 | L102: 2
A103: 97 | B103: 0.4608565875 | C103: 7.109350352 | D103: 7 | E103: 7 | F103: 1 | G103: 0.00101756314 | I103: 0.4608565875 | J103: 4.657574137 | K103: 5 | L103: 5
A104: 98 | B104: 0.6175821772 | C104: 9.908503956 | D104: 10 | E104: 10 | F104: 1 | G104: 0.00101756314 | I104: 0.6175821772 | J104: 5.810259395 | K104: 6 | L104: 6
A105: 99 | B105: 0.4082252907 | C105: 6.288285638 | D105: 6 | E105: 6 | F105: 1 | G105: 0.00101756314 | I105: 0.4082252907 | J105: 4.291989995 | K105: 4 | L105: 4
A106: 100 | B106: 0.9219901458 | C106: 20.62027837 | D106: 21 | E106: 21 | F106: 1 | G106: 0.00101756314 | I106: 0.9219901458 | J106: 9.466799344 | K106: 9 | L106: 9
A107: 101 | B107: 0.1808000608 | C107: 3.041559395 | D107: 3 | E107: 3 | F107: 1 | G107: 0.00101756314 | I107: 0.1808000608 | J107: 2.645755619 | K107: 3 | L107: 3
A108: 102 | B108: 0.6276547132 | C108: 10.11440729 | D108: 10 | E108: 10 | F108: 1 | G108: 0.00101756314 | I108: 0.6276547132 | J108: 5.890406651 | K108: 6 | L108: 6
A109: 103 | B109: 0.6934286567 | C109: 11.57478993 | D109: 12 | E109: 12 | F109: 1 | G109: 0.00101756314 | I109: 0.6934286567 | J109: 6.444066269 | K109: 6 | L109: 6
A110: 104 | B110: 0.7176944957 | C110: 12.17587951 | D110: 12 | E110: 12 | F110: 1 | G110: 0.00101756314 | I110: 0.7176944957 | J110: 6.665081809 | K110: 7 | L110: 7
A111: 105 | B111: 0.4996963894 | C111: 7.746169973 | D111: 8 | E111: 8 | F111: 1 | G111: 0.00101756314 | I111: 0.4996963894 | J111: 4.931469934 | K111: 5 | L111: 5
A112: 106 | B112: 0.5615983752 | C112: 8.831064704 | D112: 9 | E112: 9 | F112: 1 | G112: 0.00101756314 | I112: 0.5615983752 | J112: 5.38138794 | K112: 5 | L112: 5
A113: 107 | B113: 0.1231300796 | C113: 2.223465416 | D113: 2 | E113: 2 | F113: 1 | G113: 0.00101756314 | I113: 0.1231300796 | J113: 2.14742238 | K113: 2 | L113: 2
A114: 108 | B114: 0.2826796527 | C114: 4.462137997 | D114: 4 | E114: 4 | F114: 1 | G114: 0.00101756314 | I114: 0.2826796527 | J114: 3.415217215 | K114: 3 | L114: 3
A115: 109 | B115: 0.1381348251 | C115: 2.439377939 | D115: 2 | E115: 2 | F115: 1 | G115: 0.00101756314 | I115: 0.1381348251 | J115: 2.284161306 | K115: 2 | L115: 2
A116: 110 | B116: 0.9200784526 | C116: 20.47314713 | D116: 20 | E116: 20 | F116: 1 | G116: 0.00101756314 | I116: 0.9200784526 | J116: 9.42175237 | K116: 9 | L116: 9
A117: 111 | B117: 0.4972502625 | C117: 7.705168354 | D117: 8 | E117: 8 | F117: 1 | G117: 0.00101756314 | I117: 0.4972502625 | J117: 4.914067568 | K117: 5 | L117: 5
A118: 112 | B118: 0.8474163695 | C118: 16.39744748 | D118: 16 | E118: 16 | F118: 1 | G118: 0.00101756314 | I118: 0.8474163695 | J118: 8.12671388 | K118: 8 | L118: 8
A119: 113 | B119: 0.3309420762 | C119: 5.147696353 | D119: 5 | E119: 5 | F119: 1 | G119: 0.00101756314 | I119: 0.3309420762 | J119: 3.756319572 | K119: 4 | L119: 4
A120: 114 | B120: 0.5928007128 | C120: 9.418423251 | D120: 9 | E120: 9 | F120: 1 | G120: 0.00101756314 | I120: 0.5928007128 | J120: 5.617222409 | K120: 6 | L120: 6
A121: 115 | B121: 0.7925421148 | C121: 14.34135704 | D121: 14 | E121: 14 | F121: 1 | G121: 0.00101756314 | I121: 0.7925421148 | J121: 7.43289184 | K121: 7 | L121: 7
A122: 116 | B122: 0.6005325471 | C122: 9.568931574 | D122: 10 | E122: 10 | F122: 1 | G122: 0.00101756314 | I122: 0.6005325471 | J122: 5.676855219 | K122: 6 | L122: 6
A123: 117 | B123: 0.3701787217 | C123: 5.71872246 | D123: 6 | E123: 6 | F123: 1 | G123: 0.00101756314 | I123: 0.3701787217 | J123: 4.028966169 | K123: 4 | L123: 4
A124: 118 | B124: 0.2642800929 | C124: 4.204200741 | D124: 4 | E124: 4 | F124: 1 | G124: 0.00101756314 | I124: 0.2642800929 | J124: 3.282415253 | K124: 3 | L124: 3
A125: 119 | B125: 0.07902788626 | C125: 1.565154256 | D125: 2 | E125: 2 | F125: 1 | G125: 0.00101756314 | I125: 0.07902788626 | J125: 1.699638131 | K125: 2 | L125: 2
A126: 120 | B126: 0.6772086914 | C126: 11.19368385 | D126: 11 | E126: 11 | F126: 1 | G126: 0.00101756314 | I126: 0.6772086914 | J126: 6.301950455 | K126: 6 | L126: 6
A127: 121 | B127: 0.2805157343 | C127: 4.431725139 | D127: 4 | E127: 4 | F127: 1 | G127: 0.00101756314 | I127: 0.2805157343 | J127: 3.399694725 | K127: 3 | L127: 3
A128: 122 | B128: 0.9255343085 | C128: 20.9018773 | D128: 21 | E128: 21 | F128: 1 | G128: 0.00101756314 | I128: 0.9255343085 | J128: 9.552718048 | K128: 10 | L128: 10
A129: 123 | B129: 0.602111017 | C129: 9.599918019 | D129: 10 | E129: 10 | F129: 1 | G129: 0.00101756314 | I129: 0.602111017 | J129: 5.689093348 | K129: 6 | L129: 6
A130: 124 | B130: 0.4800802142 | C130: 7.420857691 | D130: 7 | E130: 7 | F130: 1 | G130: 0.00101756314 | I130: 0.4800802142 | J130: 4.792533692 | K130: 5 | L130: 5
A131: 125 | B131: 0.851062948 | C131: 16.55561842 | D131: 17 | E131: 17 | F131: 1 | G131: 0.00101756314 | I131: 0.851062948 | J131: 8.178845574 | K131: 8 | L131: 8
A132: 126 | B132: 0.2473269957 | C132: 3.967622597 | D132: 4 | E132: 4 | F132: 1 | G132: 0.00101756314 | I132: 0.2473269957 | J132: 3.158197475 | K132: 3 | L132: 3
A133: 127 | B133: 0.2158445935 | C133: 3.529718829 | D133: 4 | E133: 4 | F133: 1 | G133: 0.00101756314 | I133: 0.2158445935 | J133: 2.921516684 | K133: 3 | L133: 3
A134: 128 | B134: 0.43615773 | C134: 6.718664355 | D134: 7 | E134: 7 | F134: 1 | G134: 0.00101756314 | I134: 0.43615773 | J134: 4.485483526 | K134: 4 | L134: 4
A135: 129 | B135: 0.1933816541 | C135: 3.217157064 | D135: 3 | E135: 3 | F135: =IF(D135=0,0,1) -> 1 | G135: 0.00101756314 | I135: 0.1933816541 | J135: 2.74654254 | K135: 3 | L135: 3
A136: 130 | B136: 0.6348240794 | C136: =C$1*(-LN(1-B136))^(1/C$2) -> 10.26351384 | D136: =ROUND(C136,0) -> 10 | E136: =IF(D136>0,D136) -> 10 | F136: 1 | G136: =F136/$G$5*100 -> 0.00101756314 | I136: 0.6348240794 | J136: =$O$1*(-LN(1-I136))^(1/$O$2) -> 5.948106104 | K136: =ROUND(J136,0) -> 6 | L136: =IF(K136>0,K136) -> 6
A137: 131 | B137: 0.3065738005 | C137: 4.799642502 | D137: 5 | E137: 5 | F137: 1 | G137: 0.00101756314 | I137: 0.3065738005 | J137: 3.585177725 | K137: 4 | L137: 4
A138: 132 | B138: 0.9244599815 | C138: 20.81526095 | D138: 21 | E138: 21 | F138: 1 | G138: 0.00101756314 | I138: 0.9244599815 | J138: 9.526331908 | K138: 10 | L138: 10
A139: 133 | B139: 0.7607859942 | C139: 13.35470103 | D139: 13 | E139: 13 | F139: 1 | G139: 0.00101756314 | I139: 0.7607859942 | J139: 7.088237424 | K139: 7 | L139: 7
A140: 134 | B140: 0.609101219 | C140: 9.738230812 | D140: 10 | E140: 10 | F140: 1 | G140: 0.00101756314 | I140: 0.609101219 | J140: 5.743560167 | K140: 6 | L140: 6
A141: 135 | B141: 0.7766350978 | C141: 13.83249268 | D141: 14 | E141: 14 | F141: 1 | G141: 0.00101756314 | I141: 0.7766350978 | J141: 7.256162217 | K141: 7 | L141: 7
A142: 136 | B142: 0.722680297 | C142: 12.30446813 | D142: 12 | E142: 12 | F142: 1 | G142: 0.00101756314 | I142: 0.722680297 | J142: 6.711885298 | K142: 7 | L142: 7
A143: 137 | B143: 0.8628135083 | C143: 17.08931789 | D143: 17 | E143: 17 | F143: 1 | G143: 0.00101756314 | I143: 0.8628135083 | J143: 8.353534797 | K143: 8 | L143: 8
A144: 138 | B144: 0.1893139601 | C144: 3.160444177 | D144: 3 | E144: 3 | F144: 1 | G144: 0.00101756314 | I144: 0.1893139601 | J144: 2.71419691 | K144: 3 | L144: 3
A145: 139 | B145: 0.06748733803 | C145: 1.383792553 | D145: 1 | E145: 1 | F145: 1 | G145: 0.00101756314 | I145: 0.06748733803 | J145: 1.565776718 | K145: 2 | L145: 2
A146: 140 | B146: 0.8810167458 | C146: 18.00100979 | D146: 18 | E146: 18 | F146: 1 | G146: 0.00101756314 | I146: 0.8810167458 | J146: 8.64779487 | K146: 9 | L146: 9
A147: 141 | B147: 0.8773502199 | C147: 17.80794828 | D147: 18 | E147: 18 | F147: 1 | G147: 0.00101756314 | I147: 0.8773502199 | J147: 8.585905184 | K147: 9 | L147: 9
A148: 142 | B148: 0.6159726317 | C148: 9.875976036 | D148: 10 | E148: 10 | F148: 1 | G148: 0.00101756314 | I148: 0.6159726317 | J148: 5.797547349 | K148: 6 | L148: 6
A149: 143 | B149: 0.7754170923 | C149: 13.79479155 | D149: 14 | E149: 14 | F149: 1 | G149: 0.00101756314 | I149: 0.7754170923 | J149: 7.242982924 | K149: 7 | L149: 7
A150: 144 | B150: 0.3547742475 | C150: 5.492778365 | D150: 5 | E150: 5 | F150: 1 | G150: 0.00101756314 | I150: 0.3547742475 | J150: 3.922224128 | K150: 4 | L150: 4
A151: 145 | B151: 0.9125616476 | C151: 19.92376625 | D151: 20 | E151: 20 | F151: 1 | G151: 0.00101756314 | I151: 0.9125616476 | J151: 9.252584126 | K151: 9 | L151: 9
A152: 146 | B152: 0.9139508986 | C152: 20.02201708 | D152: 20 | E152: 20 | F152: 1 | G152: 0.00101756314 | I152: 0.9139508986 | J152: 9.282951298 | K152: 9 | L152: 9
A153: 147 | B153: 0.2476385857 | C153: 3.971963712 | D153: 4 | E153: 4 | F153: 1 | G153: 0.00101756314 | I153: 0.2476385857 | J153: 3.160498728 | K153: 3 | L153: 3
A154: 148 | B154: 0.5045220505 | C154: 7.827435469 | D154: 8 | E154: 8 | F154: 1 | G154: 0.00101756314 | I154: 0.5045220505 | J154: 4.96587094 | K154: 5 | L154: 5
A155: 149 | B155: 0.0217025117 | C155: 0.5798687837 | D155: 1 | E155: 1 | F155: 1 | G155: 0.00101756314 | I155: 0.0217025117 | J155: 0.8772429233 | K155: 1 | L155: 1
A156: 150 | B156: 0.3471210584 | C156: 5.381402026 | D156: 5 | E156: 5 | F156: 1 | G156: 0.00101756314 | I156: 0.3471210584 | J156: 3.86906868 | K156: 4 | L156: 4
A157: 151 | B157: 0.04844280058 | C157: 1.070731507 | D157: 1 | E157: 1 | F157: 1 | G157: 0.00101756314 | I157: 0.04844280058 | J157: 1.319877762 | K157: 1 | L157: 1
A158: 152 | B158: 0.1546974491 | C158: 2.674789906 | D158: 3 | E158: 3 | F158: 1 | G158: 0.00101756314 | I158: 0.1546974491 | J158: 2.428720004 | K158: 2 | L158: 2
A159: 153 | B159: 0.109114276 | C159: 2.018774723 | D159: 2 | E159: 2 | F159: 1 | G159: 0.00101756314 | I159: 0.109114276 | J159: 2.013631285 | K159: 2 | L159: 2
A160: 154 | B160: 0.4703421842 | C160: 7.262199261 | D160: 7 | E160: 7 | F160: 1 | G160: 0.00101756314 | I160: 0.4703421842 | J160: 4.724036944 | K160: 5 | L160: 5
A161: 155 | B161: 0.6203506975 | C161: 9.9646922 | D161: 10 | E161: 10 | F161: 1 | G161: 0.00101756314 | I161: 0.6203506975 | J161: 5.832185221 | K161: 6 | L161: 6
A162: 156 | B162: 0.2458000358 | C162: 3.946351937 | D162: 4 | E162: 4 | F162: 1 | G162: 0.00101756314 | I162: 0.2458000358 | J162: 3.146909585 | K162: 3 | L162: 3
A163: 157 | B163: 0.9569358819 | C163: 24.13111504 | D163: 24 | E163: 24 | F163: 1 | G163: 0.00101756314 | I163: 0.9569358819 | J163: 10.51200981 | K163: 11 | L163: 11
A164: 158 | B164: 0.3261876234 | C164: 5.079437334 | D164: 5 | E164: 5 | F164: 1 | G164: 0.00101756314 | I164: 0.3261876234 | J164: 3.723068232 | K164: 4 | L164: 4
A165: 159 | B165: 0.3874953229 | C165: 5.975785341 | D165: 6 | E165: 6 | F165: 1 | G165: 0.00101756314 | I165: 0.3874953229 | J165: 4.14871182 | K165: 4 | L165: 4
A166: 160 | B166: 0.6055093484 | C166: 9.66693548 | D166: 10 | E166: 10 | F166: 1 | G166: 0.00101756314 | I166: 0.6055093484 | J166: 5.715516948 | K166: 6 | L166: 6
A167: 161 | B167: 0.1010549692 | C167: 1.899429232 | D167: 2 | E167: 2 | F167: 1 | G167: 0.00101756314 | I167: 0.1010549692 | J167: 1.93353497 | K167: 2 | L167: 2
A168: 162 | B168: 0.2886543307 | C168: 4.546230721 | D168: 5 | E168: 5 | F168: 1 | G168: 0.00101756314 | I168: 0.2886543307 | J168: 3.457954792 | K168: 3 | L168: 3
A169: 163 | B169: 0.6199582861 | C169: 9.956709596 | D169: 10 | E169: 10 | F169: 1 | G169: 0.00101756314 | I169: 0.6199582861 | J169: 5.829072763 | K169: 6 | L169: 6
A170: 164 | B170: 0.4184025829 | C170: 6.443789235 | D170: 6 | E170: 6 | F170: 1 | G170: 0.00101756314 | I170: 0.4184025829 | J170: 4.362398162 | K170: 4 | L170: 4
A171: 165 | B171: 0.6105269366 | C171: 9.766663386 | D171: 10 | E171: 10 | F171: 1 | G171: 0.00101756314 | I171: 0.6105269366 | J171: 5.754724666 | K171: 6 | L171: 6
A172: 166 | B172: 0.6478427612 | C172: 10.54001362 | D172: 11 | E172: 11 | F172: 1 | G172: 0.00101756314 | I172: 0.6478427612 | J172: 6.054367667 | K172: 6 | L172: 6
A173: 167 | B173: 0.6631459975 | C173: 10.87517654 | D173: 11 | E173: 11 | F173: 1 | G173: 0.00101756314 | I173: 0.6631459975 | J173: 6.181934378 | K173: 6 | L173: 6
A174: 168 | B174: 0.1072222859 | C174: 1.990875904 | D174: 2 | E174: 2 | F174: 1 | G174: 0.00101756314 | I174: 0.1072222859 | J174: 1.995052454 | K174: 2 | L174: 2
A175: 169 | B175: 0.1308295972 | C175: 2.334621283 | D175: 2 | E175: 2 | F175: 1 | G175: 0.00101756314 | I175: 0.1308295972 | J175: 2.218346151 | K175: 2 | L175: 2
A176: 170 | B176: 0.2161040994 | C176: 3.53332631 | D176: 4 | E176: 4 | F176: 1 | G176: 0.00101756314 | I176: 0.2161040994 | J176: 2.923505212 | K176: 3 | L176: 3
A177: 171 | B177: 0.6847925321 | C177: 11.36995811 | D177: 11 | E177: 11 | F177: 1 | G177: 0.00101756314 | I177: 0.6847925321 | J177: 6.367881333 | K177: 6 | L177: 6
A178: 172 | B178: 0.2208613225 | C178: 3.599454895 | D178: 4 | E178: 4 | F178: 1 | G178: 0.00101756314 | I178: 0.2208613225 | J178: 2.959837673 | K178: 3 | L178: 3
A179: 173 | B179: 0.1530299334 | C179: 2.651202431 | D179: 3 | E179: 3 | F179: 1 | G179: 0.00101756314 | I179: 0.1530299334 | J179: 2.414432904 | K179: 2 | L179: 2
A180: 174 | B180: 0.7080852039 | C180: 11.93310113 | D180: 12 | E180: 12 | F180: 1 | G180: 0.00101756314 | I180: 0.7080852039 | J180: 6.576263023 | K180: 7 | L180: 7
A181: 175 | B181: 0.7972202906 | C181: 14.49724412 | D181: 14 | E181: 14 | F181: 1 | G181: 0.00101756314 | I181: 0.7972202906 | J181: 7.486610603 | K181: 7 | L181: 7
A182: 176 | B182: 0.4914002817 | C182: 7.607624188 | D182: 8 | E182: 8 | F182: 1 | G182: 0.00101756314 | I182: 0.4914002817 | J182: 4.872541976 | K182: 5 | L182: 5
A183: 177 | B183: 0.04514683666 | C183: 1.014242491 | D183: 1 | E183: 1 | F183: 1 | G183: 0.00101756314 | I183: 0.04514683666 | J183: 1.273077221 | K183: 1 | L183: 1
A184: 178 | B184: 0.6347523584 | C184: 10.26201136 | D184: 10 | E184: 10 | F184: 1 | G184: 0.00101756314 | I184: 0.6347523584 | J184: 5.947526096 | K184: 6 | L184: 6
A185: 179 | B185: 0.8004950009 | C185: 14.60818003 | D185: 15 | E185: 15 | F185: 1 | G185: 0.00101756314 | I185: 0.8004950009 | J185: 7.524721754 | K185: 8 | L185: 8
A186: 180 | B186: 0.3757319131 | C186: 5.800789011 | D186: 6 | E186: 6 | F186: 1 | G186: 0.00101756314 | I186: 0.3757319131 | J186: 4.067386316 | K186: 4 | L186: 4
A187: 181 | B187: 0.7500489333 | C187: 13.04568769 | D187: 13 | E187: 13 | F187: 1 | G187: 0.00101756314 | I187: 0.7500489333 | J187: 6.97856267 | K187: 7 | L187: 7
A188: 182 | B188: 0.5120925623 | C188: 7.95596209 | D188: 8 | E188: 8 | F188: 1 | G188: 0.00101756314 | I188: 0.5120925623 | J188: 5.020035953 | K188: 5 | L188: 5
A189: 183 | B189: 0.454692826 | C189: 7.010889337 | D189: 7 | E189: 7 | F189: 1 | G189: 0.00101756314 | I189: 0.454692826 | J189: 4.61450791 | K189: 5 | L189: 5
A190: 184 | B190: 0.007900856317 | C190: 0.2700985914 | D190: 0 | E190: FALSE | F190: 0 | G190: 0 | I190: 0.007900856317 | J190: 0.5273585936 | K190: 1 | L190: 1
A191: 185 | B191: 0.05036629721 | C191: 1.103332253 | D191: 1 | E191: 1 | F191: 1 | G191: 0.00101756314 | I191: 0.05036629721 | J191: 1.346511389 | K191: 1 | L191: 1
A192: 186 | B192: 0.2537696696 | C192: 4.057431421 | D192: 4 | E192: 4 | F192: 1 | G192: 0.00101756314 | I192: 0.2537696696 | J192: 3.205636238 | K192: 3 | L192: 3
A193: 187 | B193: 0.301831227 | C193: 4.732385955 | D193: 5 | E193: 5 | F193: 1 | G193: 0.00101756314 | I193: 0.301831227 | J193: 3.551635568 | K193: 4 | L193: 4
A194: 188 | B194: 0.4749768592 | C194: 7.33748522 | D194: 7 | E194: 7 | F194: 1 | G194: 0.00101756314 | I194: 0.4749768592 | J194: 4.756601386 | K194: 5 | L194: 5
A195: 189 | B195: 0.3389917005 | C195: 5.263688462 | D195: 5 | E195: 5 | F195: 1 | G195: 0.00101756314 | I195: 0.3389917005 | J195: 3.812487809 | K195: 4 | L195: 4
A196: 190 | B196: 0.4314278136 | C196: 6.644974547 | D196: 7 | E196: 7 | F196: 1 | G196: 0.00101756314 | I196: 0.4314278136 | J196: 4.452653927 | K196: 4 | L196: 4
A197: 191 | B197: 0.5392585228 | C197: 8.428298263 | D197: 8 | E197: 8 | F197: 1 | G197: 0.00101756314 | I197: 0.5392585228 | J197: 5.216635948 | K197: 5 | L197: 5
A198: 192 | B198: 0.03706954862 | C198: 0.8719507213 | D198: 1 | E198: 1 | F198: 1 | G198: 0.00101756314 | I198: 0.03706954862 | J198: 1.15113427 | K198: 1 | L198: 1
A199: 193 | B199: 0.3592025835 | C199: 5.557482727 | D199: 6 | E199: 6 | F199: =IF(D199=0,0,1) -> 1 | G199: 0.00101756314 | I199: 0.3592025835 | J199: 3.95293957 | K199: 4 | L199: 4
A200: 194 | B200: 0.1775185722 | C200: =C$1*(-LN(1-B200))^(1/C$2) -> 2.995659891 | D200: =ROUND(C200,0) -> 3 | E200: =IF(D200>0,D200) -> 3 | F200: 1 | G200: =F200/$G$5*100 -> 0.00101756314 | I200: 0.1775185722 | J200: =$O$1*(-LN(1-I200))^(1/$O$2) -> 2.619093478 | K200: =ROUND(J200,0) -> 3 | L200: =IF(K200>0,K200) -> 3
... 4300 more rows

Sheet TppPivot (hidden)
A1: Count | B1: 1
A3: Row Labels | B3: Sum of Percent
A4: 1 | B4: 5.87235688
A5: 2 | B5: 6.609072593
A6: 3 | B6: 7.16567963
A7: 4 | B7: 7.176872825
A8: 5 | B8: 6.966237255
A9: 6 | B9: 6.841076989
A10: 7 | B10: 6.455420559
A11: 8 | B11: 6.11860716
A12: 9 | B12: 5.474489692
A13: 10 | B13: 5.016586279
A14: 11 | B14: 4.630929849
A15: 12 | B15: 4.061094491
A16: 13 | B16: 3.659157051
A17: 14 | B17: 3.270447931
A18: 15 | B18: 2.87461587
A19: 16 | B19: 2.590715754
A20: 17 | B20: 2.206076887
A21: 18 | B21: 1.881474245
A22: 19 | B22: 1.684066996
A23: 20 | B23: 1.436799153
A24: 21 | B24: 1.188513747
A25: 22 | B25: 1.023668519
A26: 23 | B26: 0.9432810306
A27: 24 | B27: 0.7183995767
A28: 25 | B28: 0.6492052832
A29: 26 | B29: 0.5881514948
A30: 27 | B30: 0.4945356859
A31: 28 | B31: 0.4344994607
A32: 29 | B32: 0.3368133993
A33: 30 | B33: 0.2859352423
A34: 31 | B34: 0.225899017
A35: 32 | B35: 0.1923194334
A36: 33 | B36: 0.1678979181
A37: 34 | B37: 0.1282129556
A38: 35 | B38: 0.1231251399
A39: 36 | B39: 0.08852799316
A40: 37 | B40: 0.06410647781
A41: 38 | B41: 0.05901866211
A42: 39 | B42: 0.05596597269
A43: 40 | B43: 0.03866739931
A44: 41 | B44: 0.03866739931
A45: 42 | B45: 0.02849176791
A46: 43 | B46: 0.02950933105
A47: 44 | B47: 0.01831613652
A48: 45 | B48: 0.02238638908
A49: 46 | B49: 0.01221075768
A50: 47 | B50: 0.008140505118
A51: 48 | B51: 0.01119319454
A52: 49 | B52: 0.006105378839
A53: 50 | B53: 0.006105378839
A54: 51 | B54: 0.005087815699
A55: 52 | B55: 0.003052689419
A56: 53 | B56: 0.00203512628
A57: 54 | B57: 0.00101756314
A58: 55 | B58: 0.00101756314
A59: 56 | B59: 0.00203512628
A60: 58 | B60: 0.00203512628
A61: 60 | B61: 0.00203512628
A62: 61 | B62: 0.00101756314
A63: 65 | B63: 0.00101756314

Sheet HdCalcs (hidden)
A1: Inputs | I1: Weibull - natural | K1: Weibull - planted | M1: Ht - nat | N1: Ht - plant
A2: Site | B2: Gsn | C2: Gsp | D2: Psi (SPNI) | E2: Dsi (DSI) | F2: Np0 (PSph) | G2: Np | H2: Nn | I2: Bnd | J2: Cnd | K2: Bpd | L2: Cpd | M2: LnHtN | N2: LnHtP
A3: =Nutrient -> 3 | B3: =YSHpa-1 -> 12 | C3: =Stocking!I14 -> 11 | D3: =Stocking!C96 -> 0.8462306461 | E3: =Stocking!C95 -> 0.38 | F3: =Names!E14 -> 0 | G3: =Stocking!C103 -> 0 | H3: =TppDraws!E3 -> 8411.443199 | I3: =LOOKUP($A$3,$A7:$A9,I7:I9) -> 3.9292018 | J3: 2.37776048 | K3: 7.06095272 | L3: 3.66950552 | M3: 4.15099006 | N3: 4.075977274
A5: Site | B5: Gsn | C5: Gsp | D5: Psi | E5: Dsi | F5: Np0 | G5: Np | H5: Nn | I5: Bnd | J5: Cnd | K5: Bpd | L5: Cpd | M5: LnHtN | N5: LnHtP
A6: (Input) | B6: (Input) | C6: (Input) | D6: (Input) | E6: (Input) | F6: (Input) | G6: (Input) | H6: (Input) | I6: B (Ingress) | J6: C (Ingress) | K6: B (Planted) | L6: C (Planted) | M6: (excl. d) | N6: (excl. d)
A7: 1 | B7: =$B$3 -> 12 | C7: =$C$3 -> 11 | D7: =$D$3 -> 0.8462306461 | E7: =$E$3 -> 0.38 | F7: =$F$3 -> 0 | I7: =Bnda+ Bndb*1+Bndc*0+Bndd*E7+Bnde*B7 -> 5.1842362 | J7: =Cnda+ Cndb*1+Cndc*0+Cndd*E7+Cnde*B7 -> 2.30103468 | K7: =Bpda+ Bpdb*1+Bpdc*0+Bpdd*E7+Bpde*C7+Bpdf*F7 -> 10.76159412 | L7: =Cpda+ Cpdb*1+Cpdc*0+Cpdd*E7+Cpde*C7+Cpdf*F7 -> 5.13383132 | M7: =HtNa+ HtNb*1+HtNc*0+HtNe*E7+HtNf*B7 -> 4.20788206 | N7: =HtPa+ HtPb*1+HtPc*0+HtPe*E7+HtPf*C7+HtPg*F7 -> 4.258831074
A8: 2 | B8: =$B$3 -> 12 | C8: =$C$3 -> 11 | D8: =$D$3 -> 0.8462306461 | E8: =$E$3 -> 0.38 | F8: =$F$3 -> 0 | I8: =Bnda+ Bndb*0+Bndc*1+Bndd*E8+Bnde*B8 -> 5.4138724 | J8: =Cnda+ Cndb*0+Cndc*1+Cndd*E8+Cnde*B8 -> 2.67812488 | K8: =Bpda+ Bpdb*0+Bpdc*1+Bpdd*E8+Bpde*C8+Bpdf*F8 -> 8.26432642 | L8: =Cpda+ Cpdb*0+Cpdc*1+Cpdd*E8+Cpde*C8+Cpdf*F8 -> 4.70182892 | M8: =HtNa+ HtNb*0+HtNc*1+HtNe*E8+HtNf*B8 -> 4.23227776 | N8: =HtPa+ HtPb*0+HtPc*1+HtPe*E8+HtPf*C8+HtPg*F8 -> 4.208622674
A9: 3 | B9: 12 | C9: 11 | D9: 0.8462306461 | E9: 0.38 | F9: 0 | I9: =Bnda+ Bndb*(-1)+Bndc*(-1)+Bndd*E9+Bnde*B9 -> 3.9292018 | J9: =Cnda+ Cndb*(-1)+Cndc*(-1)+Cndd*E9+Cnde*B9 -> 2.37776048 | K9: =Bpda+ Bpdb*(-1)+Bpdc*(-1)+Bpdd*E9+Bpde*C9+Bpdf*F9 -> 7.06095272 | L9: =Cpda+ Cpdb*(-1)+Cpdc*(-1)+Cpdd*E9+Cpde*C9+Cpdf*F9 -> 3.66950552 | M9: =HtNa+ HtNb*(-1)+HtNc*(-1)+HtNe*E9+HtNf*B9 -> 4.15099006 | N9: =HtPa+ HtPb*(-1)+HtPc*(-1)+HtPe*E9+HtPf*C9+HtPg*F9 -> 4.075977274

Sheet HdDist (hidden)
A1: Cohort | B1: Cum F | C1: Cum N | D1: N | E1: Adj F | F1: GLD | G1: GLD_Sort | H1: GLD Class | I1: BA | J1: Ht | K1: HtClass | L1: NSh | M1: HtSh | N1: NBh | O1: HtBh | P1: Dbh | Q1: BAbh | R1: Cum N Rev | S1: TH
A2: Planted | B2: 0.001 | C2: =B2*HdCalcs!$G$3 -> 0 | D2: =C2 -> 0 | E2: =AVERAGE(B2,0) -> 0.0005 | F2: =IF(D2>0,HdCalcs!$K$3*(-LN(1-HdDist!E2))^(1/HdCalcs!$L$3)," ") ->  | G2: =IF(D2>0,HdCalcs!$K$3*(-LN(1-HdDist!E2))^(1/HdCalcs!$L$3),0) -> 0 | H2: =IF(D2>0,ROUND(F2,0)," ") ->  | I2: =IF(D2>0,PI()*((F2/2)^2)*D2,0) -> 0 | J2: =IF(D2>0,EXP(HdCalcs!$N$3+HtPd*LN(F2))," ") ->  | K2: =IF(D2>0,ROUND(J2/5,-1)*5," ") ->  | L2: =IF(J2<30,0,D2) -> 0 | M2: =IF(L2>0,J2," ") ->  | N2: =IF(J2<130,0,D2) -> 0 | O2: =IF(N2>0,J2," ") ->  | P2: =IF(D2>0,IF(J2<130," ",DBHa+DBHb*F2+DBHc*J2)," ") ->  | Q2: =IF(D2>0,IF(J2<130,0,PI()*((P2/2)^2)*D2),0) -> 0 | R2: =D2+R3 -> 0 | S2: =IF(D2>0,IF(R2<=100,J2," ")," ") -> 
A3: Planted | B3: 0.002 | C3: =B3*HdCalcs!$G$3 -> 0 | D3: =C3-C2 -> 0 | E3: =AVERAGE(B3,B2) -> 0.0015 | F3: =IF(D3>0,HdCalcs!$K$3*(-LN(1-HdDist!E3))^(1/HdCalcs!$L$3)," ") ->  | G3: =IF(D3>0,HdCalcs!$K$3*(-LN(1-HdDist!E3))^(1/HdCalcs!$L$3),0) -> 0 | H3: =IF(D3>0,ROUND(F3,0)," ") ->  | I3: =IF(D3>0,PI()*((F3/2)^2)*D3,0) -> 0 | J3: =IF(D3>0,EXP(HdCalcs!$N$3+HtPd*LN(F3))," ") ->  | K3: =IF(D3>0,ROUND(J3/5,-1)*5," ") ->  | L3: =IF(J3<30,0,D3) -> 0 | M3: =IF(L3>0,J3," ") ->  | N3: =IF(J3<130,0,D3) -> 0 | O3: =IF(N3>0,J3," ") ->  | Q3: =IF(D3>0,IF(J3<130,0,PI()*((P3/2)^2)*D3),0) -> 0 | R3: 0
A4: Planted | B4: 0.003 | C4: =B4*HdCalcs!$G$3 -> 0 | D4: 0 | E4: 0.0025 | F4: =IF(D4>0,HdCalcs!$K$3*(-LN(1-HdDist!E4))^(1/HdCalcs!$L$3)," ") ->  | G4: =IF(D4>0,HdCalcs!$K$3*(-LN(1-HdDist!E4))^(1/HdCalcs!$L$3),0) -> 0 | I4: 0 | J4: =IF(D4>0,EXP(HdCalcs!$N$3+HtPd*LN(F4))," ") ->  | L4: 0 | N4: 0 | Q4: 0 | R4: 0
A5: Planted | B5: 0.004 | C5: =B5*HdCalcs!$G$3 -> 0 | D5: 0 | E5: 0.0035 | F5: =IF(D5>0,HdCalcs!$K$3*(-LN(1-HdDist!E5))^(1/HdCalcs!$L$3)," ") ->  | G5: =IF(D5>0,HdCalcs!$K$3*(-LN(1-HdDist!E5))^(1/HdCalcs!$L$3),0) -> 0 | I5: 0 | J5: =IF(D5>0,EXP(HdCalcs!$N$3+HtPd*LN(F5))," ") ->  | L5: 0 | N5: 0 | Q5: 0 | R5: 0
A6: Planted | B6: 0.005 | C6: =B6*HdCalcs!$G$3 -> 0 | D6: 0 | E6: 0.0045 | F6: =IF(D6>0,HdCalcs!$K$3*(-LN(1-HdDist!E6))^(1/HdCalcs!$L$3)," ") ->  | G6: =IF(D6>0,HdCalcs!$K$3*(-LN(1-HdDist!E6))^(1/HdCalcs!$L$3),0) -> 0 | I6: 0 | J6: =IF(D6>0,EXP(HdCalcs!$N$3+HtPd*LN(F6))," ") ->  | L6: 0 | N6: 0 | Q6: 0 | R6: 0
A7: Planted | B7: 0.006 | C7: =B7*HdCalcs!$G$3 -> 0 | D7: 0 | E7: 0.0055 | F7: =IF(D7>0,HdCalcs!$K$3*(-LN(1-HdDist!E7))^(1/HdCalcs!$L$3)," ") ->  | G7: =IF(D7>0,HdCalcs!$K$3*(-LN(1-HdDist!E7))^(1/HdCalcs!$L$3),0) -> 0 | I7: 0 | J7: =IF(D7>0,EXP(HdCalcs!$N$3+HtPd*LN(F7))," ") ->  | L7: 0 | N7: 0 | Q7: 0 | R7: 0
A8: Planted | B8: 0.007 | C8: =B8*HdCalcs!$G$3 -> 0 | D8: 0 | E8: 0.0065 | F8: =IF(D8>0,HdCalcs!$K$3*(-LN(1-HdDist!E8))^(1/HdCalcs!$L$3)," ") ->  | G8: =IF(D8>0,HdCalcs!$K$3*(-LN(1-HdDist!E8))^(1/HdCalcs!$L$3),0) -> 0 | I8: 0 | J8: =IF(D8>0,EXP(HdCalcs!$N$3+HtPd*LN(F8))," ") ->  | L8: 0 | N8: 0 | Q8: 0 | R8: 0
A9: Planted | B9: 0.008 | C9: =B9*HdCalcs!$G$3 -> 0 | D9: 0 | E9: 0.0075 | F9: =IF(D9>0,HdCalcs!$K$3*(-LN(1-HdDist!E9))^(1/HdCalcs!$L$3)," ") ->  | G9: =IF(D9>0,HdCalcs!$K$3*(-LN(1-HdDist!E9))^(1/HdCalcs!$L$3),0) -> 0 | I9: 0 | J9: =IF(D9>0,EXP(HdCalcs!$N$3+HtPd*LN(F9))," ") ->  | L9: 0 | N9: 0 | Q9: 0 | R9: 0
A10: Planted | B10: 0.009 | C10: =B10*HdCalcs!$G$3 -> 0 | D10: 0 | E10: 0.0085 | F10: =IF(D10>0,HdCalcs!$K$3*(-LN(1-HdDist!E10))^(1/HdCalcs!$L$3)," ") ->  | G10: =IF(D10>0,HdCalcs!$K$3*(-LN(1-HdDist!E10))^(1/HdCalcs!$L$3),0) -> 0 | I10: 0 | J10: =IF(D10>0,EXP(HdCalcs!$N$3+HtPd*LN(F10))," ") ->  | L10: 0 | N10: 0 | Q10: 0 | R10: 0
A11: Planted | B11: 0.01 | C11: =B11*HdCalcs!$G$3 -> 0 | D11: 0 | E11: 0.0095 | F11: =IF(D11>0,HdCalcs!$K$3*(-LN(1-HdDist!E11))^(1/HdCalcs!$L$3)," ") ->  | G11: =IF(D11>0,HdCalcs!$K$3*(-LN(1-HdDist!E11))^(1/HdCalcs!$L$3),0) -> 0 | I11: 0 | J11: =IF(D11>0,EXP(HdCalcs!$N$3+HtPd*LN(F11))," ") ->  | L11: 0 | N11: 0 | Q11: 0 | R11: 0
A12: Planted | B12: 0.011 | C12: =B12*HdCalcs!$G$3 -> 0 | D12: 0 | E12: 0.0105 | F12: =IF(D12>0,HdCalcs!$K$3*(-LN(1-HdDist!E12))^(1/HdCalcs!$L$3)," ") ->  | G12: =IF(D12>0,HdCalcs!$K$3*(-LN(1-HdDist!E12))^(1/HdCalcs!$L$3),0) -> 0 | I12: 0 | J12: =IF(D12>0,EXP(HdCalcs!$N$3+HtPd*LN(F12))," ") ->  | L12: 0 | N12: 0 | Q12: 0 | R12: 0
A13: Planted | B13: 0.012 | C13: =B13*HdCalcs!$G$3 -> 0 | D13: 0 | E13: 0.0115 | F13: =IF(D13>0,HdCalcs!$K$3*(-LN(1-HdDist!E13))^(1/HdCalcs!$L$3)," ") ->  | G13: =IF(D13>0,HdCalcs!$K$3*(-LN(1-HdDist!E13))^(1/HdCalcs!$L$3),0) -> 0 | I13: 0 | J13: =IF(D13>0,EXP(HdCalcs!$N$3+HtPd*LN(F13))," ") ->  | L13: 0 | N13: 0 | Q13: 0 | R13: 0
A14: Planted | B14: 0.013 | C14: =B14*HdCalcs!$G$3 -> 0 | D14: 0 | E14: 0.0125 | F14: =IF(D14>0,HdCalcs!$K$3*(-LN(1-HdDist!E14))^(1/HdCalcs!$L$3)," ") ->  | G14: =IF(D14>0,HdCalcs!$K$3*(-LN(1-HdDist!E14))^(1/HdCalcs!$L$3),0) -> 0 | I14: 0 | J14: =IF(D14>0,EXP(HdCalcs!$N$3+HtPd*LN(F14))," ") ->  | L14: 0 | N14: 0 | Q14: 0 | R14: 0
A15: Planted | B15: 0.014 | C15: =B15*HdCalcs!$G$3 -> 0 | D15: 0 | E15: 0.0135 | F15: =IF(D15>0,HdCalcs!$K$3*(-LN(1-HdDist!E15))^(1/HdCalcs!$L$3)," ") ->  | G15: =IF(D15>0,HdCalcs!$K$3*(-LN(1-HdDist!E15))^(1/HdCalcs!$L$3),0) -> 0 | I15: 0 | J15: =IF(D15>0,EXP(HdCalcs!$N$3+HtPd*LN(F15))," ") ->  | L15: 0 | N15: 0 | Q15: 0 | R15: 0
A16: Planted | B16: 0.015 | C16: =B16*HdCalcs!$G$3 -> 0 | D16: 0 | E16: 0.0145 | F16: =IF(D16>0,HdCalcs!$K$3*(-LN(1-HdDist!E16))^(1/HdCalcs!$L$3)," ") ->  | G16: =IF(D16>0,HdCalcs!$K$3*(-LN(1-HdDist!E16))^(1/HdCalcs!$L$3),0) -> 0 | I16: 0 | J16: =IF(D16>0,EXP(HdCalcs!$N$3+HtPd*LN(F16))," ") ->  | L16: 0 | N16: 0 | Q16: 0 | R16: 0
A17: Planted | B17: 0.016 | C17: =B17*HdCalcs!$G$3 -> 0 | D17: 0 | E17: 0.0155 | F17: =IF(D17>0,HdCalcs!$K$3*(-LN(1-HdDist!E17))^(1/HdCalcs!$L$3)," ") ->  | G17: =IF(D17>0,HdCalcs!$K$3*(-LN(1-HdDist!E17))^(1/HdCalcs!$L$3),0) -> 0 | I17: 0 | J17: =IF(D17>0,EXP(HdCalcs!$N$3+HtPd*LN(F17))," ") ->  | L17: 0 | N17: 0 | Q17: 0 | R17: 0
A18: Planted | B18: 0.017 | C18: =B18*HdCalcs!$G$3 -> 0 | D18: 0 | E18: 0.0165 | F18: =IF(D18>0,HdCalcs!$K$3*(-LN(1-HdDist!E18))^(1/HdCalcs!$L$3)," ") ->  | G18: =IF(D18>0,HdCalcs!$K$3*(-LN(1-HdDist!E18))^(1/HdCalcs!$L$3),0) -> 0 | I18: 0 | J18: =IF(D18>0,EXP(HdCalcs!$N$3+HtPd*LN(F18))," ") ->  | L18: 0 | N18: 0 | Q18: 0 | R18: 0
A19: Planted | B19: 0.018 | C19: =B19*HdCalcs!$G$3 -> 0 | D19: 0 | E19: 0.0175 | F19: =IF(D19>0,HdCalcs!$K$3*(-LN(1-HdDist!E19))^(1/HdCalcs!$L$3)," ") ->  | G19: =IF(D19>0,HdCalcs!$K$3*(-LN(1-HdDist!E19))^(1/HdCalcs!$L$3),0) -> 0 | I19: 0 | J19: =IF(D19>0,EXP(HdCalcs!$N$3+HtPd*LN(F19))," ") ->  | L19: 0 | N19: 0 | Q19: 0 | R19: 0
A20: Planted | B20: 0.019 | C20: =B20*HdCalcs!$G$3 -> 0 | D20: 0 | E20: 0.0185 | F20: =IF(D20>0,HdCalcs!$K$3*(-LN(1-HdDist!E20))^(1/HdCalcs!$L$3)," ") ->  | G20: =IF(D20>0,HdCalcs!$K$3*(-LN(1-HdDist!E20))^(1/HdCalcs!$L$3),0) -> 0 | I20: 0 | J20: =IF(D20>0,EXP(HdCalcs!$N$3+HtPd*LN(F20))," ") ->  | L20: 0 | N20: 0 | Q20: 0 | R20: 0
A21: Planted | B21: 0.02 | C21: =B21*HdCalcs!$G$3 -> 0 | D21: 0 | E21: 0.0195 | F21: =IF(D21>0,HdCalcs!$K$3*(-LN(1-HdDist!E21))^(1/HdCalcs!$L$3)," ") ->  | G21: =IF(D21>0,HdCalcs!$K$3*(-LN(1-HdDist!E21))^(1/HdCalcs!$L$3),0) -> 0 | I21: 0 | J21: =IF(D21>0,EXP(HdCalcs!$N$3+HtPd*LN(F21))," ") ->  | L21: 0 | N21: 0 | Q21: 0 | R21: 0
A22: Planted | B22: 0.021 | C22: =B22*HdCalcs!$G$3 -> 0 | D22: 0 | E22: 0.0205 | F22: =IF(D22>0,HdCalcs!$K$3*(-LN(1-HdDist!E22))^(1/HdCalcs!$L$3)," ") ->  | G22: =IF(D22>0,HdCalcs!$K$3*(-LN(1-HdDist!E22))^(1/HdCalcs!$L$3),0) -> 0 | I22: 0 | J22: =IF(D22>0,EXP(HdCalcs!$N$3+HtPd*LN(F22))," ") ->  | L22: 0 | N22: 0 | Q22: 0 | R22: 0
A23: Planted | B23: 0.022 | C23: =B23*HdCalcs!$G$3 -> 0 | D23: 0 | E23: 0.0215 | F23: =IF(D23>0,HdCalcs!$K$3*(-LN(1-HdDist!E23))^(1/HdCalcs!$L$3)," ") ->  | G23: =IF(D23>0,HdCalcs!$K$3*(-LN(1-HdDist!E23))^(1/HdCalcs!$L$3),0) -> 0 | I23: 0 | J23: =IF(D23>0,EXP(HdCalcs!$N$3+HtPd*LN(F23))," ") ->  | L23: 0 | N23: 0 | Q23: 0 | R23: 0
A24: Planted | B24: 0.023 | C24: =B24*HdCalcs!$G$3 -> 0 | D24: 0 | E24: 0.0225 | F24: =IF(D24>0,HdCalcs!$K$3*(-LN(1-HdDist!E24))^(1/HdCalcs!$L$3)," ") ->  | G24: =IF(D24>0,HdCalcs!$K$3*(-LN(1-HdDist!E24))^(1/HdCalcs!$L$3),0) -> 0 | I24: 0 | J24: =IF(D24>0,EXP(HdCalcs!$N$3+HtPd*LN(F24))," ") ->  | L24: 0 | N24: 0 | Q24: 0 | R24: 0
A25: Planted | B25: 0.024 | C25: =B25*HdCalcs!$G$3 -> 0 | D25: 0 | E25: 0.0235 | F25: =IF(D25>0,HdCalcs!$K$3*(-LN(1-HdDist!E25))^(1/HdCalcs!$L$3)," ") ->  | G25: =IF(D25>0,HdCalcs!$K$3*(-LN(1-HdDist!E25))^(1/HdCalcs!$L$3),0) -> 0 | I25: 0 | J25: =IF(D25>0,EXP(HdCalcs!$N$3+HtPd*LN(F25))," ") ->  | L25: 0 | N25: 0 | Q25: 0 | R25: 0
A26: Planted | B26: 0.025 | C26: =B26*HdCalcs!$G$3 -> 0 | D26: 0 | E26: 0.0245 | F26: =IF(D26>0,HdCalcs!$K$3*(-LN(1-HdDist!E26))^(1/HdCalcs!$L$3)," ") ->  | G26: =IF(D26>0,HdCalcs!$K$3*(-LN(1-HdDist!E26))^(1/HdCalcs!$L$3),0) -> 0 | I26: 0 | J26: =IF(D26>0,EXP(HdCalcs!$N$3+HtPd*LN(F26))," ") ->  | L26: 0 | N26: 0 | Q26: 0 | R26: 0
A27: Planted | B27: 0.026 | C27: =B27*HdCalcs!$G$3 -> 0 | D27: 0 | E27: 0.0255 | F27: =IF(D27>0,HdCalcs!$K$3*(-LN(1-HdDist!E27))^(1/HdCalcs!$L$3)," ") ->  | G27: =IF(D27>0,HdCalcs!$K$3*(-LN(1-HdDist!E27))^(1/HdCalcs!$L$3),0) -> 0 | I27: 0 | J27: =IF(D27>0,EXP(HdCalcs!$N$3+HtPd*LN(F27))," ") ->  | L27: 0 | N27: 0 | Q27: 0 | R27: 0
A28: Planted | B28: 0.027 | C28: =B28*HdCalcs!$G$3 -> 0 | D28: 0 | E28: 0.0265 | F28: =IF(D28>0,HdCalcs!$K$3*(-LN(1-HdDist!E28))^(1/HdCalcs!$L$3)," ") ->  | G28: =IF(D28>0,HdCalcs!$K$3*(-LN(1-HdDist!E28))^(1/HdCalcs!$L$3),0) -> 0 | I28: 0 | J28: =IF(D28>0,EXP(HdCalcs!$N$3+HtPd*LN(F28))," ") ->  | L28: 0 | N28: 0 | Q28: 0 | R28: 0
A29: Planted | B29: 0.028 | C29: =B29*HdCalcs!$G$3 -> 0 | D29: 0 | E29: 0.0275 | F29: =IF(D29>0,HdCalcs!$K$3*(-LN(1-HdDist!E29))^(1/HdCalcs!$L$3)," ") ->  | G29: =IF(D29>0,HdCalcs!$K$3*(-LN(1-HdDist!E29))^(1/HdCalcs!$L$3),0) -> 0 | I29: 0 | J29: =IF(D29>0,EXP(HdCalcs!$N$3+HtPd*LN(F29))," ") ->  | L29: 0 | N29: 0 | Q29: 0 | R29: 0
A30: Planted | B30: 0.029 | C30: =B30*HdCalcs!$G$3 -> 0 | D30: 0 | E30: 0.0285 | F30: =IF(D30>0,HdCalcs!$K$3*(-LN(1-HdDist!E30))^(1/HdCalcs!$L$3)," ") ->  | G30: =IF(D30>0,HdCalcs!$K$3*(-LN(1-HdDist!E30))^(1/HdCalcs!$L$3),0) -> 0 | I30: 0 | J30: =IF(D30>0,EXP(HdCalcs!$N$3+HtPd*LN(F30))," ") ->  | L30: 0 | N30: 0 | Q30: 0 | R30: 0
A31: Planted | B31: 0.03 | C31: =B31*HdCalcs!$G$3 -> 0 | D31: 0 | E31: 0.0295 | F31: =IF(D31>0,HdCalcs!$K$3*(-LN(1-HdDist!E31))^(1/HdCalcs!$L$3)," ") ->  | G31: =IF(D31>0,HdCalcs!$K$3*(-LN(1-HdDist!E31))^(1/HdCalcs!$L$3),0) -> 0 | I31: 0 | J31: =IF(D31>0,EXP(HdCalcs!$N$3+HtPd*LN(F31))," ") ->  | L31: 0 | N31: 0 | Q31: 0 | R31: 0
A32: Planted | B32: 0.031 | C32: =B32*HdCalcs!$G$3 -> 0 | D32: 0 | E32: 0.0305 | F32: =IF(D32>0,HdCalcs!$K$3*(-LN(1-HdDist!E32))^(1/HdCalcs!$L$3)," ") ->  | G32: =IF(D32>0,HdCalcs!$K$3*(-LN(1-HdDist!E32))^(1/HdCalcs!$L$3),0) -> 0 | I32: 0 | J32: =IF(D32>0,EXP(HdCalcs!$N$3+HtPd*LN(F32))," ") ->  | L32: 0 | N32: 0 | Q32: 0 | R32: 0
A33: Planted | B33: 0.032 | C33: =B33*HdCalcs!$G$3 -> 0 | D33: 0 | E33: 0.0315 | F33: =IF(D33>0,HdCalcs!$K$3*(-LN(1-HdDist!E33))^(1/HdCalcs!$L$3)," ") ->  | G33: =IF(D33>0,HdCalcs!$K$3*(-LN(1-HdDist!E33))^(1/HdCalcs!$L$3),0) -> 0 | I33: 0 | J33: =IF(D33>0,EXP(HdCalcs!$N$3+HtPd*LN(F33))," ") ->  | L33: 0 | N33: 0 | Q33: 0 | R33: 0
A34: Planted | B34: 0.033 | C34: =B34*HdCalcs!$G$3 -> 0 | D34: 0 | E34: 0.0325 | F34: =IF(D34>0,HdCalcs!$K$3*(-LN(1-HdDist!E34))^(1/HdCalcs!$L$3)," ") ->  | G34: =IF(D34>0,HdCalcs!$K$3*(-LN(1-HdDist!E34))^(1/HdCalcs!$L$3),0) -> 0 | I34: 0 | J34: =IF(D34>0,EXP(HdCalcs!$N$3+HtPd*LN(F34))," ") ->  | L34: 0 | N34: 0 | Q34: 0 | R34: 0
A35: Planted | B35: 0.034 | C35: =B35*HdCalcs!$G$3 -> 0 | D35: 0 | E35: 0.0335 | F35: =IF(D35>0,HdCalcs!$K$3*(-LN(1-HdDist!E35))^(1/HdCalcs!$L$3)," ") ->  | G35: =IF(D35>0,HdCalcs!$K$3*(-LN(1-HdDist!E35))^(1/HdCalcs!$L$3),0) -> 0 | I35: 0 | J35: =IF(D35>0,EXP(HdCalcs!$N$3+HtPd*LN(F35))," ") ->  | L35: 0 | N35: 0 | Q35: 0 | R35: 0
A36: Planted | B36: 0.035 | C36: =B36*HdCalcs!$G$3 -> 0 | D36: 0 | E36: 0.0345 | F36: =IF(D36>0,HdCalcs!$K$3*(-LN(1-HdDist!E36))^(1/HdCalcs!$L$3)," ") ->  | G36: =IF(D36>0,HdCalcs!$K$3*(-LN(1-HdDist!E36))^(1/HdCalcs!$L$3),0) -> 0 | I36: 0 | J36: =IF(D36>0,EXP(HdCalcs!$N$3+HtPd*LN(F36))," ") ->  | L36: 0 | N36: 0 | Q36: 0 | R36: 0
A37: Planted | B37: 0.036 | C37: =B37*HdCalcs!$G$3 -> 0 | D37: 0 | E37: 0.0355 | F37: =IF(D37>0,HdCalcs!$K$3*(-LN(1-HdDist!E37))^(1/HdCalcs!$L$3)," ") ->  | G37: =IF(D37>0,HdCalcs!$K$3*(-LN(1-HdDist!E37))^(1/HdCalcs!$L$3),0) -> 0 | I37: 0 | J37: =IF(D37>0,EXP(HdCalcs!$N$3+HtPd*LN(F37))," ") ->  | L37: 0 | N37: 0 | Q37: 0 | R37: 0
A38: Planted | B38: 0.037 | C38: =B38*HdCalcs!$G$3 -> 0 | D38: 0 | E38: 0.0365 | F38: =IF(D38>0,HdCalcs!$K$3*(-LN(1-HdDist!E38))^(1/HdCalcs!$L$3)," ") ->  | G38: =IF(D38>0,HdCalcs!$K$3*(-LN(1-HdDist!E38))^(1/HdCalcs!$L$3),0) -> 0 | I38: 0 | J38: =IF(D38>0,EXP(HdCalcs!$N$3+HtPd*LN(F38))," ") ->  | L38: 0 | N38: 0 | Q38: 0 | R38: 0
A39: Planted | B39: 0.038 | C39: =B39*HdCalcs!$G$3 -> 0 | D39: 0 | E39: 0.0375 | F39: =IF(D39>0,HdCalcs!$K$3*(-LN(1-HdDist!E39))^(1/HdCalcs!$L$3)," ") ->  | G39: =IF(D39>0,HdCalcs!$K$3*(-LN(1-HdDist!E39))^(1/HdCalcs!$L$3),0) -> 0 | I39: 0 | J39: =IF(D39>0,EXP(HdCalcs!$N$3+HtPd*LN(F39))," ") ->  | L39: 0 | N39: 0 | Q39: 0 | R39: 0
A40: Planted | B40: 0.039 | C40: =B40*HdCalcs!$G$3 -> 0 | D40: 0 | E40: 0.0385 | F40: =IF(D40>0,HdCalcs!$K$3*(-LN(1-HdDist!E40))^(1/HdCalcs!$L$3)," ") ->  | G40: =IF(D40>0,HdCalcs!$K$3*(-LN(1-HdDist!E40))^(1/HdCalcs!$L$3),0) -> 0 | I40: 0 | J40: =IF(D40>0,EXP(HdCalcs!$N$3+HtPd*LN(F40))," ") ->  | L40: 0 | N40: 0 | Q40: 0 | R40: 0
A41: Planted | B41: 0.04 | C41: =B41*HdCalcs!$G$3 -> 0 | D41: 0 | E41: 0.0395 | F41: =IF(D41>0,HdCalcs!$K$3*(-LN(1-HdDist!E41))^(1/HdCalcs!$L$3)," ") ->  | G41: =IF(D41>0,HdCalcs!$K$3*(-LN(1-HdDist!E41))^(1/HdCalcs!$L$3),0) -> 0 | I41: 0 | J41: =IF(D41>0,EXP(HdCalcs!$N$3+HtPd*LN(F41))," ") ->  | L41: 0 | N41: 0 | Q41: 0 | R41: 0
A42: Planted | B42: 0.041 | C42: =B42*HdCalcs!$G$3 -> 0 | D42: 0 | E42: 0.0405 | F42: =IF(D42>0,HdCalcs!$K$3*(-LN(1-HdDist!E42))^(1/HdCalcs!$L$3)," ") ->  | G42: =IF(D42>0,HdCalcs!$K$3*(-LN(1-HdDist!E42))^(1/HdCalcs!$L$3),0) -> 0 | I42: 0 | J42: =IF(D42>0,EXP(HdCalcs!$N$3+HtPd*LN(F42))," ") ->  | L42: 0 | N42: 0 | Q42: 0 | R42: 0
A43: Planted | B43: 0.042 | C43: =B43*HdCalcs!$G$3 -> 0 | D43: 0 | E43: 0.0415 | F43: =IF(D43>0,HdCalcs!$K$3*(-LN(1-HdDist!E43))^(1/HdCalcs!$L$3)," ") ->  | G43: =IF(D43>0,HdCalcs!$K$3*(-LN(1-HdDist!E43))^(1/HdCalcs!$L$3),0) -> 0 | I43: 0 | J43: =IF(D43>0,EXP(HdCalcs!$N$3+HtPd*LN(F43))," ") ->  | L43: 0 | N43: 0 | Q43: 0 | R43: 0
A44: Planted | B44: 0.043 | C44: =B44*HdCalcs!$G$3 -> 0 | D44: 0 | E44: 0.0425 | F44: =IF(D44>0,HdCalcs!$K$3*(-LN(1-HdDist!E44))^(1/HdCalcs!$L$3)," ") ->  | G44: =IF(D44>0,HdCalcs!$K$3*(-LN(1-HdDist!E44))^(1/HdCalcs!$L$3),0) -> 0 | I44: 0 | J44: =IF(D44>0,EXP(HdCalcs!$N$3+HtPd*LN(F44))," ") ->  | L44: 0 | N44: 0 | Q44: 0 | R44: 0
A45: Planted | B45: 0.044 | C45: =B45*HdCalcs!$G$3 -> 0 | D45: 0 | E45: 0.0435 | F45: =IF(D45>0,HdCalcs!$K$3*(-LN(1-HdDist!E45))^(1/HdCalcs!$L$3)," ") ->  | G45: =IF(D45>0,HdCalcs!$K$3*(-LN(1-HdDist!E45))^(1/HdCalcs!$L$3),0) -> 0 | I45: 0 | J45: =IF(D45>0,EXP(HdCalcs!$N$3+HtPd*LN(F45))," ") ->  | L45: 0 | N45: 0 | Q45: 0 | R45: 0
A46: Planted | B46: 0.045 | C46: =B46*HdCalcs!$G$3 -> 0 | D46: 0 | E46: 0.0445 | F46: =IF(D46>0,HdCalcs!$K$3*(-LN(1-HdDist!E46))^(1/HdCalcs!$L$3)," ") ->  | G46: =IF(D46>0,HdCalcs!$K$3*(-LN(1-HdDist!E46))^(1/HdCalcs!$L$3),0) -> 0 | I46: 0 | J46: =IF(D46>0,EXP(HdCalcs!$N$3+HtPd*LN(F46))," ") ->  | L46: 0 | N46: 0 | Q46: 0 | R46: 0
A47: Planted | B47: 0.046 | C47: =B47*HdCalcs!$G$3 -> 0 | D47: 0 | E47: 0.0455 | F47: =IF(D47>0,HdCalcs!$K$3*(-LN(1-HdDist!E47))^(1/HdCalcs!$L$3)," ") ->  | G47: =IF(D47>0,HdCalcs!$K$3*(-LN(1-HdDist!E47))^(1/HdCalcs!$L$3),0) -> 0 | I47: 0 | J47: =IF(D47>0,EXP(HdCalcs!$N$3+HtPd*LN(F47))," ") ->  | L47: 0 | N47: 0 | Q47: 0 | R47: 0
A48: Planted | B48: 0.047 | C48: =B48*HdCalcs!$G$3 -> 0 | D48: 0 | E48: 0.0465 | F48: =IF(D48>0,HdCalcs!$K$3*(-LN(1-HdDist!E48))^(1/HdCalcs!$L$3)," ") ->  | G48: =IF(D48>0,HdCalcs!$K$3*(-LN(1-HdDist!E48))^(1/HdCalcs!$L$3),0) -> 0 | I48: 0 | J48: =IF(D48>0,EXP(HdCalcs!$N$3+HtPd*LN(F48))," ") ->  | L48: 0 | N48: 0 | Q48: 0 | R48: 0
A49: Planted | B49: 0.048 | C49: =B49*HdCalcs!$G$3 -> 0 | D49: 0 | E49: 0.0475 | F49: =IF(D49>0,HdCalcs!$K$3*(-LN(1-HdDist!E49))^(1/HdCalcs!$L$3)," ") ->  | G49: =IF(D49>0,HdCalcs!$K$3*(-LN(1-HdDist!E49))^(1/HdCalcs!$L$3),0) -> 0 | I49: 0 | J49: =IF(D49>0,EXP(HdCalcs!$N$3+HtPd*LN(F49))," ") ->  | L49: 0 | N49: 0 | Q49: 0 | R49: 0
A50: Planted | B50: 0.049 | C50: =B50*HdCalcs!$G$3 -> 0 | D50: 0 | E50: 0.0485 | F50: =IF(D50>0,HdCalcs!$K$3*(-LN(1-HdDist!E50))^(1/HdCalcs!$L$3)," ") ->  | G50: =IF(D50>0,HdCalcs!$K$3*(-LN(1-HdDist!E50))^(1/HdCalcs!$L$3),0) -> 0 | I50: 0 | J50: =IF(D50>0,EXP(HdCalcs!$N$3+HtPd*LN(F50))," ") ->  | L50: 0 | N50: 0 | Q50: 0 | R50: 0
A51: Planted | B51: 0.05 | C51: =B51*HdCalcs!$G$3 -> 0 | D51: 0 | E51: 0.0495 | F51: =IF(D51>0,HdCalcs!$K$3*(-LN(1-HdDist!E51))^(1/HdCalcs!$L$3)," ") ->  | G51: =IF(D51>0,HdCalcs!$K$3*(-LN(1-HdDist!E51))^(1/HdCalcs!$L$3),0) -> 0 | I51: 0 | J51: =IF(D51>0,EXP(HdCalcs!$N$3+HtPd*LN(F51))," ") ->  | L51: 0 | N51: 0 | Q51: 0 | R51: 0
A52: Planted | B52: 0.051 | C52: =B52*HdCalcs!$G$3 -> 0 | D52: 0 | E52: 0.0505 | F52: =IF(D52>0,HdCalcs!$K$3*(-LN(1-HdDist!E52))^(1/HdCalcs!$L$3)," ") ->  | G52: =IF(D52>0,HdCalcs!$K$3*(-LN(1-HdDist!E52))^(1/HdCalcs!$L$3),0) -> 0 | I52: 0 | J52: =IF(D52>0,EXP(HdCalcs!$N$3+HtPd*LN(F52))," ") ->  | L52: 0 | N52: 0 | Q52: 0 | R52: 0
A53: Planted | B53: 0.052 | C53: =B53*HdCalcs!$G$3 -> 0 | D53: 0 | E53: 0.0515 | F53: =IF(D53>0,HdCalcs!$K$3*(-LN(1-HdDist!E53))^(1/HdCalcs!$L$3)," ") ->  | G53: =IF(D53>0,HdCalcs!$K$3*(-LN(1-HdDist!E53))^(1/HdCalcs!$L$3),0) -> 0 | I53: 0 | J53: =IF(D53>0,EXP(HdCalcs!$N$3+HtPd*LN(F53))," ") ->  | L53: 0 | N53: 0 | Q53: 0 | R53: 0
A54: Planted | B54: 0.053 | C54: =B54*HdCalcs!$G$3 -> 0 | D54: 0 | E54: 0.0525 | F54: =IF(D54>0,HdCalcs!$K$3*(-LN(1-HdDist!E54))^(1/HdCalcs!$L$3)," ") ->  | G54: =IF(D54>0,HdCalcs!$K$3*(-LN(1-HdDist!E54))^(1/HdCalcs!$L$3),0) -> 0 | I54: 0 | J54: =IF(D54>0,EXP(HdCalcs!$N$3+HtPd*LN(F54))," ") ->  | L54: 0 | N54: 0 | Q54: 0 | R54: 0
A55: Planted | B55: 0.054 | C55: =B55*HdCalcs!$G$3 -> 0 | D55: 0 | E55: 0.0535 | F55: =IF(D55>0,HdCalcs!$K$3*(-LN(1-HdDist!E55))^(1/HdCalcs!$L$3)," ") ->  | G55: =IF(D55>0,HdCalcs!$K$3*(-LN(1-HdDist!E55))^(1/HdCalcs!$L$3),0) -> 0 | I55: 0 | J55: =IF(D55>0,EXP(HdCalcs!$N$3+HtPd*LN(F55))," ") ->  | L55: 0 | N55: 0 | Q55: 0 | R55: 0
A56: Planted | B56: 0.055 | C56: =B56*HdCalcs!$G$3 -> 0 | D56: 0 | E56: 0.0545 | F56: =IF(D56>0,HdCalcs!$K$3*(-LN(1-HdDist!E56))^(1/HdCalcs!$L$3)," ") ->  | G56: =IF(D56>0,HdCalcs!$K$3*(-LN(1-HdDist!E56))^(1/HdCalcs!$L$3),0) -> 0 | I56: 0 | J56: =IF(D56>0,EXP(HdCalcs!$N$3+HtPd*LN(F56))," ") ->  | L56: 0 | N56: 0 | Q56: 0 | R56: 0
A57: Planted | B57: 0.056 | C57: =B57*HdCalcs!$G$3 -> 0 | D57: 0 | E57: 0.0555 | F57: =IF(D57>0,HdCalcs!$K$3*(-LN(1-HdDist!E57))^(1/HdCalcs!$L$3)," ") ->  | G57: =IF(D57>0,HdCalcs!$K$3*(-LN(1-HdDist!E57))^(1/HdCalcs!$L$3),0) -> 0 | I57: 0 | J57: =IF(D57>0,EXP(HdCalcs!$N$3+HtPd*LN(F57))," ") ->  | L57: 0 | N57: 0 | Q57: 0 | R57: 0
A58: Planted | B58: 0.057 | C58: =B58*HdCalcs!$G$3 -> 0 | D58: 0 | E58: 0.0565 | F58: =IF(D58>0,HdCalcs!$K$3*(-LN(1-HdDist!E58))^(1/HdCalcs!$L$3)," ") ->  | G58: =IF(D58>0,HdCalcs!$K$3*(-LN(1-HdDist!E58))^(1/HdCalcs!$L$3),0) -> 0 | I58: 0 | J58: =IF(D58>0,EXP(HdCalcs!$N$3+HtPd*LN(F58))," ") ->  | L58: 0 | N58: 0 | Q58: 0 | R58: 0
A59: Planted | B59: 0.058 | C59: =B59*HdCalcs!$G$3 -> 0 | D59: 0 | E59: 0.0575 | F59: =IF(D59>0,HdCalcs!$K$3*(-LN(1-HdDist!E59))^(1/HdCalcs!$L$3)," ") ->  | G59: =IF(D59>0,HdCalcs!$K$3*(-LN(1-HdDist!E59))^(1/HdCalcs!$L$3),0) -> 0 | I59: 0 | J59: =IF(D59>0,EXP(HdCalcs!$N$3+HtPd*LN(F59))," ") ->  | L59: 0 | N59: 0 | Q59: 0 | R59: 0
A60: Planted | B60: 0.059 | C60: =B60*HdCalcs!$G$3 -> 0 | D60: 0 | E60: 0.0585 | F60: =IF(D60>0,HdCalcs!$K$3*(-LN(1-HdDist!E60))^(1/HdCalcs!$L$3)," ") ->  | G60: =IF(D60>0,HdCalcs!$K$3*(-LN(1-HdDist!E60))^(1/HdCalcs!$L$3),0) -> 0 | I60: 0 | J60: =IF(D60>0,EXP(HdCalcs!$N$3+HtPd*LN(F60))," ") ->  | L60: 0 | N60: 0 | Q60: 0 | R60: 0
A61: Planted | B61: 0.06 | C61: =B61*HdCalcs!$G$3 -> 0 | D61: 0 | E61: 0.0595 | F61: =IF(D61>0,HdCalcs!$K$3*(-LN(1-HdDist!E61))^(1/HdCalcs!$L$3)," ") ->  | G61: =IF(D61>0,HdCalcs!$K$3*(-LN(1-HdDist!E61))^(1/HdCalcs!$L$3),0) -> 0 | I61: 0 | J61: =IF(D61>0,EXP(HdCalcs!$N$3+HtPd*LN(F61))," ") ->  | L61: 0 | N61: 0 | Q61: 0 | R61: 0
A62: Planted | B62: 0.061 | C62: =B62*HdCalcs!$G$3 -> 0 | D62: 0 | E62: 0.0605 | F62: =IF(D62>0,HdCalcs!$K$3*(-LN(1-HdDist!E62))^(1/HdCalcs!$L$3)," ") ->  | G62: =IF(D62>0,HdCalcs!$K$3*(-LN(1-HdDist!E62))^(1/HdCalcs!$L$3),0) -> 0 | I62: 0 | J62: =IF(D62>0,EXP(HdCalcs!$N$3+HtPd*LN(F62))," ") ->  | L62: 0 | N62: 0 | Q62: 0 | R62: 0
A63: Planted | B63: 0.062 | C63: =B63*HdCalcs!$G$3 -> 0 | D63: 0 | E63: 0.0615 | F63: =IF(D63>0,HdCalcs!$K$3*(-LN(1-HdDist!E63))^(1/HdCalcs!$L$3)," ") ->  | G63: =IF(D63>0,HdCalcs!$K$3*(-LN(1-HdDist!E63))^(1/HdCalcs!$L$3),0) -> 0 | I63: 0 | J63: =IF(D63>0,EXP(HdCalcs!$N$3+HtPd*LN(F63))," ") ->  | L63: 0 | N63: 0 | Q63: 0 | R63: 0
A64: Planted | B64: 0.063 | C64: =B64*HdCalcs!$G$3 -> 0 | D64: 0 | E64: 0.0625 | F64: =IF(D64>0,HdCalcs!$K$3*(-LN(1-HdDist!E64))^(1/HdCalcs!$L$3)," ") ->  | G64: =IF(D64>0,HdCalcs!$K$3*(-LN(1-HdDist!E64))^(1/HdCalcs!$L$3),0) -> 0 | I64: 0 | J64: =IF(D64>0,EXP(HdCalcs!$N$3+HtPd*LN(F64))," ") ->  | L64: 0 | N64: 0 | Q64: 0 | R64: 0
A65: Planted | B65: 0.064 | C65: =B65*HdCalcs!$G$3 -> 0 | D65: 0 | E65: 0.0635 | F65: =IF(D65>0,HdCalcs!$K$3*(-LN(1-HdDist!E65))^(1/HdCalcs!$L$3)," ") ->  | G65: =IF(D65>0,HdCalcs!$K$3*(-LN(1-HdDist!E65))^(1/HdCalcs!$L$3),0) -> 0 | I65: 0 | J65: =IF(D65>0,EXP(HdCalcs!$N$3+HtPd*LN(F65))," ") ->  | L65: 0 | N65: 0 | Q65: 0 | R65: 0
A66: Planted | B66: 0.065 | C66: =B66*HdCalcs!$G$3 -> 0 | D66: 0 | E66: 0.0645 | F66: =IF(D66>0,HdCalcs!$K$3*(-LN(1-HdDist!E66))^(1/HdCalcs!$L$3)," ") ->  | G66: =IF(D66>0,HdCalcs!$K$3*(-LN(1-HdDist!E66))^(1/HdCalcs!$L$3),0) -> 0 | I66: 0 | J66: =IF(D66>0,EXP(HdCalcs!$N$3+HtPd*LN(F66))," ") ->  | L66: 0 | N66: 0 | P66: =IF(D66>0,IF(J66<130," ",DBHa+DBHb*F66+DBHc*J66)," ") ->  | Q66: 0 | R66: =D66+R67 -> 0 | S66: =IF(D66>0,IF(R66<=100,J66," ")," ") -> 
A67: Planted | B67: 0.066 | C67: =B67*HdCalcs!$G$3 -> 0 | D67: =C67-C66 -> 0 | E67: =AVERAGE(B67,B66) -> 0.0655 | F67: =IF(D67>0,HdCalcs!$K$3*(-LN(1-HdDist!E67))^(1/HdCalcs!$L$3)," ") ->  | G67: =IF(D67>0,HdCalcs!$K$3*(-LN(1-HdDist!E67))^(1/HdCalcs!$L$3),0) -> 0 | H67: =IF(D67>0,ROUND(F67,0)," ") ->  | I67: =IF(D67>0,PI()*((F67/2)^2)*D67,0) -> 0 | J67: =IF(D67>0,EXP(HdCalcs!$N$3+HtPd*LN(F67))," ") ->  | K67: =IF(D67>0,ROUND(J67/5,-1)*5," ") ->  | L67: =IF(J67<30,0,D67) -> 0 | M67: =IF(L67>0,J67," ") ->  | N67: =IF(J67<130,0,D67) -> 0 | O67: =IF(N67>0,J67," ") ->  | Q67: =IF(D67>0,IF(J67<130,0,PI()*((P67/2)^2)*D67),0) -> 0 | R67: 0
A68: Planted | B68: 0.067 | C68: =B68*HdCalcs!$G$3 -> 0 | D68: 0 | E68: 0.0665 | F68: =IF(D68>0,HdCalcs!$K$3*(-LN(1-HdDist!E68))^(1/HdCalcs!$L$3)," ") ->  | G68: =IF(D68>0,HdCalcs!$K$3*(-LN(1-HdDist!E68))^(1/HdCalcs!$L$3),0) -> 0 | I68: 0 | J68: =IF(D68>0,EXP(HdCalcs!$N$3+HtPd*LN(F68))," ") ->  | L68: 0 | N68: 0 | Q68: 0 | R68: 0
A69: Planted | B69: 0.068 | C69: =B69*HdCalcs!$G$3 -> 0 | D69: 0 | E69: 0.0675 | F69: =IF(D69>0,HdCalcs!$K$3*(-LN(1-HdDist!E69))^(1/HdCalcs!$L$3)," ") ->  | G69: =IF(D69>0,HdCalcs!$K$3*(-LN(1-HdDist!E69))^(1/HdCalcs!$L$3),0) -> 0 | I69: 0 | J69: =IF(D69>0,EXP(HdCalcs!$N$3+HtPd*LN(F69))," ") ->  | L69: 0 | N69: 0 | Q69: 0 | R69: 0
A70: Planted | B70: 0.069 | C70: =B70*HdCalcs!$G$3 -> 0 | D70: 0 | E70: 0.0685 | F70: =IF(D70>0,HdCalcs!$K$3*(-LN(1-HdDist!E70))^(1/HdCalcs!$L$3)," ") ->  | G70: =IF(D70>0,HdCalcs!$K$3*(-LN(1-HdDist!E70))^(1/HdCalcs!$L$3),0) -> 0 | I70: 0 | J70: =IF(D70>0,EXP(HdCalcs!$N$3+HtPd*LN(F70))," ") ->  | L70: 0 | N70: 0 | Q70: 0 | R70: 0
A71: Planted | B71: 0.07 | C71: =B71*HdCalcs!$G$3 -> 0 | D71: 0 | E71: 0.0695 | F71: =IF(D71>0,HdCalcs!$K$3*(-LN(1-HdDist!E71))^(1/HdCalcs!$L$3)," ") ->  | G71: =IF(D71>0,HdCalcs!$K$3*(-LN(1-HdDist!E71))^(1/HdCalcs!$L$3),0) -> 0 | I71: 0 | J71: =IF(D71>0,EXP(HdCalcs!$N$3+HtPd*LN(F71))," ") ->  | L71: 0 | N71: 0 | Q71: 0 | R71: 0
A72: Planted | B72: 0.071 | C72: =B72*HdCalcs!$G$3 -> 0 | D72: 0 | E72: 0.0705 | F72: =IF(D72>0,HdCalcs!$K$3*(-LN(1-HdDist!E72))^(1/HdCalcs!$L$3)," ") ->  | G72: =IF(D72>0,HdCalcs!$K$3*(-LN(1-HdDist!E72))^(1/HdCalcs!$L$3),0) -> 0 | I72: 0 | J72: =IF(D72>0,EXP(HdCalcs!$N$3+HtPd*LN(F72))," ") ->  | L72: 0 | N72: 0 | Q72: 0 | R72: 0
A73: Planted | B73: 0.072 | C73: =B73*HdCalcs!$G$3 -> 0 | D73: 0 | E73: 0.0715 | F73: =IF(D73>0,HdCalcs!$K$3*(-LN(1-HdDist!E73))^(1/HdCalcs!$L$3)," ") ->  | G73: =IF(D73>0,HdCalcs!$K$3*(-LN(1-HdDist!E73))^(1/HdCalcs!$L$3),0) -> 0 | I73: 0 | J73: =IF(D73>0,EXP(HdCalcs!$N$3+HtPd*LN(F73))," ") ->  | L73: 0 | N73: 0 | Q73: 0 | R73: 0
A74: Planted | B74: 0.073 | C74: =B74*HdCalcs!$G$3 -> 0 | D74: 0 | E74: 0.0725 | F74: =IF(D74>0,HdCalcs!$K$3*(-LN(1-HdDist!E74))^(1/HdCalcs!$L$3)," ") ->  | G74: =IF(D74>0,HdCalcs!$K$3*(-LN(1-HdDist!E74))^(1/HdCalcs!$L$3),0) -> 0 | I74: 0 | J74: =IF(D74>0,EXP(HdCalcs!$N$3+HtPd*LN(F74))," ") ->  | L74: 0 | N74: 0 | Q74: 0 | R74: 0
A75: Planted | B75: 0.074 | C75: =B75*HdCalcs!$G$3 -> 0 | D75: 0 | E75: 0.0735 | F75: =IF(D75>0,HdCalcs!$K$3*(-LN(1-HdDist!E75))^(1/HdCalcs!$L$3)," ") ->  | G75: =IF(D75>0,HdCalcs!$K$3*(-LN(1-HdDist!E75))^(1/HdCalcs!$L$3),0) -> 0 | I75: 0 | J75: =IF(D75>0,EXP(HdCalcs!$N$3+HtPd*LN(F75))," ") ->  | L75: 0 | N75: 0 | Q75: 0 | R75: 0
A76: Planted | B76: 0.075 | C76: =B76*HdCalcs!$G$3 -> 0 | D76: 0 | E76: 0.0745 | F76: =IF(D76>0,HdCalcs!$K$3*(-LN(1-HdDist!E76))^(1/HdCalcs!$L$3)," ") ->  | G76: =IF(D76>0,HdCalcs!$K$3*(-LN(1-HdDist!E76))^(1/HdCalcs!$L$3),0) -> 0 | I76: 0 | J76: =IF(D76>0,EXP(HdCalcs!$N$3+HtPd*LN(F76))," ") ->  | L76: 0 | N76: 0 | Q76: 0 | R76: 0
A77: Planted | B77: 0.076 | C77: =B77*HdCalcs!$G$3 -> 0 | D77: 0 | E77: 0.0755 | F77: =IF(D77>0,HdCalcs!$K$3*(-LN(1-HdDist!E77))^(1/HdCalcs!$L$3)," ") ->  | G77: =IF(D77>0,HdCalcs!$K$3*(-LN(1-HdDist!E77))^(1/HdCalcs!$L$3),0) -> 0 | I77: 0 | J77: =IF(D77>0,EXP(HdCalcs!$N$3+HtPd*LN(F77))," ") ->  | L77: 0 | N77: 0 | Q77: 0 | R77: 0
A78: Planted | B78: 0.077 | C78: =B78*HdCalcs!$G$3 -> 0 | D78: 0 | E78: 0.0765 | F78: =IF(D78>0,HdCalcs!$K$3*(-LN(1-HdDist!E78))^(1/HdCalcs!$L$3)," ") ->  | G78: =IF(D78>0,HdCalcs!$K$3*(-LN(1-HdDist!E78))^(1/HdCalcs!$L$3),0) -> 0 | I78: 0 | J78: =IF(D78>0,EXP(HdCalcs!$N$3+HtPd*LN(F78))," ") ->  | L78: 0 | N78: 0 | Q78: 0 | R78: 0
A79: Planted | B79: 0.078 | C79: =B79*HdCalcs!$G$3 -> 0 | D79: 0 | E79: 0.0775 | F79: =IF(D79>0,HdCalcs!$K$3*(-LN(1-HdDist!E79))^(1/HdCalcs!$L$3)," ") ->  | G79: =IF(D79>0,HdCalcs!$K$3*(-LN(1-HdDist!E79))^(1/HdCalcs!$L$3),0) -> 0 | I79: 0 | J79: =IF(D79>0,EXP(HdCalcs!$N$3+HtPd*LN(F79))," ") ->  | L79: 0 | N79: 0 | Q79: 0 | R79: 0
A80: Planted | B80: 0.079 | C80: =B80*HdCalcs!$G$3 -> 0 | D80: 0 | E80: 0.0785 | F80: =IF(D80>0,HdCalcs!$K$3*(-LN(1-HdDist!E80))^(1/HdCalcs!$L$3)," ") ->  | G80: =IF(D80>0,HdCalcs!$K$3*(-LN(1-HdDist!E80))^(1/HdCalcs!$L$3),0) -> 0 | I80: 0 | J80: =IF(D80>0,EXP(HdCalcs!$N$3+HtPd*LN(F80))," ") ->  | L80: 0 | N80: 0 | Q80: 0 | R80: 0
A81: Planted | B81: 0.08 | C81: =B81*HdCalcs!$G$3 -> 0 | D81: 0 | E81: 0.0795 | F81: =IF(D81>0,HdCalcs!$K$3*(-LN(1-HdDist!E81))^(1/HdCalcs!$L$3)," ") ->  | G81: =IF(D81>0,HdCalcs!$K$3*(-LN(1-HdDist!E81))^(1/HdCalcs!$L$3),0) -> 0 | I81: 0 | J81: =IF(D81>0,EXP(HdCalcs!$N$3+HtPd*LN(F81))," ") ->  | L81: 0 | N81: 0 | Q81: 0 | R81: 0
A82: Planted | B82: 0.081 | C82: =B82*HdCalcs!$G$3 -> 0 | D82: 0 | E82: 0.0805 | F82: =IF(D82>0,HdCalcs!$K$3*(-LN(1-HdDist!E82))^(1/HdCalcs!$L$3)," ") ->  | G82: =IF(D82>0,HdCalcs!$K$3*(-LN(1-HdDist!E82))^(1/HdCalcs!$L$3),0) -> 0 | I82: 0 | J82: =IF(D82>0,EXP(HdCalcs!$N$3+HtPd*LN(F82))," ") ->  | L82: 0 | N82: 0 | Q82: 0 | R82: 0
A83: Planted | B83: 0.082 | C83: =B83*HdCalcs!$G$3 -> 0 | D83: 0 | E83: 0.0815 | F83: =IF(D83>0,HdCalcs!$K$3*(-LN(1-HdDist!E83))^(1/HdCalcs!$L$3)," ") ->  | G83: =IF(D83>0,HdCalcs!$K$3*(-LN(1-HdDist!E83))^(1/HdCalcs!$L$3),0) -> 0 | I83: 0 | J83: =IF(D83>0,EXP(HdCalcs!$N$3+HtPd*LN(F83))," ") ->  | L83: 0 | N83: 0 | Q83: 0 | R83: 0
A84: Planted | B84: 0.083 | C84: =B84*HdCalcs!$G$3 -> 0 | D84: 0 | E84: 0.0825 | F84: =IF(D84>0,HdCalcs!$K$3*(-LN(1-HdDist!E84))^(1/HdCalcs!$L$3)," ") ->  | G84: =IF(D84>0,HdCalcs!$K$3*(-LN(1-HdDist!E84))^(1/HdCalcs!$L$3),0) -> 0 | I84: 0 | J84: =IF(D84>0,EXP(HdCalcs!$N$3+HtPd*LN(F84))," ") ->  | L84: 0 | N84: 0 | Q84: 0 | R84: 0
A85: Planted | B85: 0.084 | C85: =B85*HdCalcs!$G$3 -> 0 | D85: 0 | E85: 0.0835 | F85: =IF(D85>0,HdCalcs!$K$3*(-LN(1-HdDist!E85))^(1/HdCalcs!$L$3)," ") ->  | G85: =IF(D85>0,HdCalcs!$K$3*(-LN(1-HdDist!E85))^(1/HdCalcs!$L$3),0) -> 0 | I85: 0 | J85: =IF(D85>0,EXP(HdCalcs!$N$3+HtPd*LN(F85))," ") ->  | L85: 0 | N85: 0 | Q85: 0 | R85: 0
A86: Planted | B86: 0.085 | C86: =B86*HdCalcs!$G$3 -> 0 | D86: 0 | E86: 0.0845 | F86: =IF(D86>0,HdCalcs!$K$3*(-LN(1-HdDist!E86))^(1/HdCalcs!$L$3)," ") ->  | G86: =IF(D86>0,HdCalcs!$K$3*(-LN(1-HdDist!E86))^(1/HdCalcs!$L$3),0) -> 0 | I86: 0 | J86: =IF(D86>0,EXP(HdCalcs!$N$3+HtPd*LN(F86))," ") ->  | L86: 0 | N86: 0 | Q86: 0 | R86: 0
A87: Planted | B87: 0.086 | C87: =B87*HdCalcs!$G$3 -> 0 | D87: 0 | E87: 0.0855 | F87: =IF(D87>0,HdCalcs!$K$3*(-LN(1-HdDist!E87))^(1/HdCalcs!$L$3)," ") ->  | G87: =IF(D87>0,HdCalcs!$K$3*(-LN(1-HdDist!E87))^(1/HdCalcs!$L$3),0) -> 0 | I87: 0 | J87: =IF(D87>0,EXP(HdCalcs!$N$3+HtPd*LN(F87))," ") ->  | L87: 0 | N87: 0 | Q87: 0 | R87: 0
A88: Planted | B88: 0.087 | C88: =B88*HdCalcs!$G$3 -> 0 | D88: 0 | E88: 0.0865 | F88: =IF(D88>0,HdCalcs!$K$3*(-LN(1-HdDist!E88))^(1/HdCalcs!$L$3)," ") ->  | G88: =IF(D88>0,HdCalcs!$K$3*(-LN(1-HdDist!E88))^(1/HdCalcs!$L$3),0) -> 0 | I88: 0 | J88: =IF(D88>0,EXP(HdCalcs!$N$3+HtPd*LN(F88))," ") ->  | L88: 0 | N88: 0 | Q88: 0 | R88: 0
A89: Planted | B89: 0.088 | C89: =B89*HdCalcs!$G$3 -> 0 | D89: 0 | E89: 0.0875 | F89: =IF(D89>0,HdCalcs!$K$3*(-LN(1-HdDist!E89))^(1/HdCalcs!$L$3)," ") ->  | G89: =IF(D89>0,HdCalcs!$K$3*(-LN(1-HdDist!E89))^(1/HdCalcs!$L$3),0) -> 0 | I89: 0 | J89: =IF(D89>0,EXP(HdCalcs!$N$3+HtPd*LN(F89))," ") ->  | L89: 0 | N89: 0 | Q89: 0 | R89: 0
A90: Planted | B90: 0.089 | C90: =B90*HdCalcs!$G$3 -> 0 | D90: 0 | E90: 0.0885 | F90: =IF(D90>0,HdCalcs!$K$3*(-LN(1-HdDist!E90))^(1/HdCalcs!$L$3)," ") ->  | G90: =IF(D90>0,HdCalcs!$K$3*(-LN(1-HdDist!E90))^(1/HdCalcs!$L$3),0) -> 0 | I90: 0 | J90: =IF(D90>0,EXP(HdCalcs!$N$3+HtPd*LN(F90))," ") ->  | L90: 0 | N90: 0 | Q90: 0 | R90: 0
A91: Planted | B91: 0.09 | C91: =B91*HdCalcs!$G$3 -> 0 | D91: 0 | E91: 0.0895 | F91: =IF(D91>0,HdCalcs!$K$3*(-LN(1-HdDist!E91))^(1/HdCalcs!$L$3)," ") ->  | G91: =IF(D91>0,HdCalcs!$K$3*(-LN(1-HdDist!E91))^(1/HdCalcs!$L$3),0) -> 0 | I91: 0 | J91: =IF(D91>0,EXP(HdCalcs!$N$3+HtPd*LN(F91))," ") ->  | L91: 0 | N91: 0 | Q91: 0 | R91: 0
A92: Planted | B92: 0.091 | C92: =B92*HdCalcs!$G$3 -> 0 | D92: 0 | E92: 0.0905 | F92: =IF(D92>0,HdCalcs!$K$3*(-LN(1-HdDist!E92))^(1/HdCalcs!$L$3)," ") ->  | G92: =IF(D92>0,HdCalcs!$K$3*(-LN(1-HdDist!E92))^(1/HdCalcs!$L$3),0) -> 0 | I92: 0 | J92: =IF(D92>0,EXP(HdCalcs!$N$3+HtPd*LN(F92))," ") ->  | L92: 0 | N92: 0 | Q92: 0 | R92: 0
A93: Planted | B93: 0.092 | C93: =B93*HdCalcs!$G$3 -> 0 | D93: 0 | E93: 0.0915 | F93: =IF(D93>0,HdCalcs!$K$3*(-LN(1-HdDist!E93))^(1/HdCalcs!$L$3)," ") ->  | G93: =IF(D93>0,HdCalcs!$K$3*(-LN(1-HdDist!E93))^(1/HdCalcs!$L$3),0) -> 0 | I93: 0 | J93: =IF(D93>0,EXP(HdCalcs!$N$3+HtPd*LN(F93))," ") ->  | L93: 0 | N93: 0 | Q93: 0 | R93: 0
A94: Planted | B94: 0.093 | C94: =B94*HdCalcs!$G$3 -> 0 | D94: 0 | E94: 0.0925 | F94: =IF(D94>0,HdCalcs!$K$3*(-LN(1-HdDist!E94))^(1/HdCalcs!$L$3)," ") ->  | G94: =IF(D94>0,HdCalcs!$K$3*(-LN(1-HdDist!E94))^(1/HdCalcs!$L$3),0) -> 0 | I94: 0 | J94: =IF(D94>0,EXP(HdCalcs!$N$3+HtPd*LN(F94))," ") ->  | L94: 0 | N94: 0 | Q94: 0 | R94: 0
A95: Planted | B95: 0.094 | C95: =B95*HdCalcs!$G$3 -> 0 | D95: 0 | E95: 0.0935 | F95: =IF(D95>0,HdCalcs!$K$3*(-LN(1-HdDist!E95))^(1/HdCalcs!$L$3)," ") ->  | G95: =IF(D95>0,HdCalcs!$K$3*(-LN(1-HdDist!E95))^(1/HdCalcs!$L$3),0) -> 0 | I95: 0 | J95: =IF(D95>0,EXP(HdCalcs!$N$3+HtPd*LN(F95))," ") ->  | L95: 0 | N95: 0 | Q95: 0 | R95: 0
A96: Planted | B96: 0.095 | C96: =B96*HdCalcs!$G$3 -> 0 | D96: 0 | E96: 0.0945 | F96: =IF(D96>0,HdCalcs!$K$3*(-LN(1-HdDist!E96))^(1/HdCalcs!$L$3)," ") ->  | G96: =IF(D96>0,HdCalcs!$K$3*(-LN(1-HdDist!E96))^(1/HdCalcs!$L$3),0) -> 0 | I96: 0 | J96: =IF(D96>0,EXP(HdCalcs!$N$3+HtPd*LN(F96))," ") ->  | L96: 0 | N96: 0 | Q96: 0 | R96: 0
A97: Planted | B97: 0.096 | C97: =B97*HdCalcs!$G$3 -> 0 | D97: 0 | E97: 0.0955 | F97: =IF(D97>0,HdCalcs!$K$3*(-LN(1-HdDist!E97))^(1/HdCalcs!$L$3)," ") ->  | G97: =IF(D97>0,HdCalcs!$K$3*(-LN(1-HdDist!E97))^(1/HdCalcs!$L$3),0) -> 0 | I97: 0 | J97: =IF(D97>0,EXP(HdCalcs!$N$3+HtPd*LN(F97))," ") ->  | L97: 0 | N97: 0 | Q97: 0 | R97: 0
A98: Planted | B98: 0.097 | C98: =B98*HdCalcs!$G$3 -> 0 | D98: 0 | E98: 0.0965 | F98: =IF(D98>0,HdCalcs!$K$3*(-LN(1-HdDist!E98))^(1/HdCalcs!$L$3)," ") ->  | G98: =IF(D98>0,HdCalcs!$K$3*(-LN(1-HdDist!E98))^(1/HdCalcs!$L$3),0) -> 0 | I98: 0 | J98: =IF(D98>0,EXP(HdCalcs!$N$3+HtPd*LN(F98))," ") ->  | L98: 0 | N98: 0 | Q98: 0 | R98: 0
A99: Planted | B99: 0.098 | C99: =B99*HdCalcs!$G$3 -> 0 | D99: 0 | E99: 0.0975 | F99: =IF(D99>0,HdCalcs!$K$3*(-LN(1-HdDist!E99))^(1/HdCalcs!$L$3)," ") ->  | G99: =IF(D99>0,HdCalcs!$K$3*(-LN(1-HdDist!E99))^(1/HdCalcs!$L$3),0) -> 0 | I99: 0 | J99: =IF(D99>0,EXP(HdCalcs!$N$3+HtPd*LN(F99))," ") ->  | L99: 0 | N99: 0 | Q99: 0 | R99: 0
A100: Planted | B100: 0.099 | C100: =B100*HdCalcs!$G$3 -> 0 | D100: 0 | E100: 0.0985 | F100: =IF(D100>0,HdCalcs!$K$3*(-LN(1-HdDist!E100))^(1/HdCalcs!$L$3)," ") ->  | G100: =IF(D100>0,HdCalcs!$K$3*(-LN(1-HdDist!E100))^(1/HdCalcs!$L$3),0) -> 0 | I100: 0 | J100: =IF(D100>0,EXP(HdCalcs!$N$3+HtPd*LN(F100))," ") ->  | L100: 0 | N100: 0 | Q100: 0 | R100: 0
A101: Planted | B101: 0.1 | C101: =B101*HdCalcs!$G$3 -> 0 | D101: 0 | E101: 0.0995 | F101: =IF(D101>0,HdCalcs!$K$3*(-LN(1-HdDist!E101))^(1/HdCalcs!$L$3)," ") ->  | G101: =IF(D101>0,HdCalcs!$K$3*(-LN(1-HdDist!E101))^(1/HdCalcs!$L$3),0) -> 0 | I101: 0 | J101: =IF(D101>0,EXP(HdCalcs!$N$3+HtPd*LN(F101))," ") ->  | L101: 0 | N101: 0 | Q101: 0 | R101: 0
A102: Planted | B102: 0.101 | C102: =B102*HdCalcs!$G$3 -> 0 | D102: 0 | E102: 0.1005 | F102: =IF(D102>0,HdCalcs!$K$3*(-LN(1-HdDist!E102))^(1/HdCalcs!$L$3)," ") ->  | G102: =IF(D102>0,HdCalcs!$K$3*(-LN(1-HdDist!E102))^(1/HdCalcs!$L$3),0) -> 0 | I102: 0 | J102: =IF(D102>0,EXP(HdCalcs!$N$3+HtPd*LN(F102))," ") ->  | L102: 0 | N102: 0 | Q102: 0 | R102: 0
A103: Planted | B103: 0.102 | C103: =B103*HdCalcs!$G$3 -> 0 | D103: 0 | E103: 0.1015 | F103: =IF(D103>0,HdCalcs!$K$3*(-LN(1-HdDist!E103))^(1/HdCalcs!$L$3)," ") ->  | G103: =IF(D103>0,HdCalcs!$K$3*(-LN(1-HdDist!E103))^(1/HdCalcs!$L$3),0) -> 0 | I103: 0 | J103: =IF(D103>0,EXP(HdCalcs!$N$3+HtPd*LN(F103))," ") ->  | L103: 0 | N103: 0 | Q103: 0 | R103: 0
A104: Planted | B104: 0.103 | C104: =B104*HdCalcs!$G$3 -> 0 | D104: 0 | E104: 0.1025 | F104: =IF(D104>0,HdCalcs!$K$3*(-LN(1-HdDist!E104))^(1/HdCalcs!$L$3)," ") ->  | G104: =IF(D104>0,HdCalcs!$K$3*(-LN(1-HdDist!E104))^(1/HdCalcs!$L$3),0) -> 0 | I104: 0 | J104: =IF(D104>0,EXP(HdCalcs!$N$3+HtPd*LN(F104))," ") ->  | L104: 0 | N104: 0 | Q104: 0 | R104: 0
A105: Planted | B105: 0.104 | C105: =B105*HdCalcs!$G$3 -> 0 | D105: 0 | E105: 0.1035 | F105: =IF(D105>0,HdCalcs!$K$3*(-LN(1-HdDist!E105))^(1/HdCalcs!$L$3)," ") ->  | G105: =IF(D105>0,HdCalcs!$K$3*(-LN(1-HdDist!E105))^(1/HdCalcs!$L$3),0) -> 0 | I105: 0 | J105: =IF(D105>0,EXP(HdCalcs!$N$3+HtPd*LN(F105))," ") ->  | L105: 0 | N105: 0 | Q105: 0 | R105: 0
A106: Planted | B106: 0.105 | C106: =B106*HdCalcs!$G$3 -> 0 | D106: 0 | E106: 0.1045 | F106: =IF(D106>0,HdCalcs!$K$3*(-LN(1-HdDist!E106))^(1/HdCalcs!$L$3)," ") ->  | G106: =IF(D106>0,HdCalcs!$K$3*(-LN(1-HdDist!E106))^(1/HdCalcs!$L$3),0) -> 0 | I106: 0 | J106: =IF(D106>0,EXP(HdCalcs!$N$3+HtPd*LN(F106))," ") ->  | L106: 0 | N106: 0 | Q106: 0 | R106: 0
A107: Planted | B107: 0.106 | C107: =B107*HdCalcs!$G$3 -> 0 | D107: 0 | E107: 0.1055 | F107: =IF(D107>0,HdCalcs!$K$3*(-LN(1-HdDist!E107))^(1/HdCalcs!$L$3)," ") ->  | G107: =IF(D107>0,HdCalcs!$K$3*(-LN(1-HdDist!E107))^(1/HdCalcs!$L$3),0) -> 0 | I107: 0 | J107: =IF(D107>0,EXP(HdCalcs!$N$3+HtPd*LN(F107))," ") ->  | L107: 0 | N107: 0 | Q107: 0 | R107: 0
A108: Planted | B108: 0.107 | C108: =B108*HdCalcs!$G$3 -> 0 | D108: 0 | E108: 0.1065 | F108: =IF(D108>0,HdCalcs!$K$3*(-LN(1-HdDist!E108))^(1/HdCalcs!$L$3)," ") ->  | G108: =IF(D108>0,HdCalcs!$K$3*(-LN(1-HdDist!E108))^(1/HdCalcs!$L$3),0) -> 0 | I108: 0 | J108: =IF(D108>0,EXP(HdCalcs!$N$3+HtPd*LN(F108))," ") ->  | L108: 0 | N108: 0 | Q108: 0 | R108: 0
A109: Planted | B109: 0.108 | C109: =B109*HdCalcs!$G$3 -> 0 | D109: 0 | E109: 0.1075 | F109: =IF(D109>0,HdCalcs!$K$3*(-LN(1-HdDist!E109))^(1/HdCalcs!$L$3)," ") ->  | G109: =IF(D109>0,HdCalcs!$K$3*(-LN(1-HdDist!E109))^(1/HdCalcs!$L$3),0) -> 0 | I109: 0 | J109: =IF(D109>0,EXP(HdCalcs!$N$3+HtPd*LN(F109))," ") ->  | L109: 0 | N109: 0 | Q109: 0 | R109: 0
A110: Planted | B110: 0.109 | C110: =B110*HdCalcs!$G$3 -> 0 | D110: 0 | E110: 0.1085 | F110: =IF(D110>0,HdCalcs!$K$3*(-LN(1-HdDist!E110))^(1/HdCalcs!$L$3)," ") ->  | G110: =IF(D110>0,HdCalcs!$K$3*(-LN(1-HdDist!E110))^(1/HdCalcs!$L$3),0) -> 0 | I110: 0 | J110: =IF(D110>0,EXP(HdCalcs!$N$3+HtPd*LN(F110))," ") ->  | L110: 0 | N110: 0 | Q110: 0 | R110: 0
A111: Planted | B111: 0.11 | C111: =B111*HdCalcs!$G$3 -> 0 | D111: 0 | E111: 0.1095 | F111: =IF(D111>0,HdCalcs!$K$3*(-LN(1-HdDist!E111))^(1/HdCalcs!$L$3)," ") ->  | G111: =IF(D111>0,HdCalcs!$K$3*(-LN(1-HdDist!E111))^(1/HdCalcs!$L$3),0) -> 0 | I111: 0 | J111: =IF(D111>0,EXP(HdCalcs!$N$3+HtPd*LN(F111))," ") ->  | L111: 0 | N111: 0 | Q111: 0 | R111: 0
A112: Planted | B112: 0.111 | C112: =B112*HdCalcs!$G$3 -> 0 | D112: 0 | E112: 0.1105 | F112: =IF(D112>0,HdCalcs!$K$3*(-LN(1-HdDist!E112))^(1/HdCalcs!$L$3)," ") ->  | G112: =IF(D112>0,HdCalcs!$K$3*(-LN(1-HdDist!E112))^(1/HdCalcs!$L$3),0) -> 0 | I112: 0 | J112: =IF(D112>0,EXP(HdCalcs!$N$3+HtPd*LN(F112))," ") ->  | L112: 0 | N112: 0 | Q112: 0 | R112: 0
A113: Planted | B113: 0.112 | C113: =B113*HdCalcs!$G$3 -> 0 | D113: 0 | E113: 0.1115 | F113: =IF(D113>0,HdCalcs!$K$3*(-LN(1-HdDist!E113))^(1/HdCalcs!$L$3)," ") ->  | G113: =IF(D113>0,HdCalcs!$K$3*(-LN(1-HdDist!E113))^(1/HdCalcs!$L$3),0) -> 0 | I113: 0 | J113: =IF(D113>0,EXP(HdCalcs!$N$3+HtPd*LN(F113))," ") ->  | L113: 0 | N113: 0 | Q113: 0 | R113: 0
A114: Planted | B114: 0.113 | C114: =B114*HdCalcs!$G$3 -> 0 | D114: 0 | E114: 0.1125 | F114: =IF(D114>0,HdCalcs!$K$3*(-LN(1-HdDist!E114))^(1/HdCalcs!$L$3)," ") ->  | G114: =IF(D114>0,HdCalcs!$K$3*(-LN(1-HdDist!E114))^(1/HdCalcs!$L$3),0) -> 0 | I114: 0 | J114: =IF(D114>0,EXP(HdCalcs!$N$3+HtPd*LN(F114))," ") ->  | L114: 0 | N114: 0 | Q114: 0 | R114: 0
A115: Planted | B115: 0.114 | C115: =B115*HdCalcs!$G$3 -> 0 | D115: 0 | E115: 0.1135 | F115: =IF(D115>0,HdCalcs!$K$3*(-LN(1-HdDist!E115))^(1/HdCalcs!$L$3)," ") ->  | G115: =IF(D115>0,HdCalcs!$K$3*(-LN(1-HdDist!E115))^(1/HdCalcs!$L$3),0) -> 0 | I115: 0 | J115: =IF(D115>0,EXP(HdCalcs!$N$3+HtPd*LN(F115))," ") ->  | L115: 0 | N115: 0 | Q115: 0 | R115: 0
A116: Planted | B116: 0.115 | C116: =B116*HdCalcs!$G$3 -> 0 | D116: 0 | E116: 0.1145 | F116: =IF(D116>0,HdCalcs!$K$3*(-LN(1-HdDist!E116))^(1/HdCalcs!$L$3)," ") ->  | G116: =IF(D116>0,HdCalcs!$K$3*(-LN(1-HdDist!E116))^(1/HdCalcs!$L$3),0) -> 0 | I116: 0 | J116: =IF(D116>0,EXP(HdCalcs!$N$3+HtPd*LN(F116))," ") ->  | L116: 0 | N116: 0 | Q116: 0 | R116: 0
A117: Planted | B117: 0.116 | C117: =B117*HdCalcs!$G$3 -> 0 | D117: 0 | E117: 0.1155 | F117: =IF(D117>0,HdCalcs!$K$3*(-LN(1-HdDist!E117))^(1/HdCalcs!$L$3)," ") ->  | G117: =IF(D117>0,HdCalcs!$K$3*(-LN(1-HdDist!E117))^(1/HdCalcs!$L$3),0) -> 0 | I117: 0 | J117: =IF(D117>0,EXP(HdCalcs!$N$3+HtPd*LN(F117))," ") ->  | L117: 0 | N117: 0 | Q117: 0 | R117: 0
A118: Planted | B118: 0.117 | C118: =B118*HdCalcs!$G$3 -> 0 | D118: 0 | E118: 0.1165 | F118: =IF(D118>0,HdCalcs!$K$3*(-LN(1-HdDist!E118))^(1/HdCalcs!$L$3)," ") ->  | G118: =IF(D118>0,HdCalcs!$K$3*(-LN(1-HdDist!E118))^(1/HdCalcs!$L$3),0) -> 0 | I118: 0 | J118: =IF(D118>0,EXP(HdCalcs!$N$3+HtPd*LN(F118))," ") ->  | L118: 0 | N118: 0 | Q118: 0 | R118: 0
A119: Planted | B119: 0.118 | C119: =B119*HdCalcs!$G$3 -> 0 | D119: 0 | E119: 0.1175 | F119: =IF(D119>0,HdCalcs!$K$3*(-LN(1-HdDist!E119))^(1/HdCalcs!$L$3)," ") ->  | G119: =IF(D119>0,HdCalcs!$K$3*(-LN(1-HdDist!E119))^(1/HdCalcs!$L$3),0) -> 0 | I119: 0 | J119: =IF(D119>0,EXP(HdCalcs!$N$3+HtPd*LN(F119))," ") ->  | L119: 0 | N119: 0 | Q119: 0 | R119: 0
A120: Planted | B120: 0.119 | C120: =B120*HdCalcs!$G$3 -> 0 | D120: 0 | E120: 0.1185 | F120: =IF(D120>0,HdCalcs!$K$3*(-LN(1-HdDist!E120))^(1/HdCalcs!$L$3)," ") ->  | G120: =IF(D120>0,HdCalcs!$K$3*(-LN(1-HdDist!E120))^(1/HdCalcs!$L$3),0) -> 0 | I120: 0 | J120: =IF(D120>0,EXP(HdCalcs!$N$3+HtPd*LN(F120))," ") ->  | L120: 0 | N120: 0 | Q120: 0 | R120: 0
A121: Planted | B121: 0.12 | C121: =B121*HdCalcs!$G$3 -> 0 | D121: 0 | E121: 0.1195 | F121: =IF(D121>0,HdCalcs!$K$3*(-LN(1-HdDist!E121))^(1/HdCalcs!$L$3)," ") ->  | G121: =IF(D121>0,HdCalcs!$K$3*(-LN(1-HdDist!E121))^(1/HdCalcs!$L$3),0) -> 0 | I121: 0 | J121: =IF(D121>0,EXP(HdCalcs!$N$3+HtPd*LN(F121))," ") ->  | L121: 0 | N121: 0 | Q121: 0 | R121: 0
A122: Planted | B122: 0.121 | C122: =B122*HdCalcs!$G$3 -> 0 | D122: 0 | E122: 0.1205 | F122: =IF(D122>0,HdCalcs!$K$3*(-LN(1-HdDist!E122))^(1/HdCalcs!$L$3)," ") ->  | G122: =IF(D122>0,HdCalcs!$K$3*(-LN(1-HdDist!E122))^(1/HdCalcs!$L$3),0) -> 0 | I122: 0 | J122: =IF(D122>0,EXP(HdCalcs!$N$3+HtPd*LN(F122))," ") ->  | L122: 0 | N122: 0 | Q122: 0 | R122: 0
A123: Planted | B123: 0.122 | C123: =B123*HdCalcs!$G$3 -> 0 | D123: 0 | E123: 0.1215 | F123: =IF(D123>0,HdCalcs!$K$3*(-LN(1-HdDist!E123))^(1/HdCalcs!$L$3)," ") ->  | G123: =IF(D123>0,HdCalcs!$K$3*(-LN(1-HdDist!E123))^(1/HdCalcs!$L$3),0) -> 0 | I123: 0 | J123: =IF(D123>0,EXP(HdCalcs!$N$3+HtPd*LN(F123))," ") ->  | L123: 0 | N123: 0 | Q123: 0 | R123: 0
A124: Planted | B124: 0.123 | C124: =B124*HdCalcs!$G$3 -> 0 | D124: 0 | E124: 0.1225 | F124: =IF(D124>0,HdCalcs!$K$3*(-LN(1-HdDist!E124))^(1/HdCalcs!$L$3)," ") ->  | G124: =IF(D124>0,HdCalcs!$K$3*(-LN(1-HdDist!E124))^(1/HdCalcs!$L$3),0) -> 0 | I124: 0 | J124: =IF(D124>0,EXP(HdCalcs!$N$3+HtPd*LN(F124))," ") ->  | L124: 0 | N124: 0 | Q124: 0 | R124: 0
A125: Planted | B125: 0.124 | C125: =B125*HdCalcs!$G$3 -> 0 | D125: 0 | E125: 0.1235 | F125: =IF(D125>0,HdCalcs!$K$3*(-LN(1-HdDist!E125))^(1/HdCalcs!$L$3)," ") ->  | G125: =IF(D125>0,HdCalcs!$K$3*(-LN(1-HdDist!E125))^(1/HdCalcs!$L$3),0) -> 0 | I125: 0 | J125: =IF(D125>0,EXP(HdCalcs!$N$3+HtPd*LN(F125))," ") ->  | L125: 0 | N125: 0 | Q125: 0 | R125: 0
A126: Planted | B126: 0.125 | C126: =B126*HdCalcs!$G$3 -> 0 | D126: 0 | E126: 0.1245 | F126: =IF(D126>0,HdCalcs!$K$3*(-LN(1-HdDist!E126))^(1/HdCalcs!$L$3)," ") ->  | G126: =IF(D126>0,HdCalcs!$K$3*(-LN(1-HdDist!E126))^(1/HdCalcs!$L$3),0) -> 0 | I126: 0 | J126: =IF(D126>0,EXP(HdCalcs!$N$3+HtPd*LN(F126))," ") ->  | L126: 0 | N126: 0 | Q126: 0 | R126: 0
A127: Planted | B127: 0.126 | C127: =B127*HdCalcs!$G$3 -> 0 | D127: 0 | E127: 0.1255 | F127: =IF(D127>0,HdCalcs!$K$3*(-LN(1-HdDist!E127))^(1/HdCalcs!$L$3)," ") ->  | G127: =IF(D127>0,HdCalcs!$K$3*(-LN(1-HdDist!E127))^(1/HdCalcs!$L$3),0) -> 0 | I127: 0 | J127: =IF(D127>0,EXP(HdCalcs!$N$3+HtPd*LN(F127))," ") ->  | L127: 0 | N127: 0 | Q127: 0 | R127: 0
A128: Planted | B128: 0.127 | C128: =B128*HdCalcs!$G$3 -> 0 | D128: 0 | E128: 0.1265 | F128: =IF(D128>0,HdCalcs!$K$3*(-LN(1-HdDist!E128))^(1/HdCalcs!$L$3)," ") ->  | G128: =IF(D128>0,HdCalcs!$K$3*(-LN(1-HdDist!E128))^(1/HdCalcs!$L$3),0) -> 0 | I128: 0 | J128: =IF(D128>0,EXP(HdCalcs!$N$3+HtPd*LN(F128))," ") ->  | L128: 0 | N128: 0 | Q128: 0 | R128: 0
A129: Planted | B129: 0.128 | C129: =B129*HdCalcs!$G$3 -> 0 | D129: 0 | E129: 0.1275 | F129: =IF(D129>0,HdCalcs!$K$3*(-LN(1-HdDist!E129))^(1/HdCalcs!$L$3)," ") ->  | G129: =IF(D129>0,HdCalcs!$K$3*(-LN(1-HdDist!E129))^(1/HdCalcs!$L$3),0) -> 0 | I129: 0 | J129: =IF(D129>0,EXP(HdCalcs!$N$3+HtPd*LN(F129))," ") ->  | L129: 0 | N129: 0 | Q129: 0 | R129: 0
A130: Planted | B130: 0.129 | C130: =B130*HdCalcs!$G$3 -> 0 | D130: 0 | E130: 0.1285 | F130: =IF(D130>0,HdCalcs!$K$3*(-LN(1-HdDist!E130))^(1/HdCalcs!$L$3)," ") ->  | G130: =IF(D130>0,HdCalcs!$K$3*(-LN(1-HdDist!E130))^(1/HdCalcs!$L$3),0) -> 0 | I130: 0 | J130: =IF(D130>0,EXP(HdCalcs!$N$3+HtPd*LN(F130))," ") ->  | L130: 0 | N130: 0 | P130: =IF(D130>0,IF(J130<130," ",DBHa+DBHb*F130+DBHc*J130)," ") ->  | Q130: 0 | R130: =D130+R131 -> 0 | S130: =IF(D130>0,IF(R130<=100,J130," ")," ") -> 
A131: Planted | B131: 0.13 | C131: =B131*HdCalcs!$G$3 -> 0 | D131: =C131-C130 -> 0 | E131: =AVERAGE(B131,B130) -> 0.1295 | F131: =IF(D131>0,HdCalcs!$K$3*(-LN(1-HdDist!E131))^(1/HdCalcs!$L$3)," ") ->  | G131: =IF(D131>0,HdCalcs!$K$3*(-LN(1-HdDist!E131))^(1/HdCalcs!$L$3),0) -> 0 | H131: =IF(D131>0,ROUND(F131,0)," ") ->  | I131: =IF(D131>0,PI()*((F131/2)^2)*D131,0) -> 0 | J131: =IF(D131>0,EXP(HdCalcs!$N$3+HtPd*LN(F131))," ") ->  | K131: =IF(D131>0,ROUND(J131/5,-1)*5," ") ->  | L131: =IF(J131<30,0,D131) -> 0 | M131: =IF(L131>0,J131," ") ->  | N131: =IF(J131<130,0,D131) -> 0 | O131: =IF(N131>0,J131," ") ->  | Q131: =IF(D131>0,IF(J131<130,0,PI()*((P131/2)^2)*D131),0) -> 0 | R131: 0
A132: Planted | B132: 0.131 | C132: =B132*HdCalcs!$G$3 -> 0 | D132: 0 | E132: 0.1305 | F132: =IF(D132>0,HdCalcs!$K$3*(-LN(1-HdDist!E132))^(1/HdCalcs!$L$3)," ") ->  | G132: =IF(D132>0,HdCalcs!$K$3*(-LN(1-HdDist!E132))^(1/HdCalcs!$L$3),0) -> 0 | I132: 0 | J132: =IF(D132>0,EXP(HdCalcs!$N$3+HtPd*LN(F132))," ") ->  | L132: 0 | N132: 0 | Q132: 0 | R132: 0
A133: Planted | B133: 0.132 | C133: =B133*HdCalcs!$G$3 -> 0 | D133: 0 | E133: 0.1315 | F133: =IF(D133>0,HdCalcs!$K$3*(-LN(1-HdDist!E133))^(1/HdCalcs!$L$3)," ") ->  | G133: =IF(D133>0,HdCalcs!$K$3*(-LN(1-HdDist!E133))^(1/HdCalcs!$L$3),0) -> 0 | I133: 0 | J133: =IF(D133>0,EXP(HdCalcs!$N$3+HtPd*LN(F133))," ") ->  | L133: 0 | N133: 0 | Q133: 0 | R133: 0
A134: Planted | B134: 0.133 | C134: =B134*HdCalcs!$G$3 -> 0 | D134: 0 | E134: 0.1325 | F134: =IF(D134>0,HdCalcs!$K$3*(-LN(1-HdDist!E134))^(1/HdCalcs!$L$3)," ") ->  | G134: =IF(D134>0,HdCalcs!$K$3*(-LN(1-HdDist!E134))^(1/HdCalcs!$L$3),0) -> 0 | I134: 0 | J134: =IF(D134>0,EXP(HdCalcs!$N$3+HtPd*LN(F134))," ") ->  | L134: 0 | N134: 0 | Q134: 0 | R134: 0
A135: Planted | B135: 0.134 | C135: =B135*HdCalcs!$G$3 -> 0 | D135: 0 | E135: 0.1335 | F135: =IF(D135>0,HdCalcs!$K$3*(-LN(1-HdDist!E135))^(1/HdCalcs!$L$3)," ") ->  | G135: =IF(D135>0,HdCalcs!$K$3*(-LN(1-HdDist!E135))^(1/HdCalcs!$L$3),0) -> 0 | I135: 0 | J135: =IF(D135>0,EXP(HdCalcs!$N$3+HtPd*LN(F135))," ") ->  | L135: 0 | N135: 0 | Q135: 0 | R135: 0
A136: Planted | B136: 0.135 | C136: =B136*HdCalcs!$G$3 -> 0 | D136: 0 | E136: 0.1345 | F136: =IF(D136>0,HdCalcs!$K$3*(-LN(1-HdDist!E136))^(1/HdCalcs!$L$3)," ") ->  | G136: =IF(D136>0,HdCalcs!$K$3*(-LN(1-HdDist!E136))^(1/HdCalcs!$L$3),0) -> 0 | I136: 0 | J136: =IF(D136>0,EXP(HdCalcs!$N$3+HtPd*LN(F136))," ") ->  | L136: 0 | N136: 0 | Q136: 0 | R136: 0
A137: Planted | B137: 0.136 | C137: =B137*HdCalcs!$G$3 -> 0 | D137: 0 | E137: 0.1355 | F137: =IF(D137>0,HdCalcs!$K$3*(-LN(1-HdDist!E137))^(1/HdCalcs!$L$3)," ") ->  | G137: =IF(D137>0,HdCalcs!$K$3*(-LN(1-HdDist!E137))^(1/HdCalcs!$L$3),0) -> 0 | I137: 0 | J137: =IF(D137>0,EXP(HdCalcs!$N$3+HtPd*LN(F137))," ") ->  | L137: 0 | N137: 0 | Q137: 0 | R137: 0
A138: Planted | B138: 0.137 | C138: =B138*HdCalcs!$G$3 -> 0 | D138: 0 | E138: 0.1365 | F138: =IF(D138>0,HdCalcs!$K$3*(-LN(1-HdDist!E138))^(1/HdCalcs!$L$3)," ") ->  | G138: =IF(D138>0,HdCalcs!$K$3*(-LN(1-HdDist!E138))^(1/HdCalcs!$L$3),0) -> 0 | I138: 0 | J138: =IF(D138>0,EXP(HdCalcs!$N$3+HtPd*LN(F138))," ") ->  | L138: 0 | N138: 0 | Q138: 0 | R138: 0
A139: Planted | B139: 0.138 | C139: =B139*HdCalcs!$G$3 -> 0 | D139: 0 | E139: 0.1375 | F139: =IF(D139>0,HdCalcs!$K$3*(-LN(1-HdDist!E139))^(1/HdCalcs!$L$3)," ") ->  | G139: =IF(D139>0,HdCalcs!$K$3*(-LN(1-HdDist!E139))^(1/HdCalcs!$L$3),0) -> 0 | I139: 0 | J139: =IF(D139>0,EXP(HdCalcs!$N$3+HtPd*LN(F139))," ") ->  | L139: 0 | N139: 0 | Q139: 0 | R139: 0
A140: Planted | B140: 0.139 | C140: =B140*HdCalcs!$G$3 -> 0 | D140: 0 | E140: 0.1385 | F140: =IF(D140>0,HdCalcs!$K$3*(-LN(1-HdDist!E140))^(1/HdCalcs!$L$3)," ") ->  | G140: =IF(D140>0,HdCalcs!$K$3*(-LN(1-HdDist!E140))^(1/HdCalcs!$L$3),0) -> 0 | I140: 0 | J140: =IF(D140>0,EXP(HdCalcs!$N$3+HtPd*LN(F140))," ") ->  | L140: 0 | N140: 0 | Q140: 0 | R140: 0
A141: Planted | B141: 0.14 | C141: =B141*HdCalcs!$G$3 -> 0 | D141: 0 | E141: 0.1395 | F141: =IF(D141>0,HdCalcs!$K$3*(-LN(1-HdDist!E141))^(1/HdCalcs!$L$3)," ") ->  | G141: =IF(D141>0,HdCalcs!$K$3*(-LN(1-HdDist!E141))^(1/HdCalcs!$L$3),0) -> 0 | I141: 0 | J141: =IF(D141>0,EXP(HdCalcs!$N$3+HtPd*LN(F141))," ") ->  | L141: 0 | N141: 0 | Q141: 0 | R141: 0
A142: Planted | B142: 0.141 | C142: =B142*HdCalcs!$G$3 -> 0 | D142: 0 | E142: 0.1405 | F142: =IF(D142>0,HdCalcs!$K$3*(-LN(1-HdDist!E142))^(1/HdCalcs!$L$3)," ") ->  | G142: =IF(D142>0,HdCalcs!$K$3*(-LN(1-HdDist!E142))^(1/HdCalcs!$L$3),0) -> 0 | I142: 0 | J142: =IF(D142>0,EXP(HdCalcs!$N$3+HtPd*LN(F142))," ") ->  | L142: 0 | N142: 0 | Q142: 0 | R142: 0
A143: Planted | B143: 0.142 | C143: =B143*HdCalcs!$G$3 -> 0 | D143: 0 | E143: 0.1415 | F143: =IF(D143>0,HdCalcs!$K$3*(-LN(1-HdDist!E143))^(1/HdCalcs!$L$3)," ") ->  | G143: =IF(D143>0,HdCalcs!$K$3*(-LN(1-HdDist!E143))^(1/HdCalcs!$L$3),0) -> 0 | I143: 0 | J143: =IF(D143>0,EXP(HdCalcs!$N$3+HtPd*LN(F143))," ") ->  | L143: 0 | N143: 0 | Q143: 0 | R143: 0
A144: Planted | B144: 0.143 | C144: =B144*HdCalcs!$G$3 -> 0 | D144: 0 | E144: 0.1425 | F144: =IF(D144>0,HdCalcs!$K$3*(-LN(1-HdDist!E144))^(1/HdCalcs!$L$3)," ") ->  | G144: =IF(D144>0,HdCalcs!$K$3*(-LN(1-HdDist!E144))^(1/HdCalcs!$L$3),0) -> 0 | I144: 0 | J144: =IF(D144>0,EXP(HdCalcs!$N$3+HtPd*LN(F144))," ") ->  | L144: 0 | N144: 0 | Q144: 0 | R144: 0
A145: Planted | B145: 0.144 | C145: =B145*HdCalcs!$G$3 -> 0 | D145: 0 | E145: 0.1435 | F145: =IF(D145>0,HdCalcs!$K$3*(-LN(1-HdDist!E145))^(1/HdCalcs!$L$3)," ") ->  | G145: =IF(D145>0,HdCalcs!$K$3*(-LN(1-HdDist!E145))^(1/HdCalcs!$L$3),0) -> 0 | I145: 0 | J145: =IF(D145>0,EXP(HdCalcs!$N$3+HtPd*LN(F145))," ") ->  | L145: 0 | N145: 0 | Q145: 0 | R145: 0
A146: Planted | B146: 0.145 | C146: =B146*HdCalcs!$G$3 -> 0 | D146: 0 | E146: 0.1445 | F146: =IF(D146>0,HdCalcs!$K$3*(-LN(1-HdDist!E146))^(1/HdCalcs!$L$3)," ") ->  | G146: =IF(D146>0,HdCalcs!$K$3*(-LN(1-HdDist!E146))^(1/HdCalcs!$L$3),0) -> 0 | I146: 0 | J146: =IF(D146>0,EXP(HdCalcs!$N$3+HtPd*LN(F146))," ") ->  | L146: 0 | N146: 0 | Q146: 0 | R146: 0
A147: Planted | B147: 0.146 | C147: =B147*HdCalcs!$G$3 -> 0 | D147: 0 | E147: 0.1455 | F147: =IF(D147>0,HdCalcs!$K$3*(-LN(1-HdDist!E147))^(1/HdCalcs!$L$3)," ") ->  | G147: =IF(D147>0,HdCalcs!$K$3*(-LN(1-HdDist!E147))^(1/HdCalcs!$L$3),0) -> 0 | I147: 0 | J147: =IF(D147>0,EXP(HdCalcs!$N$3+HtPd*LN(F147))," ") ->  | L147: 0 | N147: 0 | Q147: 0 | R147: 0
A148: Planted | B148: 0.147 | C148: =B148*HdCalcs!$G$3 -> 0 | D148: 0 | E148: 0.1465 | F148: =IF(D148>0,HdCalcs!$K$3*(-LN(1-HdDist!E148))^(1/HdCalcs!$L$3)," ") ->  | G148: =IF(D148>0,HdCalcs!$K$3*(-LN(1-HdDist!E148))^(1/HdCalcs!$L$3),0) -> 0 | I148: 0 | J148: =IF(D148>0,EXP(HdCalcs!$N$3+HtPd*LN(F148))," ") ->  | L148: 0 | N148: 0 | Q148: 0 | R148: 0
A149: Planted | B149: 0.148 | C149: =B149*HdCalcs!$G$3 -> 0 | D149: 0 | E149: 0.1475 | F149: =IF(D149>0,HdCalcs!$K$3*(-LN(1-HdDist!E149))^(1/HdCalcs!$L$3)," ") ->  | G149: =IF(D149>0,HdCalcs!$K$3*(-LN(1-HdDist!E149))^(1/HdCalcs!$L$3),0) -> 0 | I149: 0 | J149: =IF(D149>0,EXP(HdCalcs!$N$3+HtPd*LN(F149))," ") ->  | L149: 0 | N149: 0 | Q149: 0 | R149: 0
A150: Planted | B150: 0.149 | C150: =B150*HdCalcs!$G$3 -> 0 | D150: 0 | E150: 0.1485 | F150: =IF(D150>0,HdCalcs!$K$3*(-LN(1-HdDist!E150))^(1/HdCalcs!$L$3)," ") ->  | G150: =IF(D150>0,HdCalcs!$K$3*(-LN(1-HdDist!E150))^(1/HdCalcs!$L$3),0) -> 0 | I150: 0 | J150: =IF(D150>0,EXP(HdCalcs!$N$3+HtPd*LN(F150))," ") ->  | L150: 0 | N150: 0 | Q150: 0 | R150: 0
A151: Planted | B151: 0.15 | C151: =B151*HdCalcs!$G$3 -> 0 | D151: 0 | E151: 0.1495 | F151: =IF(D151>0,HdCalcs!$K$3*(-LN(1-HdDist!E151))^(1/HdCalcs!$L$3)," ") ->  | G151: =IF(D151>0,HdCalcs!$K$3*(-LN(1-HdDist!E151))^(1/HdCalcs!$L$3),0) -> 0 | I151: 0 | J151: =IF(D151>0,EXP(HdCalcs!$N$3+HtPd*LN(F151))," ") ->  | L151: 0 | N151: 0 | Q151: 0 | R151: 0
A152: Planted | B152: 0.151 | C152: =B152*HdCalcs!$G$3 -> 0 | D152: 0 | E152: 0.1505 | F152: =IF(D152>0,HdCalcs!$K$3*(-LN(1-HdDist!E152))^(1/HdCalcs!$L$3)," ") ->  | G152: =IF(D152>0,HdCalcs!$K$3*(-LN(1-HdDist!E152))^(1/HdCalcs!$L$3),0) -> 0 | I152: 0 | J152: =IF(D152>0,EXP(HdCalcs!$N$3+HtPd*LN(F152))," ") ->  | L152: 0 | N152: 0 | Q152: 0 | R152: 0
A153: Planted | B153: 0.152 | C153: =B153*HdCalcs!$G$3 -> 0 | D153: 0 | E153: 0.1515 | F153: =IF(D153>0,HdCalcs!$K$3*(-LN(1-HdDist!E153))^(1/HdCalcs!$L$3)," ") ->  | G153: =IF(D153>0,HdCalcs!$K$3*(-LN(1-HdDist!E153))^(1/HdCalcs!$L$3),0) -> 0 | I153: 0 | J153: =IF(D153>0,EXP(HdCalcs!$N$3+HtPd*LN(F153))," ") ->  | L153: 0 | N153: 0 | Q153: 0 | R153: 0
A154: Planted | B154: 0.153 | C154: =B154*HdCalcs!$G$3 -> 0 | D154: 0 | E154: 0.1525 | F154: =IF(D154>0,HdCalcs!$K$3*(-LN(1-HdDist!E154))^(1/HdCalcs!$L$3)," ") ->  | G154: =IF(D154>0,HdCalcs!$K$3*(-LN(1-HdDist!E154))^(1/HdCalcs!$L$3),0) -> 0 | I154: 0 | J154: =IF(D154>0,EXP(HdCalcs!$N$3+HtPd*LN(F154))," ") ->  | L154: 0 | N154: 0 | Q154: 0 | R154: 0
A155: Planted | B155: 0.154 | C155: =B155*HdCalcs!$G$3 -> 0 | D155: 0 | E155: 0.1535 | F155: =IF(D155>0,HdCalcs!$K$3*(-LN(1-HdDist!E155))^(1/HdCalcs!$L$3)," ") ->  | G155: =IF(D155>0,HdCalcs!$K$3*(-LN(1-HdDist!E155))^(1/HdCalcs!$L$3),0) -> 0 | I155: 0 | J155: =IF(D155>0,EXP(HdCalcs!$N$3+HtPd*LN(F155))," ") ->  | L155: 0 | N155: 0 | Q155: 0 | R155: 0
A156: Planted | B156: 0.155 | C156: =B156*HdCalcs!$G$3 -> 0 | D156: 0 | E156: 0.1545 | F156: =IF(D156>0,HdCalcs!$K$3*(-LN(1-HdDist!E156))^(1/HdCalcs!$L$3)," ") ->  | G156: =IF(D156>0,HdCalcs!$K$3*(-LN(1-HdDist!E156))^(1/HdCalcs!$L$3),0) -> 0 | I156: 0 | J156: =IF(D156>0,EXP(HdCalcs!$N$3+HtPd*LN(F156))," ") ->  | L156: 0 | N156: 0 | Q156: 0 | R156: 0
A157: Planted | B157: 0.156 | C157: =B157*HdCalcs!$G$3 -> 0 | D157: 0 | E157: 0.1555 | F157: =IF(D157>0,HdCalcs!$K$3*(-LN(1-HdDist!E157))^(1/HdCalcs!$L$3)," ") ->  | G157: =IF(D157>0,HdCalcs!$K$3*(-LN(1-HdDist!E157))^(1/HdCalcs!$L$3),0) -> 0 | I157: 0 | J157: =IF(D157>0,EXP(HdCalcs!$N$3+HtPd*LN(F157))," ") ->  | L157: 0 | N157: 0 | Q157: 0 | R157: 0
A158: Planted | B158: 0.157 | C158: =B158*HdCalcs!$G$3 -> 0 | D158: 0 | E158: 0.1565 | F158: =IF(D158>0,HdCalcs!$K$3*(-LN(1-HdDist!E158))^(1/HdCalcs!$L$3)," ") ->  | G158: =IF(D158>0,HdCalcs!$K$3*(-LN(1-HdDist!E158))^(1/HdCalcs!$L$3),0) -> 0 | I158: 0 | J158: =IF(D158>0,EXP(HdCalcs!$N$3+HtPd*LN(F158))," ") ->  | L158: 0 | N158: 0 | Q158: 0 | R158: 0
A159: Planted | B159: 0.158 | C159: =B159*HdCalcs!$G$3 -> 0 | D159: 0 | E159: 0.1575 | F159: =IF(D159>0,HdCalcs!$K$3*(-LN(1-HdDist!E159))^(1/HdCalcs!$L$3)," ") ->  | G159: =IF(D159>0,HdCalcs!$K$3*(-LN(1-HdDist!E159))^(1/HdCalcs!$L$3),0) -> 0 | I159: 0 | J159: =IF(D159>0,EXP(HdCalcs!$N$3+HtPd*LN(F159))," ") ->  | L159: 0 | N159: 0 | Q159: 0 | R159: 0
A160: Planted | B160: 0.159 | C160: =B160*HdCalcs!$G$3 -> 0 | D160: 0 | E160: 0.1585 | F160: =IF(D160>0,HdCalcs!$K$3*(-LN(1-HdDist!E160))^(1/HdCalcs!$L$3)," ") ->  | G160: =IF(D160>0,HdCalcs!$K$3*(-LN(1-HdDist!E160))^(1/HdCalcs!$L$3),0) -> 0 | I160: 0 | J160: =IF(D160>0,EXP(HdCalcs!$N$3+HtPd*LN(F160))," ") ->  | L160: 0 | N160: 0 | Q160: 0 | R160: 0
A161: Planted | B161: 0.16 | C161: =B161*HdCalcs!$G$3 -> 0 | D161: 0 | E161: 0.1595 | F161: =IF(D161>0,HdCalcs!$K$3*(-LN(1-HdDist!E161))^(1/HdCalcs!$L$3)," ") ->  | G161: =IF(D161>0,HdCalcs!$K$3*(-LN(1-HdDist!E161))^(1/HdCalcs!$L$3),0) -> 0 | I161: 0 | J161: =IF(D161>0,EXP(HdCalcs!$N$3+HtPd*LN(F161))," ") ->  | L161: 0 | N161: 0 | Q161: 0 | R161: 0
A162: Planted | B162: 0.161 | C162: =B162*HdCalcs!$G$3 -> 0 | D162: 0 | E162: 0.1605 | F162: =IF(D162>0,HdCalcs!$K$3*(-LN(1-HdDist!E162))^(1/HdCalcs!$L$3)," ") ->  | G162: =IF(D162>0,HdCalcs!$K$3*(-LN(1-HdDist!E162))^(1/HdCalcs!$L$3),0) -> 0 | I162: 0 | J162: =IF(D162>0,EXP(HdCalcs!$N$3+HtPd*LN(F162))," ") ->  | L162: 0 | N162: 0 | Q162: 0 | R162: 0
A163: Planted | B163: 0.162 | C163: =B163*HdCalcs!$G$3 -> 0 | D163: 0 | E163: 0.1615 | F163: =IF(D163>0,HdCalcs!$K$3*(-LN(1-HdDist!E163))^(1/HdCalcs!$L$3)," ") ->  | G163: =IF(D163>0,HdCalcs!$K$3*(-LN(1-HdDist!E163))^(1/HdCalcs!$L$3),0) -> 0 | I163: 0 | J163: =IF(D163>0,EXP(HdCalcs!$N$3+HtPd*LN(F163))," ") ->  | L163: 0 | N163: 0 | Q163: 0 | R163: 0
A164: Planted | B164: 0.163 | C164: =B164*HdCalcs!$G$3 -> 0 | D164: 0 | E164: 0.1625 | F164: =IF(D164>0,HdCalcs!$K$3*(-LN(1-HdDist!E164))^(1/HdCalcs!$L$3)," ") ->  | G164: =IF(D164>0,HdCalcs!$K$3*(-LN(1-HdDist!E164))^(1/HdCalcs!$L$3),0) -> 0 | I164: 0 | J164: =IF(D164>0,EXP(HdCalcs!$N$3+HtPd*LN(F164))," ") ->  | L164: 0 | N164: 0 | Q164: 0 | R164: 0
A165: Planted | B165: 0.164 | C165: =B165*HdCalcs!$G$3 -> 0 | D165: 0 | E165: 0.1635 | F165: =IF(D165>0,HdCalcs!$K$3*(-LN(1-HdDist!E165))^(1/HdCalcs!$L$3)," ") ->  | G165: =IF(D165>0,HdCalcs!$K$3*(-LN(1-HdDist!E165))^(1/HdCalcs!$L$3),0) -> 0 | I165: 0 | J165: =IF(D165>0,EXP(HdCalcs!$N$3+HtPd*LN(F165))," ") ->  | L165: 0 | N165: 0 | Q165: 0 | R165: 0
A166: Planted | B166: 0.165 | C166: =B166*HdCalcs!$G$3 -> 0 | D166: 0 | E166: 0.1645 | F166: =IF(D166>0,HdCalcs!$K$3*(-LN(1-HdDist!E166))^(1/HdCalcs!$L$3)," ") ->  | G166: =IF(D166>0,HdCalcs!$K$3*(-LN(1-HdDist!E166))^(1/HdCalcs!$L$3),0) -> 0 | I166: 0 | J166: =IF(D166>0,EXP(HdCalcs!$N$3+HtPd*LN(F166))," ") ->  | L166: 0 | N166: 0 | Q166: 0 | R166: 0
A167: Planted | B167: 0.166 | C167: =B167*HdCalcs!$G$3 -> 0 | D167: 0 | E167: 0.1655 | F167: =IF(D167>0,HdCalcs!$K$3*(-LN(1-HdDist!E167))^(1/HdCalcs!$L$3)," ") ->  | G167: =IF(D167>0,HdCalcs!$K$3*(-LN(1-HdDist!E167))^(1/HdCalcs!$L$3),0) -> 0 | I167: 0 | J167: =IF(D167>0,EXP(HdCalcs!$N$3+HtPd*LN(F167))," ") ->  | L167: 0 | N167: 0 | Q167: 0 | R167: 0
A168: Planted | B168: 0.167 | C168: =B168*HdCalcs!$G$3 -> 0 | D168: 0 | E168: 0.1665 | F168: =IF(D168>0,HdCalcs!$K$3*(-LN(1-HdDist!E168))^(1/HdCalcs!$L$3)," ") ->  | G168: =IF(D168>0,HdCalcs!$K$3*(-LN(1-HdDist!E168))^(1/HdCalcs!$L$3),0) -> 0 | I168: 0 | J168: =IF(D168>0,EXP(HdCalcs!$N$3+HtPd*LN(F168))," ") ->  | L168: 0 | N168: 0 | Q168: 0 | R168: 0
A169: Planted | B169: 0.168 | C169: =B169*HdCalcs!$G$3 -> 0 | D169: 0 | E169: 0.1675 | F169: =IF(D169>0,HdCalcs!$K$3*(-LN(1-HdDist!E169))^(1/HdCalcs!$L$3)," ") ->  | G169: =IF(D169>0,HdCalcs!$K$3*(-LN(1-HdDist!E169))^(1/HdCalcs!$L$3),0) -> 0 | I169: 0 | J169: =IF(D169>0,EXP(HdCalcs!$N$3+HtPd*LN(F169))," ") ->  | L169: 0 | N169: 0 | Q169: 0 | R169: 0
A170: Planted | B170: 0.169 | C170: =B170*HdCalcs!$G$3 -> 0 | D170: 0 | E170: 0.1685 | F170: =IF(D170>0,HdCalcs!$K$3*(-LN(1-HdDist!E170))^(1/HdCalcs!$L$3)," ") ->  | G170: =IF(D170>0,HdCalcs!$K$3*(-LN(1-HdDist!E170))^(1/HdCalcs!$L$3),0) -> 0 | I170: 0 | J170: =IF(D170>0,EXP(HdCalcs!$N$3+HtPd*LN(F170))," ") ->  | L170: 0 | N170: 0 | Q170: 0 | R170: 0
A171: Planted | B171: 0.17 | C171: =B171*HdCalcs!$G$3 -> 0 | D171: 0 | E171: 0.1695 | F171: =IF(D171>0,HdCalcs!$K$3*(-LN(1-HdDist!E171))^(1/HdCalcs!$L$3)," ") ->  | G171: =IF(D171>0,HdCalcs!$K$3*(-LN(1-HdDist!E171))^(1/HdCalcs!$L$3),0) -> 0 | I171: 0 | J171: =IF(D171>0,EXP(HdCalcs!$N$3+HtPd*LN(F171))," ") ->  | L171: 0 | N171: 0 | Q171: 0 | R171: 0
A172: Planted | B172: 0.171 | C172: =B172*HdCalcs!$G$3 -> 0 | D172: 0 | E172: 0.1705 | F172: =IF(D172>0,HdCalcs!$K$3*(-LN(1-HdDist!E172))^(1/HdCalcs!$L$3)," ") ->  | G172: =IF(D172>0,HdCalcs!$K$3*(-LN(1-HdDist!E172))^(1/HdCalcs!$L$3),0) -> 0 | I172: 0 | J172: =IF(D172>0,EXP(HdCalcs!$N$3+HtPd*LN(F172))," ") ->  | L172: 0 | N172: 0 | Q172: 0 | R172: 0
A173: Planted | B173: 0.172 | C173: =B173*HdCalcs!$G$3 -> 0 | D173: 0 | E173: 0.1715 | F173: =IF(D173>0,HdCalcs!$K$3*(-LN(1-HdDist!E173))^(1/HdCalcs!$L$3)," ") ->  | G173: =IF(D173>0,HdCalcs!$K$3*(-LN(1-HdDist!E173))^(1/HdCalcs!$L$3),0) -> 0 | I173: 0 | J173: =IF(D173>0,EXP(HdCalcs!$N$3+HtPd*LN(F173))," ") ->  | L173: 0 | N173: 0 | Q173: 0 | R173: 0
A174: Planted | B174: 0.173 | C174: =B174*HdCalcs!$G$3 -> 0 | D174: 0 | E174: 0.1725 | F174: =IF(D174>0,HdCalcs!$K$3*(-LN(1-HdDist!E174))^(1/HdCalcs!$L$3)," ") ->  | G174: =IF(D174>0,HdCalcs!$K$3*(-LN(1-HdDist!E174))^(1/HdCalcs!$L$3),0) -> 0 | I174: 0 | J174: =IF(D174>0,EXP(HdCalcs!$N$3+HtPd*LN(F174))," ") ->  | L174: 0 | N174: 0 | Q174: 0 | R174: 0
A175: Planted | B175: 0.174 | C175: =B175*HdCalcs!$G$3 -> 0 | D175: 0 | E175: 0.1735 | F175: =IF(D175>0,HdCalcs!$K$3*(-LN(1-HdDist!E175))^(1/HdCalcs!$L$3)," ") ->  | G175: =IF(D175>0,HdCalcs!$K$3*(-LN(1-HdDist!E175))^(1/HdCalcs!$L$3),0) -> 0 | I175: 0 | J175: =IF(D175>0,EXP(HdCalcs!$N$3+HtPd*LN(F175))," ") ->  | L175: 0 | N175: 0 | Q175: 0 | R175: 0
A176: Planted | B176: 0.175 | C176: =B176*HdCalcs!$G$3 -> 0 | D176: 0 | E176: 0.1745 | F176: =IF(D176>0,HdCalcs!$K$3*(-LN(1-HdDist!E176))^(1/HdCalcs!$L$3)," ") ->  | G176: =IF(D176>0,HdCalcs!$K$3*(-LN(1-HdDist!E176))^(1/HdCalcs!$L$3),0) -> 0 | I176: 0 | J176: =IF(D176>0,EXP(HdCalcs!$N$3+HtPd*LN(F176))," ") ->  | L176: 0 | N176: 0 | Q176: 0 | R176: 0
A177: Planted | B177: 0.176 | C177: =B177*HdCalcs!$G$3 -> 0 | D177: 0 | E177: 0.1755 | F177: =IF(D177>0,HdCalcs!$K$3*(-LN(1-HdDist!E177))^(1/HdCalcs!$L$3)," ") ->  | G177: =IF(D177>0,HdCalcs!$K$3*(-LN(1-HdDist!E177))^(1/HdCalcs!$L$3),0) -> 0 | I177: 0 | J177: =IF(D177>0,EXP(HdCalcs!$N$3+HtPd*LN(F177))," ") ->  | L177: 0 | N177: 0 | Q177: 0 | R177: 0
A178: Planted | B178: 0.177 | C178: =B178*HdCalcs!$G$3 -> 0 | D178: 0 | E178: 0.1765 | F178: =IF(D178>0,HdCalcs!$K$3*(-LN(1-HdDist!E178))^(1/HdCalcs!$L$3)," ") ->  | G178: =IF(D178>0,HdCalcs!$K$3*(-LN(1-HdDist!E178))^(1/HdCalcs!$L$3),0) -> 0 | I178: 0 | J178: =IF(D178>0,EXP(HdCalcs!$N$3+HtPd*LN(F178))," ") ->  | L178: 0 | N178: 0 | Q178: 0 | R178: 0
A179: Planted | B179: 0.178 | C179: =B179*HdCalcs!$G$3 -> 0 | D179: 0 | E179: 0.1775 | F179: =IF(D179>0,HdCalcs!$K$3*(-LN(1-HdDist!E179))^(1/HdCalcs!$L$3)," ") ->  | G179: =IF(D179>0,HdCalcs!$K$3*(-LN(1-HdDist!E179))^(1/HdCalcs!$L$3),0) -> 0 | I179: 0 | J179: =IF(D179>0,EXP(HdCalcs!$N$3+HtPd*LN(F179))," ") ->  | L179: 0 | N179: 0 | Q179: 0 | R179: 0
A180: Planted | B180: 0.179 | C180: =B180*HdCalcs!$G$3 -> 0 | D180: 0 | E180: 0.1785 | F180: =IF(D180>0,HdCalcs!$K$3*(-LN(1-HdDist!E180))^(1/HdCalcs!$L$3)," ") ->  | G180: =IF(D180>0,HdCalcs!$K$3*(-LN(1-HdDist!E180))^(1/HdCalcs!$L$3),0) -> 0 | I180: 0 | J180: =IF(D180>0,EXP(HdCalcs!$N$3+HtPd*LN(F180))," ") ->  | L180: 0 | N180: 0 | Q180: 0 | R180: 0
A181: Planted | B181: 0.18 | C181: =B181*HdCalcs!$G$3 -> 0 | D181: 0 | E181: 0.1795 | F181: =IF(D181>0,HdCalcs!$K$3*(-LN(1-HdDist!E181))^(1/HdCalcs!$L$3)," ") ->  | G181: =IF(D181>0,HdCalcs!$K$3*(-LN(1-HdDist!E181))^(1/HdCalcs!$L$3),0) -> 0 | I181: 0 | J181: =IF(D181>0,EXP(HdCalcs!$N$3+HtPd*LN(F181))," ") ->  | L181: 0 | N181: 0 | Q181: 0 | R181: 0
A182: Planted | B182: 0.181 | C182: =B182*HdCalcs!$G$3 -> 0 | D182: 0 | E182: 0.1805 | F182: =IF(D182>0,HdCalcs!$K$3*(-LN(1-HdDist!E182))^(1/HdCalcs!$L$3)," ") ->  | G182: =IF(D182>0,HdCalcs!$K$3*(-LN(1-HdDist!E182))^(1/HdCalcs!$L$3),0) -> 0 | I182: 0 | J182: =IF(D182>0,EXP(HdCalcs!$N$3+HtPd*LN(F182))," ") ->  | L182: 0 | N182: 0 | Q182: 0 | R182: 0
A183: Planted | B183: 0.182 | C183: =B183*HdCalcs!$G$3 -> 0 | D183: 0 | E183: 0.1815 | F183: =IF(D183>0,HdCalcs!$K$3*(-LN(1-HdDist!E183))^(1/HdCalcs!$L$3)," ") ->  | G183: =IF(D183>0,HdCalcs!$K$3*(-LN(1-HdDist!E183))^(1/HdCalcs!$L$3),0) -> 0 | I183: 0 | J183: =IF(D183>0,EXP(HdCalcs!$N$3+HtPd*LN(F183))," ") ->  | L183: 0 | N183: 0 | Q183: 0 | R183: 0
A184: Planted | B184: 0.183 | C184: =B184*HdCalcs!$G$3 -> 0 | D184: 0 | E184: 0.1825 | F184: =IF(D184>0,HdCalcs!$K$3*(-LN(1-HdDist!E184))^(1/HdCalcs!$L$3)," ") ->  | G184: =IF(D184>0,HdCalcs!$K$3*(-LN(1-HdDist!E184))^(1/HdCalcs!$L$3),0) -> 0 | I184: 0 | J184: =IF(D184>0,EXP(HdCalcs!$N$3+HtPd*LN(F184))," ") ->  | L184: 0 | N184: 0 | Q184: 0 | R184: 0
A185: Planted | B185: 0.184 | C185: =B185*HdCalcs!$G$3 -> 0 | D185: 0 | E185: 0.1835 | F185: =IF(D185>0,HdCalcs!$K$3*(-LN(1-HdDist!E185))^(1/HdCalcs!$L$3)," ") ->  | G185: =IF(D185>0,HdCalcs!$K$3*(-LN(1-HdDist!E185))^(1/HdCalcs!$L$3),0) -> 0 | I185: 0 | J185: =IF(D185>0,EXP(HdCalcs!$N$3+HtPd*LN(F185))," ") ->  | L185: 0 | N185: 0 | Q185: 0 | R185: 0
A186: Planted | B186: 0.185 | C186: =B186*HdCalcs!$G$3 -> 0 | D186: 0 | E186: 0.1845 | F186: =IF(D186>0,HdCalcs!$K$3*(-LN(1-HdDist!E186))^(1/HdCalcs!$L$3)," ") ->  | G186: =IF(D186>0,HdCalcs!$K$3*(-LN(1-HdDist!E186))^(1/HdCalcs!$L$3),0) -> 0 | I186: 0 | J186: =IF(D186>0,EXP(HdCalcs!$N$3+HtPd*LN(F186))," ") ->  | L186: 0 | N186: 0 | Q186: 0 | R186: 0
A187: Planted | B187: 0.186 | C187: =B187*HdCalcs!$G$3 -> 0 | D187: 0 | E187: 0.1855 | F187: =IF(D187>0,HdCalcs!$K$3*(-LN(1-HdDist!E187))^(1/HdCalcs!$L$3)," ") ->  | G187: =IF(D187>0,HdCalcs!$K$3*(-LN(1-HdDist!E187))^(1/HdCalcs!$L$3),0) -> 0 | I187: 0 | J187: =IF(D187>0,EXP(HdCalcs!$N$3+HtPd*LN(F187))," ") ->  | L187: 0 | N187: 0 | Q187: 0 | R187: 0
A188: Planted | B188: 0.187 | C188: =B188*HdCalcs!$G$3 -> 0 | D188: 0 | E188: 0.1865 | F188: =IF(D188>0,HdCalcs!$K$3*(-LN(1-HdDist!E188))^(1/HdCalcs!$L$3)," ") ->  | G188: =IF(D188>0,HdCalcs!$K$3*(-LN(1-HdDist!E188))^(1/HdCalcs!$L$3),0) -> 0 | I188: 0 | J188: =IF(D188>0,EXP(HdCalcs!$N$3+HtPd*LN(F188))," ") ->  | L188: 0 | N188: 0 | Q188: 0 | R188: 0
A189: Planted | B189: 0.188 | C189: =B189*HdCalcs!$G$3 -> 0 | D189: 0 | E189: 0.1875 | F189: =IF(D189>0,HdCalcs!$K$3*(-LN(1-HdDist!E189))^(1/HdCalcs!$L$3)," ") ->  | G189: =IF(D189>0,HdCalcs!$K$3*(-LN(1-HdDist!E189))^(1/HdCalcs!$L$3),0) -> 0 | I189: 0 | J189: =IF(D189>0,EXP(HdCalcs!$N$3+HtPd*LN(F189))," ") ->  | L189: 0 | N189: 0 | Q189: 0 | R189: 0
A190: Planted | B190: 0.189 | C190: =B190*HdCalcs!$G$3 -> 0 | D190: 0 | E190: 0.1885 | F190: =IF(D190>0,HdCalcs!$K$3*(-LN(1-HdDist!E190))^(1/HdCalcs!$L$3)," ") ->  | G190: =IF(D190>0,HdCalcs!$K$3*(-LN(1-HdDist!E190))^(1/HdCalcs!$L$3),0) -> 0 | I190: 0 | J190: =IF(D190>0,EXP(HdCalcs!$N$3+HtPd*LN(F190))," ") ->  | L190: 0 | N190: 0 | Q190: 0 | R190: 0
A191: Planted | B191: 0.19 | C191: =B191*HdCalcs!$G$3 -> 0 | D191: 0 | E191: 0.1895 | F191: =IF(D191>0,HdCalcs!$K$3*(-LN(1-HdDist!E191))^(1/HdCalcs!$L$3)," ") ->  | G191: =IF(D191>0,HdCalcs!$K$3*(-LN(1-HdDist!E191))^(1/HdCalcs!$L$3),0) -> 0 | I191: 0 | J191: =IF(D191>0,EXP(HdCalcs!$N$3+HtPd*LN(F191))," ") ->  | L191: 0 | N191: 0 | Q191: 0 | R191: 0
A192: Planted | B192: 0.191 | C192: =B192*HdCalcs!$G$3 -> 0 | D192: 0 | E192: 0.1905 | F192: =IF(D192>0,HdCalcs!$K$3*(-LN(1-HdDist!E192))^(1/HdCalcs!$L$3)," ") ->  | G192: =IF(D192>0,HdCalcs!$K$3*(-LN(1-HdDist!E192))^(1/HdCalcs!$L$3),0) -> 0 | I192: 0 | J192: =IF(D192>0,EXP(HdCalcs!$N$3+HtPd*LN(F192))," ") ->  | L192: 0 | N192: 0 | Q192: 0 | R192: 0
A193: Planted | B193: 0.192 | C193: =B193*HdCalcs!$G$3 -> 0 | D193: 0 | E193: 0.1915 | F193: =IF(D193>0,HdCalcs!$K$3*(-LN(1-HdDist!E193))^(1/HdCalcs!$L$3)," ") ->  | G193: =IF(D193>0,HdCalcs!$K$3*(-LN(1-HdDist!E193))^(1/HdCalcs!$L$3),0) -> 0 | I193: 0 | J193: =IF(D193>0,EXP(HdCalcs!$N$3+HtPd*LN(F193))," ") ->  | L193: 0 | N193: 0 | Q193: 0 | R193: 0
A194: Planted | B194: 0.193 | C194: =B194*HdCalcs!$G$3 -> 0 | D194: 0 | E194: 0.1925 | F194: =IF(D194>0,HdCalcs!$K$3*(-LN(1-HdDist!E194))^(1/HdCalcs!$L$3)," ") ->  | G194: =IF(D194>0,HdCalcs!$K$3*(-LN(1-HdDist!E194))^(1/HdCalcs!$L$3),0) -> 0 | I194: 0 | J194: =IF(D194>0,EXP(HdCalcs!$N$3+HtPd*LN(F194))," ") ->  | L194: 0 | N194: 0 | P194: =IF(D194>0,IF(J194<130," ",DBHa+DBHb*F194+DBHc*J194)," ") ->  | Q194: 0 | R194: =D194+R195 -> 0 | S194: =IF(D194>0,IF(R194<=100,J194," ")," ") -> 
A195: Planted | B195: 0.194 | C195: =B195*HdCalcs!$G$3 -> 0 | D195: =C195-C194 -> 0 | E195: =AVERAGE(B195,B194) -> 0.1935 | F195: =IF(D195>0,HdCalcs!$K$3*(-LN(1-HdDist!E195))^(1/HdCalcs!$L$3)," ") ->  | G195: =IF(D195>0,HdCalcs!$K$3*(-LN(1-HdDist!E195))^(1/HdCalcs!$L$3),0) -> 0 | H195: =IF(D195>0,ROUND(F195,0)," ") ->  | I195: =IF(D195>0,PI()*((F195/2)^2)*D195,0) -> 0 | J195: =IF(D195>0,EXP(HdCalcs!$N$3+HtPd*LN(F195))," ") ->  | K195: =IF(D195>0,ROUND(J195/5,-1)*5," ") ->  | L195: =IF(J195<30,0,D195) -> 0 | M195: =IF(L195>0,J195," ") ->  | N195: =IF(J195<130,0,D195) -> 0 | O195: =IF(N195>0,J195," ") ->  | Q195: =IF(D195>0,IF(J195<130,0,PI()*((P195/2)^2)*D195),0) -> 0 | R195: 0
A196: Planted | B196: 0.195 | C196: =B196*HdCalcs!$G$3 -> 0 | D196: 0 | E196: 0.1945 | F196: =IF(D196>0,HdCalcs!$K$3*(-LN(1-HdDist!E196))^(1/HdCalcs!$L$3)," ") ->  | G196: =IF(D196>0,HdCalcs!$K$3*(-LN(1-HdDist!E196))^(1/HdCalcs!$L$3),0) -> 0 | I196: 0 | J196: =IF(D196>0,EXP(HdCalcs!$N$3+HtPd*LN(F196))," ") ->  | L196: 0 | N196: 0 | Q196: 0 | R196: 0
A197: Planted | B197: 0.196 | C197: =B197*HdCalcs!$G$3 -> 0 | D197: 0 | E197: 0.1955 | F197: =IF(D197>0,HdCalcs!$K$3*(-LN(1-HdDist!E197))^(1/HdCalcs!$L$3)," ") ->  | G197: =IF(D197>0,HdCalcs!$K$3*(-LN(1-HdDist!E197))^(1/HdCalcs!$L$3),0) -> 0 | I197: 0 | J197: =IF(D197>0,EXP(HdCalcs!$N$3+HtPd*LN(F197))," ") ->  | L197: 0 | N197: 0 | Q197: 0 | R197: 0
A198: Planted | B198: 0.197 | C198: =B198*HdCalcs!$G$3 -> 0 | D198: 0 | E198: 0.1965 | F198: =IF(D198>0,HdCalcs!$K$3*(-LN(1-HdDist!E198))^(1/HdCalcs!$L$3)," ") ->  | G198: =IF(D198>0,HdCalcs!$K$3*(-LN(1-HdDist!E198))^(1/HdCalcs!$L$3),0) -> 0 | I198: 0 | J198: =IF(D198>0,EXP(HdCalcs!$N$3+HtPd*LN(F198))," ") ->  | L198: 0 | N198: 0 | Q198: 0 | R198: 0
A199: Planted | B199: 0.198 | C199: =B199*HdCalcs!$G$3 -> 0 | D199: 0 | E199: 0.1975 | F199: =IF(D199>0,HdCalcs!$K$3*(-LN(1-HdDist!E199))^(1/HdCalcs!$L$3)," ") ->  | G199: =IF(D199>0,HdCalcs!$K$3*(-LN(1-HdDist!E199))^(1/HdCalcs!$L$3),0) -> 0 | I199: 0 | J199: =IF(D199>0,EXP(HdCalcs!$N$3+HtPd*LN(F199))," ") ->  | L199: 0 | N199: 0 | Q199: 0 | R199: 0
A200: Planted | B200: 0.199 | C200: =B200*HdCalcs!$G$3 -> 0 | D200: 0 | E200: 0.1985 | F200: =IF(D200>0,HdCalcs!$K$3*(-LN(1-HdDist!E200))^(1/HdCalcs!$L$3)," ") ->  | G200: =IF(D200>0,HdCalcs!$K$3*(-LN(1-HdDist!E200))^(1/HdCalcs!$L$3),0) -> 0 | I200: 0 | J200: =IF(D200>0,EXP(HdCalcs!$N$3+HtPd*LN(F200))," ") ->  | L200: 0 | N200: 0 | Q200: 0 | R200: 0
... 3802 more rows

Sheet DPivot (hidden)
A1: Sum of N | B1: Column Labels
A2: Row Labels | B2: Ingress | C2: Planted | D2: Grand Total
A3: 0 | B3: 58.8801024 | D3: 58.8801024
A4: 1 | B4: 748.6184447 | D4: 748.6184447
A5: 2 | B5: 1623.408537 | D5: 1623.408537
A6: 3 | B6: 2043.980697 | D6: 2043.980697
A7: 4 | B7: 1825.283174 | D7: 1825.283174
A8: 5 | B8: 1202.836378 | D8: 1202.836378
A9: 6 | B9: 597.2124672 | D9: 597.2124672
A10: 7 | B10: 227.1089664 | D10: 227.1089664
A11: 8 | B11: 67.29154559 | D11: 67.29154559
A12: 9 | B12: 16.8228864 | D12: 16.8228864
C13: 0 | D13: 0
A14: Grand Total | B14: 8411.443199 | C14: 0 | D14: 8411.443199

Sheet HtPivot (hidden)
A1: Sum of N | B1: Column Labels
A2: Row Labels | B2: Ingress | C2: Planted | D2: Grand Total
A3: 0 | B3: 25.2343296 | D3: 25.2343296
A4: 50 | B4: 479.4522624 | D4: 479.4522624
A5: 100 | B5: 1421.533901 | D5: 1421.533901
A6: 150 | B6: 2170.152345 | D6: 2170.152345
A7: 200 | B7: 2144.918016 | D7: 2144.918016
A8: 250 | B8: 1396.299571 | D8: 1396.299571
A9: 300 | B9: 588.801024 | D9: 588.801024
A10: 350 | B10: 159.8174208 | D10: 159.8174208
A11: 400 | B11: 25.2343296 | D11: 25.2343296
C12: 0 | D12: 0
A13: Grand Total | B13: 8411.443199 | C13: 0 | D13: 8411.443199

Sheet HDPivot (hidden)
A1: Average of Ht | B1: Column Labels
A2: Row Labels | B2: Ingress | C2: Planted | D2: Grand Total
A3: 0 | B3: 25.67030594 | D3: 25.67030594
A4: 1 | B4: 68.54200972 | D4: 68.54200972
A5: 2 | B5: 115.6883106 | D5: 115.6883106
A6: 3 | B6: 160.7986159 | D6: 160.7986159
A7: 4 | B7: 204.0017982 | D7: 204.0017982
A8: 5 | B8: 245.6568267 | D8: 245.6568267
A9: 6 | B9: 285.8440695 | D9: 285.8440695
A10: 7 | B10: 324.6825228 | D10: 324.6825228
A11: 8 | B11: 362.6883756 | D11: 362.6883756
A12: 9 | B12: 404.1859481 | D12: 404.1859481
A14: Grand Total | B14: 179.850391 | D14: 179.850391

Sheet Output (hidden)
A1: Performance
B2: P | C2: N | D2: Total | E2: P | F2: N | G2: Total
A3: PctPl | B3: =Stocking!$C99 -> 0 | C3: =Stocking!$C97 -> 0.8778216027 | D3: =Stocking!$C101 -> 0.8778216027 | E3: =B3*100 -> 0 | F3: =IF(F6=F5,F4,C3*100) -> 87.78216027 | G3: =IF(G5=G6,G4,D3*100) -> 87.78216027
A4: PctPl_30 | B4: =Stocking!$C100 -> 0 | C4: =Stocking!$C98 -> 0.8417814217 | D4: =Stocking!$C102 -> 0.8417814217 | E4: =B4*100 -> 0 | F4: =C4*100 -> 84.17814217 | G4: =D4*100 -> 84.17814217
A5: Tph | B5: =IF(B3>0,HdDist!C1001,0) -> 0 | C5: =IF(C3>0,HdDist!C2001,0) -> 8411.443199 | D5: =SUM(B5,C5) -> 8411.443199 | E5: =B5 -> 0 | F5: =C5 -> 8411.443199 | G5: =D5 -> 8411.443199
A6: TphSh | B6: =IF(B4>0,SUM(HdDist!L2:L1001),0) -> 0 | C6: =IF(C4>0,SUM(HdDist!L1002:L2001),0) -> 8369.385983 | D6: =SUM(B6,C6) -> 8369.385983 | E6: =B6 -> 0 | F6: =C6 -> 8369.385983 | G6: =D6 -> 8369.385983
A7: TphBh | B7: =SUM(HdDist!N2:N1001) -> 0 | C7: =SUM(HdDist!N1002:N2001) -> 6291.759513 | D7: =SUM(B7:C7) -> 6291.759513 | E7: 0 | F7: 6291.759513 | G7: 6291.759513
A8: AvGld | B8: =IF(B5>0,AVERAGE(HdDist!F2:F1001),0) -> 0 | C8: =IF(C5>0,AVERAGE(HdDist!F1002:F2001),0) -> 3.482443825 | D8: =IF(D5>0,SUM(B8*B$5,C8*C$5)/D$5,0) -> 3.482443825 | E8: =IF(B8>0,B8," ") ->  | F8: =IF(C8>0,C8," ") -> 3.482443825 | G8: =IF(D8>0,D8," ") -> 3.482443825
A9: AvDbh | B9: =IF($B$7>0,AVERAGE(HdDist!P$2:P$1001),0) -> 0 | C9: =IF($C$7>0,AVERAGE(HdDist!P$1002:P$2001),0) -> 1.789715099 | D9: =IF($D$7>0,(B9*B$7+C9*C$7)/D$7,0) -> 1.789715099 | F9: =IF(C9>0,C9," ") -> 1.789715099 | G9: 1.789715099
A10: BA | B10: =SUM(HdDist!I2:I1001)/10000 -> 0 | C10: =SUM(HdDist!I1002:I2001)/10000 -> 9.615273729 | D10: =SUM(B10:C10) -> 9.615273729 | E10: 0 | F10: =C10 -> 9.615273729 | G10: =D10 -> 9.615273729
A11: BAbh | B11: =SUM(HdDist!Q$2:Q$1001)/10000 -> 0 | C11: =SUM(HdDist!Q$1002:Q$2001)/10000 -> 2.110017274 | D11: =SUM(B11:C11) -> 2.110017274 | E11: 0 | F11: =C11 -> 2.110017274 | G11: 2.110017274
A12: AvHt | B12: =IF(B5>0,AVERAGE(HdDist!J2:J1001),0) -> 0 | C12: =IF(C5>0,AVERAGE(HdDist!J1002:J2001),0) -> 179.850391 | D12: =IF(D5>0,(B12*B$5+C12*C$5)/D$5,0) -> 179.850391 | E12: =IF(B12>0,B12," ") ->  | F12: =IF(C12>0,C12," ") -> 179.850391 | G12: =IF(D12>0,D12," ") -> 179.850391
A13: AvHtSh | B13: =IF(B6>0,AVERAGE(HdDist!M2:M1001),0) -> 0 | C13: =IF(C6>0,AVERAGE(HdDist!M1002:M2001),0) -> 180.6394082 | D13: =IF(D6>0,(B13*B6+C13*C6)/D6,0) -> 180.6394082 | F13: =IF(C13>0,C13," ") -> 180.6394082 | G13: 180.6394082
A14: AvHtBh | B14: =IF(B7>0,AVERAGE(HdDist!O2:O1001),0) -> 0 | C14: =IF(C7>0,AVERAGE(HdDist!O1002:O2001),0) -> 208.8225193 | D14: =IF(D7>0,(B14*B$7+C14*C$7)/D$7,0) -> 208.8225193 | F14: =IF(C14>0,C14," ") -> 208.8225193 | G14: 208.8225193
A15: TopHt | B15: =(IF(B5>=100,AVERAGE(HdDist!S2:S1001),0))*J16 -> 0 | C15: =(IF(C5>=100,AVERAGE(HdDist!S1002:S2001),0))*J16 -> 346.618075 | D15: =(IF(OR(B5>=100,C5>=100),SUM(HdDist!S2003:S4002)/SUM(HdDist!R2003:R4002),0))*J16 -> 346.618075 | E15: =IF(B15>=30,$B15," ") ->  | F15: =IF(C15>0,C15," ") -> 346.618075 | G15: =IF(D15>0,D15," ") -> 346.618075 | J15: Top Height Adjustment Factor
A16: TopHtRSA | B16: =(IF(B5>=100,THPa+THPb*B12+THPc*C5+THPd*LN(B5)+THPe*Stocking!$C$95,0))*J16 -> 0 | C16: =(IF(C5>=100,THNa+THNb*C12+THNc*C5,0))*J16 -> 275.4717833 | E16: =IF(B16>30,IF(B16<B15,$B16,B15)," ") ->  | F16: =IF(C16>0,IF(C16<C15,C16,C15)," ") -> 275.4717833 | G16: =IF(OR(B16>0,C16>0),MAX(E16,F16)," ") -> 275.4717833 | J16: 0.94
A17: Av. Age of Top Ht Trees | B17: =IF(B5>0,B23," ") ->  | C17: =IF(C5>0,C24," ") -> 12 | D17: =IF(D5>0,D25," ") -> 12 | E17: =B17 ->  | F17: =C17 -> 12 | G17: 12
A20: Age Calculation
A21: DefaultIngressAge | C21: =Stocking!M3 -> 12
A22: GS since planting | B22: =IF(B5>0,Stocking!I14," ") -> 
A23: PlantationAge | B23: =IF(B5>0,B22+1," ") -> 
A24: AdjustedIngressAge | C24: =C21 -> 12 | G24: This replaces: | I24: '=IF(B5>100,IF(C5>0,MIN(YSHpa-1,LN(C15)/LN(B15)*B23)," "),C21)
A25: Total Stand Age | D25: =MAX(B23,C24) -> 12
A27: Regeneration Establishment (8 Years after Cut) | B27: Planted | C27: Ingress | D27: Total | E27: TotalAdj
A28: Percent stocking - pine (including underheight) | B28: =Stocking!E99*100 -> 0 | C28: =Stocking!C96*100 -> 84.62306461 | D28: =Stocking!E101*100 -> 84.62306461 | E28: =IF(D28>B28+C28,B28+C28,D28) -> 84.62306461
A29: Percent stocking - pine (minimum height 30cm) | B29: =IF(AND(ES=TRUE,ESUh=FALSE),B28,IF(AND(Names!E14>0,Stocking!I47<7)," ",B28)) -> 0 | C29: =IF(AND(ES=TRUE,ESUh=FALSE),C28,Stocking!F96*100) -> 79.38248078 | D29: =IF(AND(ES=TRUE,ESUh=FALSE),D28,IF(AND(Names!E14>0,Stocking!I47<7)," ",IF(ES=FALSE,(B28/100+((1-B28/100)*Stocking!F96))*100,Stocking!T88*100))) -> 79.38248078 | E29: =IF(D29=" "," ",IF(OR(B29>0,C29>0),IF(D29>B29+C29,B29+C29,D29),0)) -> 79.38248078
A30: Percent stocking - hardwoods (minimum height 1.3m) | C30: =Stocking!$C$95*100 -> 38 | D30: =Stocking!$C$95*100 -> 38
A32: Percent Stocking of Aspen at Performance | B32: =Stocking!B129*100 -> 27.43495376
A33: Trees per Ha Aspen at Performance | B33: =TppDraws!Q4 -> 984.5902846
A35: Aspen Top Height and Age
A36: Treatment | B36: NSR | C36: Index | D36: TopHt | E36: Age | F36: AdjAge | G36: AdjTopHt
A37: =IF(Weed=TRUE,"Weed","Leave") -> Weed | B37: =IF(NSR=1,"LF","UF") -> LF | C37: =INDEX(A39:C42,MATCH(A37&B37,A39:A42&B39:B42,0),3) -> 3 | D37: =LOOKUP(C37,C39:C42,D39:D42) -> 420.0943496 | E37: =LOOKUP(C37,C39:C42,E39:E42) -> 10.24102622 | F37: =IF(B32>0,IF(E37>YSHpa,YSHpa,E37)," ") -> 10.24102622 | G37: =IF(B32>0,D37," ") -> 420.0943496
A38: Treatment | B38: NSR | C38: Index | D38: TopHt | E38: Age
A39: Leave | B39: LF | C39: 1 | D39: =AwTHLa+AwTHLb*1+AwTHLc*Stocking!B125+AwTHLd*(YSHpa-1) -> 426.6855759 | E39: =AwAgeLa+AwAgeLb*1+AwAgeLc*Stocking!B125+AwAgeLd*(YSHpa-1) -> 9.469605628
A40: Leave | B40: UF | C40: 2 | D40: =AwTHLa+AwTHLb*(-1)+AwTHLc*Stocking!B125+AwTHLd*(YSHpa-1) -> 345.6331019 | E40: =AwAgeLa+AwAgeLb*(-1)+AwAgeLc*Stocking!B125+AwAgeLd*(YSHpa-1) -> 10.23995563
A41: Weed | B41: LF | C41: 3 | D41: =AwTHWa+AwTHWb*1+AwTHWc*Stocking!B125+AwTHWd*(YSHpa-1) -> 420.0943496 | E41: =AwAgeWa+AwAgeWb*1+AwAgeWc*Stocking!B125+AwAgeWd*(YSHpa-1) -> 10.24102622
A42: Weed | B42: UF | C42: 4 | D42: =AwTHWa+AwTHWb*(-1)+AwTHWc*Stocking!B125+AwTHWd*(YSHpa-1) -> 357.1233716 | E42: =AwAgeWa+AwAgeWb*(-1)+AwAgeWc*Stocking!B125+AwAgeWd*(YSHpa-1) -> 11.38085622
A44: Site / Site Prep Incompatibilities
A45: Site prep group 1, nutrient 1 | B45: =IF(AND(MSPrep=1,Nutrient=1),TRUE) -> FALSE
A46: Site prepgroup 1, nutrient 3 | B46: =IF(AND(MSPrep=1,Nutrient=3),TRUE) -> TRUE
A47: Site prep group 2, nutrient 1 | B47: =IF(AND(MSPrep=2,Nutrient=1),TRUE) -> FALSE
A48: Site prep group 3, nutrient 2 | B48: =IF(AND(MSPrep=3,Nutrient=2),TRUE) -> FALSE
A49: Site prep group 3, nutrient 3 | B49: =IF(AND(MSPrep=3,Nutrient=3),TRUE) -> FALSE
A50: Warning | B50: =OR(B45,B46,B47,B48,B49) -> TRUE
A51: Message | B51: =IF(B50=TRUE,SiteWarning," ") -> Site preparation method may not be applicable to soil nutrient class

Sheet Report
D2: Regeneration Forecast | K2: Stand Identifier
D3: Foothills Reforestation Interactive Planning System | K3: =StandId -> Stand3
B5: Establishment (8 Years after Cut) | H5: Planted stock | I5: Pine ingress | J5: Pine total | K5: Hardwood
B6: Percent stocking (including underheight) | H6: =Output!B28 -> 0 | I6: =Output!C28 -> 84.62306461 | J6: =Output!E28 -> 84.62306461
B7: Percent stocking (min. height 30cm for Pl, 1.3m for hwds) | H7: =Output!B29 -> 0 | I7: =Output!C29 -> 79.38248078 | J7: =IF(AND(H7=0,I7=0),0,IF(Output!E29<H7,H7,Output!E29)) -> 79.38248078 | K7: =Output!D30 -> 38
B9: =IF(YSHpa=12,"Performance (12 Years after Cut)",IF(YSHpa=13,"Performance (13 Years after Cut)","Performance (14 Years after Cut)")) -> Performance (13 Years after Cut) | H9: Planted stock | I9: Pine Ingress | J9: Pine total | K9: Aspen
B10: Total age (years) | H10: =Output!E17 ->  | I10: =Output!F17 -> 12 | J10: =Output!G17 -> 12 | K10: =IF(Stocking!B122=TRUE," ",Output!F37) -> 10.24102622
B11: Percent stocking (including underheight) | H11: =Output!E3 -> 0 | I11: =Output!F3 -> 87.78216027 | J11: =Output!G3 -> 87.78216027
B12: Percent stocking (min. height 30cm for Pl, 1.3m for Aw) | H12: =Output!E4 -> 0 | I12: =Output!F4 -> 84.17814217 | J12: =Output!G4 -> 84.17814217 | K12: =IF(Stocking!B122=TRUE, 0,Output!B32) -> 27.43495376
B13: Number of trees per ha (total) | H13: =Output!E5 -> 0 | I13: =Output!F5 -> 8411.443199 | J13: =Output!G5 -> 8411.443199
B14: Number of trees per ha (minimum height 30cm) | H14: =Output!E6 -> 0 | I14: =Output!F6 -> 8369.385983 | J14: =Output!G6 -> 8369.385983
B15: Number of trees per ha (minimum height 1.3m) | H15: =Output!E7 -> 0 | I15: =Output!F7 -> 6291.759513 | J15: =Output!G7 -> 6291.759513 | K15: =IF(Stocking!B122=TRUE,0,Output!B33) -> 984.5902846
B16: Average basal diameter (cm at ground) | H16: =Output!E8 ->  | I16: =Output!F8 -> 3.482443825 | J16: =Output!G8 -> 3.482443825
B17: Average diameter breast-height (cm at 1.3m) | H17: =Output!E9 ->  | I17: =Output!F9 -> 1.789715099 | J17: =Output!G9 -> 1.789715099
B18: Total basal area per ha (m2 at ground) | H18: =Output!E10 -> 0 | I18: =Output!F10 -> 9.615273729 | J18: =Output!G10 -> 9.615273729
B19: Breast-height basal area per ha (m2 at 1.3m) | H19: =Output!E11 -> 0 | I19: =Output!F11 -> 2.110017274 | J19: =Output!G11 -> 2.110017274
B20: Average height (cm) - all trees | H20: =Output!E12 ->  | I20: =Output!F12 -> 179.850391 | J20: =Output!G12 -> 179.850391
B21: Average height (cm) - trees 30cm+ | H21: =Output!E13 ->  | I21: =Output!F13 -> 180.6394082 | J21: =Output!G13 -> 180.6394082
B22: Average height (cm) - trees 1.3m+ | H22: =Output!E14 ->  | I22: =Output!F14 -> 208.8225193 | J22: =Output!G14 -> 208.8225193
B23: Top height (cm) - per ha basis | H23: =IF(Output!E15>H20,Output!E15,H20) ->  | I23: =IF(Output!F15>I20,Output!F15,I20) -> 346.618075 | J23: =IF(Output!G15>J20,Output!G15,J20) -> 346.618075
B24: Top height (cm) - per 100m2 plot basis (RSA) | H24: =IF(Output!E16>H20,Output!E16,H20) ->  | I24: =IF(Output!F16>I20,Output!F16,I20) -> 275.4717833 | J24: =IF(Output!G16>J20,Output!G16,J20) -> 275.4717833 | K24: =IF(Stocking!B122=TRUE," ",Output!G37) -> 420.0943496
B26: =IF(Weed=TRUE,"CAUTION: ASPEN DEVELOPMENT IRREGULAR FOLLOWING WEEDING"," ") -> CAUTION: ASPEN DEVELOPMENT IRREGULAR FOLLOWING WEEDING
B27: =IF(PSph=1," ",IF(ES=FALSE," ",IF(Stocking!B122=TRUE," ",IF(Stocking!J51+Stocking!D61<Stocking!N3,"CAUTION: ESTABLISHMENT SURVEY STOCKING VALUE IS SUSPECT AND HAS BEEN REDUCED FOR PROJECTION PURPOSES",IF(OR(Stocking!J51>Stocking!N3,Stocking!N14>Stocking!N3)," "," "))))) -> 
B28: =IF(ES=TRUE," ",IF(Stocking!B122=TRUE," ","CAUTION: PINE INGRESS IS VARIABLE AND ESTIMATED VALUES MAY NOT BE ACCURATE AT THE INDIVIDUAL STAND LEVEL")) -> 
B29: =IF(Stocking!B122=FALSE," ","INPUT INVALID - GO BACK TO INPUT WINDOW!") -> 
K30: GYPSY INPUT
A33: Density, Height and Diameter Distributions (lodgepole pine >10cm in height)
B61: * Note: modal density (trees per ha) = | F61: =IF(I13>0,TppDraws!K4*Output!F3/100*1000,0) -> 3511.286411 | G61: Cf. mean density = | I61: =I13 -> 8411.443199

Sheet Batch_Setup
A1: StandID | B1: NSR | C1: Nutrient | D1: Moisture | E1: HYear | F1: MSPrep | G1: YSHpa | H1: PSph | I1: PYear | J1: PSeason | K1: Weed | L1: Risk | M1: ES | N1: ESYear | O1: ESUh | P1: ESPctPl | Q1: ESPctHw | R1: Status
A2: Stand1 | B2: UF | C2: 1 | D2: 2 | E2: 1997 | F2: 3 | G2: 14 | H2: 1303 | I2: 1999 | J2: Yes | K2: Yes | L2: 1 | M2: No | R2: OK
A3: Stand2 | B3: UF | C3: 2 | D3: 1 | E3: 1995 | F3: 2 | G3: 14 | H3: 0 | K3: No | L3: 1 | M3: No | R3: OK
A4: Stand3 | B4: LF | C4: 3 | D4: 1 | E4: 1997 | F4: 1 | G4: 13 | H4: 1635 | I4: 1999 | J4: No | K4: Yes | L4: 2 | M4: Yes | N4: 2003 | O4: Yes | P4: 83 | Q4: 38 | R4: OK

Sheet Batch_Controls (hidden)
A1: Version | B1: 2018-07-17-PM
A2: Output | B2: C:\Users\thexlwiz\Desktop\FRIPSY_DEV
A3: PDF | B3: FALSE
A4: CSV | B4: TRUE
A5: NUMRUNS | B5: 4
A6: ONE STAND | B6: 3
A7: GYPSY | B7: TRUE

Sheet Batch_Output
A1: INPUT DATA | R1: INPUT VALIDATION | X1: PERCENT STOCKING AT ESTABLISHMENT (8 YEARS AFTER CUT) | AE1: LODGEPOLE PINE PERFORMANCE FORECAST | BZ1: HARDWOOD PERFORMANCE FORECAST | CD1: GYPSY OUTPUT
A2: Stand id. | B2: Natural sub- region | C2: Soil nutrient class | D2: Soil moisture class | E2: Timber year of cut | F2: Site prep method | G2: Rep. age (years) | H2: Planted trees per ha | I2: Planting year | J2: Plant early? | K2: Weed? | L2: Climatic Risk | M2: Estab. survey? | N2: Estab. survey year | O2: Under- ht. pine included? | P2: % stocked at survey pine | Q2: % stocked at survey hardwood | R2: Status | S2: Planting year warning | T2: # of G.S. to perf. assess. | U2: Years to estab. survey | V2: Under-height warning | W2: Site preparation warning | X2: Pine planted (inc.u/h) | Y2: Pine ingress (inc.u/h) | Z2: Pine total (inc.u/h) | AA2: Pine planted (30cm+) | AB2: Pine ingress (30cm+) | AC2: Pine total (30cm+) | AD2: Hard- wood (1.3m+) | AE2: Timber year | AF2: Age planted (years) | AG2: Age ingress (years) | AH2: Age total (years) | AI2: % stocked planted (inc. u/h) | AJ2: % stocked ingress (inc. u/h) | AK2: % stocked total (inc. u/h) | AL2: % stocked planted (30cm+) | AM2: % stocked ingress (30cm+) | AN2: % stocked total (30cm+) | AO2: Trees/ha planted (inc. u/h) | AP2: Trees/ha ingress (inc. u/h) | AQ2: Modal trees/ha ingress (inc. u/h) | AR2: Trees/ha total (inc. u/h) | AS2: Trees/ha planted (30cm+) | AT2: Trees/ha ingress (30cm+) | AU2: Trees/ha total (30cm+) | AV2: Trees/ha planted (1.3m+) | AW2: Trees/ha ingress (1.3m+) | AX2: Trees/ha total (1.3m+) | AY2: Av. GLD planted (cm) | AZ2: Av. GLD ingress (cm) | BA2: Av. GLD total (cm) | BB2: Av. DBH planted (cm) | BC2: Av. DBH ingress (cm) | BD2: Av. DBH total (cm) | BE2: BA (gl) planted (m2/ha) | BF2: BA (gl) ingress (m2/ha) | BG2: BA (gl) total (m2/ha) | BH2: BA (bh) planted (m2/ha) | BI2: BA (bh) ingress (m2/ha) | BJ2: BA (bh) total (m2/ha) | BK2: Av. ht. planted (cm all) | BL2: Av. ht. ingress (cm all) | BM2: Av. ht. total (cm all) | BN2: Av. ht. planted (30cm+) | BO2: Av. ht. ingress (30cm+) | BP2: Av. ht. total (30cm+) | BQ2: Av. ht. planted (1.3m+) | BR2: Av. ht. ingress (1.3m+) | BS2: Av. ht. total (1.3m+) | BT2: Top ht. planted (cm) | BU2: Top ht. ingress (cm) | BV2: Top ht. total (cm) | BW2: RSA t.ht. planted (cm) | BX2: RSA t.ht. ingress (cm) | BY2: RSA t.ht. total (cm) | BZ2: Age total (years) | CA2: % stocked total (1.3m+) | CB2: Trees/ha total (1.3m+) | CC2: RSA t.ht. total (cm) | CD2: Pine MAI (m3/ha/yr) | CE2: Pine Culm. Age (years) | CF2: Hardwood Sec. MAI (m3/ha/yr)
A3: StandID | B3: NSR | C3: Nutrient | D3: Moisture | E3: HYear | F3: MSPrep | G3: YSHpa | H3: PSph | I3: PYear | J3: PSeason | K3: Weed | L3: Risk | M3: ES | N3: ESYear | O3: ESUh | P3: ESPctPl | Q3: ESPctHw | R3: Status | S3: PYearWarning | T3: GSSP | U3: ESInterval | V3: UhInclude | W3: SPrepWarning | X3: ES_PctPl_P | Y3: ES_PctPl_N | Z3: ES_PctPl_T | AA3: ES_PctPlSh_P | AB3: ES_PctPlSh_N | AC3: ES_PctPlSh_T | AD3: ES_PctHw_N | AE3: PS_Year | AF3: PS_Tage_P | AG3: PS_Tage_N | AH3: PS_Tage_T | AI3: PS_PctPl_P | AJ3: PS_PctPl_N | AK3: PS_PctPl_T | AL3: PS_PctPlSh_P | AM3: PS_PctPlSh_N | AN3: PS_PctPlSh_T | AO3: PS_Tph_P | AP3: PS_Tph_N | AQ3: PS_Tph_Nmod | AR3: PS_Tph_T | AS3: PS_TphSh_P | AT3: PS_TphSh_N | AU3: PS_TphSh_T | AV3: PS_TphBh_P | AW3: PS_TphBh_N | AX3: PS_TphBh_T | AY3: PS_AvDgl_P | AZ3: PS_AvDgl_N | BA3: PS_AvDgl_T | BB3: PS_AvDbh_P | BC3: PS_AvDbh_N | BD3: PS_AvDbh_T | BE3: PS_BAgl_P | BF3: PS_BAgl_N | BG3: PS_BAgl_T | BH3: PS_BAbh_P | BI3: PS_BAbh_N | BJ3: PS_BAbh_T | BK3: PS_AvHt_P | BL3: PS_AvHt_N | BM3: PS_AvHt_T | BN3: PS_AvHtSh_P | BO3: PS_AvHtSh_N | BP3: PS_AvHtSh_T | BQ3: PS_AvHtBh_P | BR3: PS_AvHtBh_N | BS3: PS_AvHtBh_T | BT3: PS_TopHt_P | BU3: PS_TopHt_N | BV3: PS_TopHt_T | BW3: PS_TopHtRSA_P | BX3: PS_TopHtRSA_N | BY3: PS_TopHtRSA_T | BZ3: PS_Tage_Hw | CA3: PS_PctBh_Hw | CB3: PS_TphBh_Hw | CC3: PS_TopHtRSA_Hw | CD3: GYPSY_MAI_Pl | CE3: GYPSY_CulmAge_Pl | CF3: GYPSY_SecMAI_Hw
A4: Stand1 | B4: UF | C4: 1 | D4: 2 | E4: 1997 | F4: 3 | G4: 14 | H4: 1303 | I4: 1999 | J4: YES | K4: YES | L4: 1 | M4: NO | R4: OK | S4: OK | T4: 13 | V4: Not applicable | W4: OK | X4: 81.09534117 | Y4: 47.9691674 | Z4: 90.16374861 | AA4: 81.09534117 | AB4: 37.44497349 | AC4: 88.17418566 | AD4: 4.9107 | AE4: 2011 | AF4: 14 | AG4: 13 | AH4: 14 | AI4: 77.12248839 | AJ4: 56.3506423 | AK4: 90.01411313 | AL4: 77.12248839 | AM4: 56.3506423 | AN4: 90.01411313 | AO4: 1046.31898 | AP4: 1807.504865 | AQ4: 563.506423 | AR4: 2853.823845 | AS4: 1046.31898 | AT4: 1807.504865 | AU4: 2853.823845 | AV4: 1046.31898 | AW4: 1742.43469 | AX4: 2788.75367 | AY4: 12.44359079 | AZ4: 6.344419884 | BA4: 8.580604955 | BB4: 8.412192229 | BC4: 3.930353293 | BD4: 5.611904874 | BE4: 13.17692446 | BF4: 6.588986069 | BG4: 19.76591053 | BH4: 6.075484328 | BI4: 2.633392922 | BJ4: 8.70887725 | BK4: 531.9317504 | BL4: 321.933622 | BM4: 398.9268211 | BN4: 531.9317504 | BO4: 321.933622 | BP4: 398.9268211 | BQ4: 531.9317504 | BR4: 330.2312145 | BS4: 405.907708 | BT4: 617.6550411 | BU4: 508.8956004 | BV4: 617.6550411 | BW4: 567.8273528 | BX4: 459.1321075 | BY4: 567.8273528 | BZ4: 9.926634297 | CA4: 8.522212685 | CB4: 259.6485276 | CC4: 284.9346281 | CD4: 4.541775058 | CE4: 72 | CF4: 0.1017582895
A5: Stand2 | B5: UF | C5: 2 | D5: 1 | E5: 1995 | F5: 2 | G5: 14 | H5: 0 | K5: NO | L5: 1 | M5: NO | R5: OK | S5: OK | V5: Not applicable | W5: OK | X5: 0 | Y5: 83.36227085 | Z5: 83.36227085 | AA5: 0 | AB5: 77.9399453 | AC5: 77.9399453 | AD5: 11.15548514 | AE5: 2009 | AG5: 13 | AH5: 13 | AI5: 0 | AJ5: 86.92088983 | AK5: 86.92088983 | AL5: 0 | AM5: 86.92088983 | AN5: 86.92088983 | AO5: 0 | AP5: 11398.94014 | AQ5: 7822.880085 | AR5: 11398.94014 | AS5: 0 | AT5: 11398.94014 | AU5: 11398.94014 | AV5: 0 | AW5: 11148.16346 | AX5: 11148.16346 | AZ5: 6.374509105 | BA5: 6.374509105 | BC5: 3.984360631 | BD5: 3.984360631 | BE5: 0 | BF5: 40.97552101 | BG5: 40.97552101 | BH5: 0 | BI5: 16.83103905 | BJ5: 16.83103905 | BL5: 334.043998 | BM5: 334.043998 | BO5: 334.043998 | BP5: 334.043998 | BR5: 339.2634435 | BS5: 339.2634435 | BU5: 563.3059927 | BV5: 563.3059927 | BX5: 464.9739607 | BY5: 464.9739607 | BZ5: 10.27257644 | CA5: 14.96295786 | CB5: 488.5865968 | CC5: 314.8350788 | CD5: 3.436353678 | CE5: 98 | CF5: 0.2092570177
A6: Stand3 | B6: LF | C6: 3 | D6: 1 | E6: 1997 | F6: 1 | G6: 13 | H6: 1635 | I6: 1999 | J6: NO | K6: YES | L6: 2 | M6: YES | N6: 2003 | O6: YES | P6: 83 | Q6: 38 | R6: OK | S6: OK | T6: 11 | U6: 6 | V6: OK | W6: Site preparation method may not be applicable to soil nutrient class | X6: 83 | Y6: 34.98927047 | Z6: 84.62306461 | AB6: 22.59404184 | AD6: 38 | AE6: 2010 | AF6: 12 | AG6: 12 | AH6: 12 | AI6: 60.32645827 | AJ6: 44.91955723 | AK6: 78.14763755 | AL6: 60.32645827 | AM6: 40.35270309 | AN6: 76.33580477 | AO6: 977.7250374 | AP6: 1637.391875 | AQ6: 449.1955723 | AR6: 2615.116912 | AS6: 977.7250374 | AT6: 1629.204915 | AU6: 2606.929953 | AV6: 940.571486 | AW6: 1224.769122 | AX6: 2165.340608 | AY6: 5.802111238 | AZ6: 3.482443825 | BA6: 4.349707884 | BB6: 3.0169636 | BC6: 1.789715099 | BD6: 2.322802107 | BE6: 2.840461059 | BF6: 1.871732437 | BG6: 4.712193496 | BH6: 0.7918578527 | BI6: 0.4107410654 | BJ6: 1.202598918 | BK6: 245.731949 | BL6: 179.850391 | BM6: 204.4818132 | BN6: 245.731949 | BO6: 180.6394082 | BP6: 205.0522647 | BQ6: 251.239139 | BR6: 208.8225193 | BS6: 227.247271 | BT6: 328.0664827 | BU6: 302.9550111 | BV6: 331.3920825 | BW6: 321.1607896 | BX6: 282.0176846 | BY6: 321.1607896 | BZ6: 10.24102622 | CA6: 27.43495376 | CB6: 984.5902846 | CC6: 420.0943496 | CD6: 2.542663372 | CE6: 84 | CF6: 0.8199786349

Sheet zero_chart (hidden)
A1: Row Labels | B1: Percent | D1: Row Labels | E1: Sum of Percent | G1: Mean
A2: 1 | B2: 0 | D2: 1 | E2: 0 | G2: Median
A3: 2 | B3: 0 | D3: 2 | E3: 0 | G3: Mode
A4: 3 | B4: 0 | D4: 3 | E4: 0
A5: 4 | B5: 0 | D5: 4 | E5: 0
A6: 5 | B6: 0 | D6: 5 | E6: 0
A7: 6 | B7: 0 | D7: 6 | E7: 0
A8: 7 | B8: 0 | D8: 7 | E8: 0
A9: 8 | B9: 0 | D9: 8 | E9: 0
A10: 9 | B10: 0 | D10: 9 | E10: 0
A11: 10 | B11: 0 | D11: 10 | E11: 0
A12: 11 | B12: 0
A13: 12 | B13: 0
A14: 13 | B14: 0
A15: 14 | B15: 0
A16: 15 | B16: 0
A17: 16 | B17: 0
A18: 17 | B18: 0
A19: 18 | B19: 0
A20: 19 | B20: 0
A21: 20 | B21: 0
A22: 21 | B22: 0
A23: 22 | B23: 0
A24: 23 | B24: 0
A25: 24 | B25: 0
A26: 25 | B26: 0
A27: 26 | B27: 0
A28: 27 | B28: 0
A29: 28 | B29: 0
A30: 29 | B30: 0
A31: 30 | B31: 0
A32: 31 | B32: 0
A33: 32 | B33: 0
A34: 33 | B34: 0
A35: 34 | B35: 0
A36: 35 | B36: 0
A37: 36 | B37: 0
A38: 37 | B38: 0
A39: 38 | B39: 0
A40: 39 | B40: 0
A41: 40 | B41: 0
A42: 41 | B42: 0
A43: 42 | B43: 0
A44: 43 | B44: 0
A45: 44 | B45: 0
A46: 45 | B46: 0
A47: 46 | B47: 0
A48: 47 | B48: 0
A49: 48 | B49: 0
A50: 49 | B50: 0
A51: 50 | B51: 0

Sheet GYPSY_Observed

Sheet GYPSY_Projected

Sheet GYPSY_Report
C1: Yield Table Generator Report
A6: Forecast Values | F6: Compiler Engine Information
A8: Stand ID: | C8: =StandId -> Stand3 | F8: GYPSY Model: | H8: =IF(GYPSY_Observed!A1="","N/A",gypsy_version) -> N/A
A9: Stand Type: | C9: =gypsy_standtype -> Regenerated | F9: COM DLL: | H9: =IF(GYPSY_Observed!A1="","N/A",dll_version&"b"&dll_build) -> N/A
A10: Stand Age: | C10: =YSHpa -> 13 | D10: years | F10: Application Version: | H10: =bp_version -> 2018-07-17-PM
A11: Spatial: | C11: =IF(gypsy_spatial,"YES","NO") -> YES | F11: =IF(GYPSY_Observed!A1="","GYPSY output is not available!","") -> GYPSY output is not available!
A12: BA adjusted: | C12: =IF(gypsy_baadj,"YES","NO") -> NO
A14: Input Data
A16: species | C16: totage | D16: topht | E16: den | F16: ps | G16: ba | H16: utilization
A17: pine | C17: =IF(Report!J10="","",Report!J10) -> 12 | D17: =IF(Report!J24="","",Report!J24/100) -> 2.754717833 | E17: =IF(Report!J14="","",Report!J14) -> 8369.385983 | F17: =IF(Report!J12="","",Report!J12) -> 84.17814217 | G17: =IF(Report!J19="","",Report!J19) -> 2.110017274 | H17: =gypsy_stdob & "/" & gypsy_topdib & "/" & gypsy_stht -> 15/10/30
A18: aspen | C18: =IF(Report!K10="","",Report!K10) -> 10.24102622 | D18: =IF(Report!J24="","",Report!K24/100) -> 4.200943496 | E18: =IF(Report!K15="","",Report!K15) -> 984.5902846 | F18: =IF(Report!K12="","",Report!K12) -> 27.43495376 | G18: =IF(Report!K19="","",Report!K19) ->  | H18: =gypsy_stdob & "/" & gypsy_topdib & "/" & gypsy_stht -> 15/10/30
A20: Calculated Attributes
A22: species | C22: bhage | D22: y2bh | E22: si_bh | F22: si_t | G22: sdf | H22: psi
A23: pine | C23: =IF(GYPSY_Observed!AL2="","",GYPSY_Observed!AL2) ->  | D23: =IF(GYPSY_Observed!BK2="","",GYPSY_Observed!BK2) ->  | E23: =IF(GYPSY_Observed!BI2="","",GYPSY_Observed!BI2) ->  | F23: =IF(GYPSY_Observed!BJ2="","",GYPSY_Observed!BJ2) ->  | G23: =IF(GYPSY_Observed!BL2="","",GYPSY_Observed!BL2) ->  | H23: =IF(GYPSY_Observed!BN2="","",GYPSY_Observed!BN2) -> 
A24: aspen | C24: =IF(GYPSY_Observed!T2="","",GYPSY_Observed!T2) ->  | D24: =IF(GYPSY_Observed!AS2="","",GYPSY_Observed!AS2) ->  | E24: =IF(GYPSY_Observed!AQ2="","",GYPSY_Observed!AQ2) ->  | F24: =IF(GYPSY_Observed!AR2="","",GYPSY_Observed!AR2) ->  | G24: =IF(GYPSY_Observed!AT2="","",GYPSY_Observed!AT2) ->  | H24: =IF(GYPSY_Observed!AV2="","",GYPSY_Observed!AV2) -> 
A26: Volume & Yield Information
A28: species | C28: culm. mai | D28: culm. stand age | E28: sec. mai
A29: pine | C29: =IF(GYPSY_Projected!A1="","",MAX(GYPSY_Projected!BB2:BB252)) ->  | D29: =IF(C29="","",MATCH(C29,GYPSY_Projected!BB2:BB252,0)-1) ->  | E29: =IF(D29="","",INDEX(GYPSY_Projected!BE2:BE252,GYPSY_Report!D29+1)) -> 
A30: aspen | C30: =IF(GYPSY_Projected!A1="","",MAX(GYPSY_Projected!BE2:BE252)) ->  | D30: =IF(C30="","",MATCH(C30,GYPSY_Projected!BE2:BE252,0)-1) ->  | E30: =IF(D30="","",INDEX(GYPSY_Projected!BB2:BB252,GYPSY_Report!D30+1)) ->  | F30: =IF(C18<7.5," *min. aspen age of 7.5 years is used in projection.","") -> 
A163: ="Yield Table for " & StandId -> Yield Table for Stand3
A165: Stand Age | B165: Pine | E165: Aspen | H165: Total
B166: mvol | C166: mai | D166: pc. size | E166: mvol | F166: mai | G166: pc. size | H166: mvol | I166: mai
A167: years | B167: m3/ha | C167: m3/ha/yr | D167: trees/m3 | E167: m3/ha | F167: m3/ha/yr | G167: trees/m3 | H167: m3/ha | I167: m3/ha/yr
A168: =IF(GYPSY_Projected!A$1="","",GYPSY_Projected!C$12) ->  | B168: =IF(ISNA(VLOOKUP($A168,GYPSY_Projected!$C$1:$BH$252,51,FALSE)),"",VLOOKUP($A168,GYPSY_Projected!$C$1:$BH$252,51,FALSE)) ->  | C168: =IF(ISNA(VLOOKUP($A168,GYPSY_Projected!$C$1:$BH$252,52,FALSE)),"",VLOOKUP($A168,GYPSY_Projected!$C$1:$BH$252,52,FALSE)) ->  | D168: =IF(ISNA(IF(B168>=0.1,VLOOKUP($A168,GYPSY_Projected!$C$1:$BH$252,34,FALSE)/B168,0)),"",IF(B168>=0.1,VLOOKUP($A168,GYPSY_Projected!$C$1:$BH$252,34,FALSE)/B168,0)) ->  | E168: =IF(ISNA(VLOOKUP($A168,GYPSY_Projected!$C$1:$BH$252,54,FALSE)),"",VLOOKUP($A168,GYPSY_Projected!$C$1:$BH$252,54,FALSE)) ->  | F168: =IF(ISNA(VLOOKUP($A168,GYPSY_Projected!$C$1:$BH$252,55,FALSE)),"",VLOOKUP($A168,GYPSY_Projected!$C$1:$BH$252,55,FALSE)) ->  | G168: =IF(ISNA(IF(E168>=0.1,VLOOKUP($A168,GYPSY_Projected!$C$1:$BH$252,7,FALSE)/E168,0)),"",IF(E168>=0.1,VLOOKUP($A168,GYPSY_Projected!$C$1:$BH$252,7,FALSE)/E168,0)) ->  | H168: =IF(ISNA(VLOOKUP($A168,GYPSY_Projected!$C$1:$BH$252,57,FALSE)),"",VLOOKUP($A168,GYPSY_Projected!$C$1:$BH$252,57,FALSE)) ->  | I168: =IF(ISNA(VLOOKUP($A168,GYPSY_Projected!$C$1:$BH$252,58,FALSE)),"",VLOOKUP($A168,GYPSY_Projected!$C$1:$BH$252,58,FALSE)) -> 
A169: =IF(GYPSY_Projected!A$1="","",GYPSY_Projected!C$22) ->  | B169: =IF(ISNA(VLOOKUP($A169,GYPSY_Projected!$C$1:$BH$252,51,FALSE)),"",VLOOKUP($A169,GYPSY_Projected!$C$1:$BH$252,51,FALSE)) ->  | C169: =IF(ISNA(VLOOKUP($A169,GYPSY_Projected!$C$1:$BH$252,52,FALSE)),"",VLOOKUP($A169,GYPSY_Projected!$C$1:$BH$252,52,FALSE)) ->  | D169: =IF(ISNA(IF(B169>=0.1,VLOOKUP($A169,GYPSY_Projected!$C$1:$BH$252,34,FALSE)/B169,0)),"",IF(B169>=0.1,VLOOKUP($A169,GYPSY_Projected!$C$1:$BH$252,34,FALSE)/B169,0)) ->  | E169: =IF(ISNA(VLOOKUP($A169,GYPSY_Projected!$C$1:$BH$252,54,FALSE)),"",VLOOKUP($A169,GYPSY_Projected!$C$1:$BH$252,54,FALSE)) ->  | F169: =IF(ISNA(VLOOKUP($A169,GYPSY_Projected!$C$1:$BH$252,55,FALSE)),"",VLOOKUP($A169,GYPSY_Projected!$C$1:$BH$252,55,FALSE)) ->  | G169: =IF(ISNA(IF(E169>=0.1,VLOOKUP($A169,GYPSY_Projected!$C$1:$BH$252,7,FALSE)/E169,0)),"",IF(E169>=0.1,VLOOKUP($A169,GYPSY_Projected!$C$1:$BH$252,7,FALSE)/E169,0)) ->  | H169: =IF(ISNA(VLOOKUP($A169,GYPSY_Projected!$C$1:$BH$252,57,FALSE)),"",VLOOKUP($A169,GYPSY_Projected!$C$1:$BH$252,57,FALSE)) ->  | I169: =IF(ISNA(VLOOKUP($A169,GYPSY_Projected!$C$1:$BH$252,58,FALSE)),"",VLOOKUP($A169,GYPSY_Projected!$C$1:$BH$252,58,FALSE)) -> 
A170: =IF(GYPSY_Projected!A$1="","",GYPSY_Projected!C$32) ->  | B170: =IF(ISNA(VLOOKUP($A170,GYPSY_Projected!$C$1:$BH$252,51,FALSE)),"",VLOOKUP($A170,GYPSY_Projected!$C$1:$BH$252,51,FALSE)) ->  | C170: =IF(ISNA(VLOOKUP($A170,GYPSY_Projected!$C$1:$BH$252,52,FALSE)),"",VLOOKUP($A170,GYPSY_Projected!$C$1:$BH$252,52,FALSE)) ->  | D170: =IF(ISNA(IF(B170>=0.1,VLOOKUP($A170,GYPSY_Projected!$C$1:$BH$252,34,FALSE)/B170,0)),"",IF(B170>=0.1,VLOOKUP($A170,GYPSY_Projected!$C$1:$BH$252,34,FALSE)/B170,0)) ->  | E170: =IF(ISNA(VLOOKUP($A170,GYPSY_Projected!$C$1:$BH$252,54,FALSE)),"",VLOOKUP($A170,GYPSY_Projected!$C$1:$BH$252,54,FALSE)) ->  | F170: =IF(ISNA(VLOOKUP($A170,GYPSY_Projected!$C$1:$BH$252,55,FALSE)),"",VLOOKUP($A170,GYPSY_Projected!$C$1:$BH$252,55,FALSE)) ->  | G170: =IF(ISNA(IF(E170>=0.1,VLOOKUP($A170,GYPSY_Projected!$C$1:$BH$252,7,FALSE)/E170,0)),"",IF(E170>=0.1,VLOOKUP($A170,GYPSY_Projected!$C$1:$BH$252,7,FALSE)/E170,0)) ->  | H170: =IF(ISNA(VLOOKUP($A170,GYPSY_Projected!$C$1:$BH$252,57,FALSE)),"",VLOOKUP($A170,GYPSY_Projected!$C$1:$BH$252,57,FALSE)) ->  | I170: =IF(ISNA(VLOOKUP($A170,GYPSY_Projected!$C$1:$BH$252,58,FALSE)),"",VLOOKUP($A170,GYPSY_Projected!$C$1:$BH$252,58,FALSE)) -> 
A171: =IF(GYPSY_Projected!A$1="","",GYPSY_Projected!C$42) ->  | B171: =IF(ISNA(VLOOKUP($A171,GYPSY_Projected!$C$1:$BH$252,51,FALSE)),"",VLOOKUP($A171,GYPSY_Projected!$C$1:$BH$252,51,FALSE)) ->  | C171: =IF(ISNA(VLOOKUP($A171,GYPSY_Projected!$C$1:$BH$252,52,FALSE)),"",VLOOKUP($A171,GYPSY_Projected!$C$1:$BH$252,52,FALSE)) ->  | D171: =IF(ISNA(IF(B171>=0.1,VLOOKUP($A171,GYPSY_Projected!$C$1:$BH$252,34,FALSE)/B171,0)),"",IF(B171>=0.1,VLOOKUP($A171,GYPSY_Projected!$C$1:$BH$252,34,FALSE)/B171,0)) ->  | E171: =IF(ISNA(VLOOKUP($A171,GYPSY_Projected!$C$1:$BH$252,54,FALSE)),"",VLOOKUP($A171,GYPSY_Projected!$C$1:$BH$252,54,FALSE)) ->  | F171: =IF(ISNA(VLOOKUP($A171,GYPSY_Projected!$C$1:$BH$252,55,FALSE)),"",VLOOKUP($A171,GYPSY_Projected!$C$1:$BH$252,55,FALSE)) ->  | G171: =IF(ISNA(IF(E171>=0.1,VLOOKUP($A171,GYPSY_Projected!$C$1:$BH$252,7,FALSE)/E171,0)),"",IF(E171>=0.1,VLOOKUP($A171,GYPSY_Projected!$C$1:$BH$252,7,FALSE)/E171,0)) ->  | H171: =IF(ISNA(VLOOKUP($A171,GYPSY_Projected!$C$1:$BH$252,57,FALSE)),"",VLOOKUP($A171,GYPSY_Projected!$C$1:$BH$252,57,FALSE)) ->  | I171: =IF(ISNA(VLOOKUP($A171,GYPSY_Projected!$C$1:$BH$252,58,FALSE)),"",VLOOKUP($A171,GYPSY_Projected!$C$1:$BH$252,58,FALSE)) -> 
A172: =IF(GYPSY_Projected!A$1="","",GYPSY_Projected!C$52) ->  | B172: =IF(ISNA(VLOOKUP($A172,GYPSY_Projected!$C$1:$BH$252,51,FALSE)),"",VLOOKUP($A172,GYPSY_Projected!$C$1:$BH$252,51,FALSE)) ->  | C172: =IF(ISNA(VLOOKUP($A172,GYPSY_Projected!$C$1:$BH$252,52,FALSE)),"",VLOOKUP($A172,GYPSY_Projected!$C$1:$BH$252,52,FALSE)) ->  | D172: =IF(ISNA(IF(B172>=0.1,VLOOKUP($A172,GYPSY_Projected!$C$1:$BH$252,34,FALSE)/B172,0)),"",IF(B172>=0.1,VLOOKUP($A172,GYPSY_Projected!$C$1:$BH$252,34,FALSE)/B172,0)) ->  | E172: =IF(ISNA(VLOOKUP($A172,GYPSY_Projected!$C$1:$BH$252,54,FALSE)),"",VLOOKUP($A172,GYPSY_Projected!$C$1:$BH$252,54,FALSE)) ->  | F172: =IF(ISNA(VLOOKUP($A172,GYPSY_Projected!$C$1:$BH$252,55,FALSE)),"",VLOOKUP($A172,GYPSY_Projected!$C$1:$BH$252,55,FALSE)) ->  | G172: =IF(ISNA(IF(E172>=0.1,VLOOKUP($A172,GYPSY_Projected!$C$1:$BH$252,7,FALSE)/E172,0)),"",IF(E172>=0.1,VLOOKUP($A172,GYPSY_Projected!$C$1:$BH$252,7,FALSE)/E172,0)) ->  | H172: =IF(ISNA(VLOOKUP($A172,GYPSY_Projected!$C$1:$BH$252,57,FALSE)),"",VLOOKUP($A172,GYPSY_Projected!$C$1:$BH$252,57,FALSE)) ->  | I172: =IF(ISNA(VLOOKUP($A172,GYPSY_Projected!$C$1:$BH$252,58,FALSE)),"",VLOOKUP($A172,GYPSY_Projected!$C$1:$BH$252,58,FALSE)) -> 
A173: =IF(GYPSY_Projected!A$1="","",GYPSY_Projected!C$62) ->  | B173: =IF(ISNA(VLOOKUP($A173,GYPSY_Projected!$C$1:$BH$252,51,FALSE)),"",VLOOKUP($A173,GYPSY_Projected!$C$1:$BH$252,51,FALSE)) ->  | C173: =IF(ISNA(VLOOKUP($A173,GYPSY_Projected!$C$1:$BH$252,52,FALSE)),"",VLOOKUP($A173,GYPSY_Projected!$C$1:$BH$252,52,FALSE)) ->  | D173: =IF(ISNA(IF(B173>=0.1,VLOOKUP($A173,GYPSY_Projected!$C$1:$BH$252,34,FALSE)/B173,0)),"",IF(B173>=0.1,VLOOKUP($A173,GYPSY_Projected!$C$1:$BH$252,34,FALSE)/B173,0)) ->  | E173: =IF(ISNA(VLOOKUP($A173,GYPSY_Projected!$C$1:$BH$252,54,FALSE)),"",VLOOKUP($A173,GYPSY_Projected!$C$1:$BH$252,54,FALSE)) ->  | F173: =IF(ISNA(VLOOKUP($A173,GYPSY_Projected!$C$1:$BH$252,55,FALSE)),"",VLOOKUP($A173,GYPSY_Projected!$C$1:$BH$252,55,FALSE)) ->  | G173: =IF(ISNA(IF(E173>=0.1,VLOOKUP($A173,GYPSY_Projected!$C$1:$BH$252,7,FALSE)/E173,0)),"",IF(E173>=0.1,VLOOKUP($A173,GYPSY_Projected!$C$1:$BH$252,7,FALSE)/E173,0)) ->  | H173: =IF(ISNA(VLOOKUP($A173,GYPSY_Projected!$C$1:$BH$252,57,FALSE)),"",VLOOKUP($A173,GYPSY_Projected!$C$1:$BH$252,57,FALSE)) ->  | I173: =IF(ISNA(VLOOKUP($A173,GYPSY_Projected!$C$1:$BH$252,58,FALSE)),"",VLOOKUP($A173,GYPSY_Projected!$C$1:$BH$252,58,FALSE)) -> 
A174: =IF(GYPSY_Projected!A$1="","",GYPSY_Projected!C$72) ->  | B174: =IF(ISNA(VLOOKUP($A174,GYPSY_Projected!$C$1:$BH$252,51,FALSE)),"",VLOOKUP($A174,GYPSY_Projected!$C$1:$BH$252,51,FALSE)) ->  | C174: =IF(ISNA(VLOOKUP($A174,GYPSY_Projected!$C$1:$BH$252,52,FALSE)),"",VLOOKUP($A174,GYPSY_Projected!$C$1:$BH$252,52,FALSE)) ->  | D174: =IF(ISNA(IF(B174>=0.1,VLOOKUP($A174,GYPSY_Projected!$C$1:$BH$252,34,FALSE)/B174,0)),"",IF(B174>=0.1,VLOOKUP($A174,GYPSY_Projected!$C$1:$BH$252,34,FALSE)/B174,0)) ->  | E174: =IF(ISNA(VLOOKUP($A174,GYPSY_Projected!$C$1:$BH$252,54,FALSE)),"",VLOOKUP($A174,GYPSY_Projected!$C$1:$BH$252,54,FALSE)) ->  | F174: =IF(ISNA(VLOOKUP($A174,GYPSY_Projected!$C$1:$BH$252,55,FALSE)),"",VLOOKUP($A174,GYPSY_Projected!$C$1:$BH$252,55,FALSE)) ->  | G174: =IF(ISNA(IF(E174>=0.1,VLOOKUP($A174,GYPSY_Projected!$C$1:$BH$252,7,FALSE)/E174,0)),"",IF(E174>=0.1,VLOOKUP($A174,GYPSY_Projected!$C$1:$BH$252,7,FALSE)/E174,0)) ->  | H174: =IF(ISNA(VLOOKUP($A174,GYPSY_Projected!$C$1:$BH$252,57,FALSE)),"",VLOOKUP($A174,GYPSY_Projected!$C$1:$BH$252,57,FALSE)) ->  | I174: =IF(ISNA(VLOOKUP($A174,GYPSY_Projected!$C$1:$BH$252,58,FALSE)),"",VLOOKUP($A174,GYPSY_Projected!$C$1:$BH$252,58,FALSE)) -> 
A175: =IF(GYPSY_Projected!A$1="","",GYPSY_Projected!C$82) ->  | B175: =IF(ISNA(VLOOKUP($A175,GYPSY_Projected!$C$1:$BH$252,51,FALSE)),"",VLOOKUP($A175,GYPSY_Projected!$C$1:$BH$252,51,FALSE)) ->  | C175: =IF(ISNA(VLOOKUP($A175,GYPSY_Projected!$C$1:$BH$252,52,FALSE)),"",VLOOKUP($A175,GYPSY_Projected!$C$1:$BH$252,52,FALSE)) ->  | D175: =IF(ISNA(IF(B175>=0.1,VLOOKUP($A175,GYPSY_Projected!$C$1:$BH$252,34,FALSE)/B175,0)),"",IF(B175>=0.1,VLOOKUP($A175,GYPSY_Projected!$C$1:$BH$252,34,FALSE)/B175,0)) ->  | E175: =IF(ISNA(VLOOKUP($A175,GYPSY_Projected!$C$1:$BH$252,54,FALSE)),"",VLOOKUP($A175,GYPSY_Projected!$C$1:$BH$252,54,FALSE)) ->  | F175: =IF(ISNA(VLOOKUP($A175,GYPSY_Projected!$C$1:$BH$252,55,FALSE)),"",VLOOKUP($A175,GYPSY_Projected!$C$1:$BH$252,55,FALSE)) ->  | G175: =IF(ISNA(IF(E175>=0.1,VLOOKUP($A175,GYPSY_Projected!$C$1:$BH$252,7,FALSE)/E175,0)),"",IF(E175>=0.1,VLOOKUP($A175,GYPSY_Projected!$C$1:$BH$252,7,FALSE)/E175,0)) ->  | H175: =IF(ISNA(VLOOKUP($A175,GYPSY_Projected!$C$1:$BH$252,57,FALSE)),"",VLOOKUP($A175,GYPSY_Projected!$C$1:$BH$252,57,FALSE)) ->  | I175: =IF(ISNA(VLOOKUP($A175,GYPSY_Projected!$C$1:$BH$252,58,FALSE)),"",VLOOKUP($A175,GYPSY_Projected!$C$1:$BH$252,58,FALSE)) -> 
A176: =IF(GYPSY_Projected!A$1="","",GYPSY_Projected!C$92) ->  | B176: =IF(ISNA(VLOOKUP($A176,GYPSY_Projected!$C$1:$BH$252,51,FALSE)),"",VLOOKUP($A176,GYPSY_Projected!$C$1:$BH$252,51,FALSE)) ->  | C176: =IF(ISNA(VLOOKUP($A176,GYPSY_Projected!$C$1:$BH$252,52,FALSE)),"",VLOOKUP($A176,GYPSY_Projected!$C$1:$BH$252,52,FALSE)) ->  | D176: =IF(ISNA(IF(B176>=0.1,VLOOKUP($A176,GYPSY_Projected!$C$1:$BH$252,34,FALSE)/B176,0)),"",IF(B176>=0.1,VLOOKUP($A176,GYPSY_Projected!$C$1:$BH$252,34,FALSE)/B176,0)) ->  | E176: =IF(ISNA(VLOOKUP($A176,GYPSY_Projected!$C$1:$BH$252,54,FALSE)),"",VLOOKUP($A176,GYPSY_Projected!$C$1:$BH$252,54,FALSE)) ->  | F176: =IF(ISNA(VLOOKUP($A176,GYPSY_Projected!$C$1:$BH$252,55,FALSE)),"",VLOOKUP($A176,GYPSY_Projected!$C$1:$BH$252,55,FALSE)) ->  | G176: =IF(ISNA(IF(E176>=0.1,VLOOKUP($A176,GYPSY_Projected!$C$1:$BH$252,7,FALSE)/E176,0)),"",IF(E176>=0.1,VLOOKUP($A176,GYPSY_Projected!$C$1:$BH$252,7,FALSE)/E176,0)) ->  | H176: =IF(ISNA(VLOOKUP($A176,GYPSY_Projected!$C$1:$BH$252,57,FALSE)),"",VLOOKUP($A176,GYPSY_Projected!$C$1:$BH$252,57,FALSE)) ->  | I176: =IF(ISNA(VLOOKUP($A176,GYPSY_Projected!$C$1:$BH$252,58,FALSE)),"",VLOOKUP($A176,GYPSY_Projected!$C$1:$BH$252,58,FALSE)) -> 
A177: =IF(GYPSY_Projected!A$1="","",GYPSY_Projected!C$102) ->  | B177: =IF(ISNA(VLOOKUP($A177,GYPSY_Projected!$C$1:$BH$252,51,FALSE)),"",VLOOKUP($A177,GYPSY_Projected!$C$1:$BH$252,51,FALSE)) ->  | C177: =IF(ISNA(VLOOKUP($A177,GYPSY_Projected!$C$1:$BH$252,52,FALSE)),"",VLOOKUP($A177,GYPSY_Projected!$C$1:$BH$252,52,FALSE)) ->  | D177: =IF(ISNA(IF(B177>=0.1,VLOOKUP($A177,GYPSY_Projected!$C$1:$BH$252,34,FALSE)/B177,0)),"",IF(B177>=0.1,VLOOKUP($A177,GYPSY_Projected!$C$1:$BH$252,34,FALSE)/B177,0)) ->  | E177: =IF(ISNA(VLOOKUP($A177,GYPSY_Projected!$C$1:$BH$252,54,FALSE)),"",VLOOKUP($A177,GYPSY_Projected!$C$1:$BH$252,54,FALSE)) ->  | F177: =IF(ISNA(VLOOKUP($A177,GYPSY_Projected!$C$1:$BH$252,55,FALSE)),"",VLOOKUP($A177,GYPSY_Projected!$C$1:$BH$252,55,FALSE)) ->  | G177: =IF(ISNA(IF(E177>=0.1,VLOOKUP($A177,GYPSY_Projected!$C$1:$BH$252,7,FALSE)/E177,0)),"",IF(E177>=0.1,VLOOKUP($A177,GYPSY_Projected!$C$1:$BH$252,7,FALSE)/E177,0)) ->  | H177: =IF(ISNA(VLOOKUP($A177,GYPSY_Projected!$C$1:$BH$252,57,FALSE)),"",VLOOKUP($A177,GYPSY_Projected!$C$1:$BH$252,57,FALSE)) ->  | I177: =IF(ISNA(VLOOKUP($A177,GYPSY_Projected!$C$1:$BH$252,58,FALSE)),"",VLOOKUP($A177,GYPSY_Projected!$C$1:$BH$252,58,FALSE)) -> 
A178: =IF(GYPSY_Projected!A$1="","",GYPSY_Projected!C$112) ->  | B178: =IF(ISNA(VLOOKUP($A178,GYPSY_Projected!$C$1:$BH$252,51,FALSE)),"",VLOOKUP($A178,GYPSY_Projected!$C$1:$BH$252,51,FALSE)) ->  | C178: =IF(ISNA(VLOOKUP($A178,GYPSY_Projected!$C$1:$BH$252,52,FALSE)),"",VLOOKUP($A178,GYPSY_Projected!$C$1:$BH$252,52,FALSE)) ->  | D178: =IF(ISNA(IF(B178>=0.1,VLOOKUP($A178,GYPSY_Projected!$C$1:$BH$252,34,FALSE)/B178,0)),"",IF(B178>=0.1,VLOOKUP($A178,GYPSY_Projected!$C$1:$BH$252,34,FALSE)/B178,0)) ->  | E178: =IF(ISNA(VLOOKUP($A178,GYPSY_Projected!$C$1:$BH$252,54,FALSE)),"",VLOOKUP($A178,GYPSY_Projected!$C$1:$BH$252,54,FALSE)) ->  | F178: =IF(ISNA(VLOOKUP($A178,GYPSY_Projected!$C$1:$BH$252,55,FALSE)),"",VLOOKUP($A178,GYPSY_Projected!$C$1:$BH$252,55,FALSE)) ->  | G178: =IF(ISNA(IF(E178>=0.1,VLOOKUP($A178,GYPSY_Projected!$C$1:$BH$252,7,FALSE)/E178,0)),"",IF(E178>=0.1,VLOOKUP($A178,GYPSY_Projected!$C$1:$BH$252,7,FALSE)/E178,0)) ->  | H178: =IF(ISNA(VLOOKUP($A178,GYPSY_Projected!$C$1:$BH$252,57,FALSE)),"",VLOOKUP($A178,GYPSY_Projected!$C$1:$BH$252,57,FALSE)) ->  | I178: =IF(ISNA(VLOOKUP($A178,GYPSY_Projected!$C$1:$BH$252,58,FALSE)),"",VLOOKUP($A178,GYPSY_Projected!$C$1:$BH$252,58,FALSE)) -> 
A179: =IF(GYPSY_Projected!A$1="","",GYPSY_Projected!C$122) ->  | B179: =IF(ISNA(VLOOKUP($A179,GYPSY_Projected!$C$1:$BH$252,51,FALSE)),"",VLOOKUP($A179,GYPSY_Projected!$C$1:$BH$252,51,FALSE)) ->  | C179: =IF(ISNA(VLOOKUP($A179,GYPSY_Projected!$C$1:$BH$252,52,FALSE)),"",VLOOKUP($A179,GYPSY_Projected!$C$1:$BH$252,52,FALSE)) ->  | D179: =IF(ISNA(IF(B179>=0.1,VLOOKUP($A179,GYPSY_Projected!$C$1:$BH$252,34,FALSE)/B179,0)),"",IF(B179>=0.1,VLOOKUP($A179,GYPSY_Projected!$C$1:$BH$252,34,FALSE)/B179,0)) ->  | E179: =IF(ISNA(VLOOKUP($A179,GYPSY_Projected!$C$1:$BH$252,54,FALSE)),"",VLOOKUP($A179,GYPSY_Projected!$C$1:$BH$252,54,FALSE)) ->  | F179: =IF(ISNA(VLOOKUP($A179,GYPSY_Projected!$C$1:$BH$252,55,FALSE)),"",VLOOKUP($A179,GYPSY_Projected!$C$1:$BH$252,55,FALSE)) ->  | G179: =IF(ISNA(IF(E179>=0.1,VLOOKUP($A179,GYPSY_Projected!$C$1:$BH$252,7,FALSE)/E179,0)),"",IF(E179>=0.1,VLOOKUP($A179,GYPSY_Projected!$C$1:$BH$252,7,FALSE)/E179,0)) ->  | H179: =IF(ISNA(VLOOKUP($A179,GYPSY_Projected!$C$1:$BH$252,57,FALSE)),"",VLOOKUP($A179,GYPSY_Projected!$C$1:$BH$252,57,FALSE)) ->  | I179: =IF(ISNA(VLOOKUP($A179,GYPSY_Projected!$C$1:$BH$252,58,FALSE)),"",VLOOKUP($A179,GYPSY_Projected!$C$1:$BH$252,58,FALSE)) -> 
A180: =IF(GYPSY_Projected!A$1="","",GYPSY_Projected!C$132) ->  | B180: =IF(ISNA(VLOOKUP($A180,GYPSY_Projected!$C$1:$BH$252,51,FALSE)),"",VLOOKUP($A180,GYPSY_Projected!$C$1:$BH$252,51,FALSE)) ->  | C180: =IF(ISNA(VLOOKUP($A180,GYPSY_Projected!$C$1:$BH$252,52,FALSE)),"",VLOOKUP($A180,GYPSY_Projected!$C$1:$BH$252,52,FALSE)) ->  | D180: =IF(ISNA(IF(B180>=0.1,VLOOKUP($A180,GYPSY_Projected!$C$1:$BH$252,34,FALSE)/B180,0)),"",IF(B180>=0.1,VLOOKUP($A180,GYPSY_Projected!$C$1:$BH$252,34,FALSE)/B180,0)) ->  | E180: =IF(ISNA(VLOOKUP($A180,GYPSY_Projected!$C$1:$BH$252,54,FALSE)),"",VLOOKUP($A180,GYPSY_Projected!$C$1:$BH$252,54,FALSE)) ->  | F180: =IF(ISNA(VLOOKUP($A180,GYPSY_Projected!$C$1:$BH$252,55,FALSE)),"",VLOOKUP($A180,GYPSY_Projected!$C$1:$BH$252,55,FALSE)) ->  | G180: =IF(ISNA(IF(E180>=0.1,VLOOKUP($A180,GYPSY_Projected!$C$1:$BH$252,7,FALSE)/E180,0)),"",IF(E180>=0.1,VLOOKUP($A180,GYPSY_Projected!$C$1:$BH$252,7,FALSE)/E180,0)) ->  | H180: =IF(ISNA(VLOOKUP($A180,GYPSY_Projected!$C$1:$BH$252,57,FALSE)),"",VLOOKUP($A180,GYPSY_Projected!$C$1:$BH$252,57,FALSE)) ->  | I180: =IF(ISNA(VLOOKUP($A180,GYPSY_Projected!$C$1:$BH$252,58,FALSE)),"",VLOOKUP($A180,GYPSY_Projected!$C$1:$BH$252,58,FALSE)) -> 
A181: =IF(GYPSY_Projected!A$1="","",GYPSY_Projected!C$142) ->  | B181: =IF(ISNA(VLOOKUP($A181,GYPSY_Projected!$C$1:$BH$252,51,FALSE)),"",VLOOKUP($A181,GYPSY_Projected!$C$1:$BH$252,51,FALSE)) ->  | C181: =IF(ISNA(VLOOKUP($A181,GYPSY_Projected!$C$1:$BH$252,52,FALSE)),"",VLOOKUP($A181,GYPSY_Projected!$C$1:$BH$252,52,FALSE)) ->  | D181: =IF(ISNA(IF(B181>=0.1,VLOOKUP($A181,GYPSY_Projected!$C$1:$BH$252,34,FALSE)/B181,0)),"",IF(B181>=0.1,VLOOKUP($A181,GYPSY_Projected!$C$1:$BH$252,34,FALSE)/B181,0)) ->  | E181: =IF(ISNA(VLOOKUP($A181,GYPSY_Projected!$C$1:$BH$252,54,FALSE)),"",VLOOKUP($A181,GYPSY_Projected!$C$1:$BH$252,54,FALSE)) ->  | F181: =IF(ISNA(VLOOKUP($A181,GYPSY_Projected!$C$1:$BH$252,55,FALSE)),"",VLOOKUP($A181,GYPSY_Projected!$C$1:$BH$252,55,FALSE)) ->  | G181: =IF(ISNA(IF(E181>=0.1,VLOOKUP($A181,GYPSY_Projected!$C$1:$BH$252,7,FALSE)/E181,0)),"",IF(E181>=0.1,VLOOKUP($A181,GYPSY_Projected!$C$1:$BH$252,7,FALSE)/E181,0)) ->  | H181: =IF(ISNA(VLOOKUP($A181,GYPSY_Projected!$C$1:$BH$252,57,FALSE)),"",VLOOKUP($A181,GYPSY_Projected!$C$1:$BH$252,57,FALSE)) ->  | I181: =IF(ISNA(VLOOKUP($A181,GYPSY_Projected!$C$1:$BH$252,58,FALSE)),"",VLOOKUP($A181,GYPSY_Projected!$C$1:$BH$252,58,FALSE)) -> 
A182: =IF(GYPSY_Projected!A$1="","",GYPSY_Projected!C$152) ->  | B182: =IF(ISNA(VLOOKUP($A182,GYPSY_Projected!$C$1:$BH$252,51,FALSE)),"",VLOOKUP($A182,GYPSY_Projected!$C$1:$BH$252,51,FALSE)) ->  | C182: =IF(ISNA(VLOOKUP($A182,GYPSY_Projected!$C$1:$BH$252,52,FALSE)),"",VLOOKUP($A182,GYPSY_Projected!$C$1:$BH$252,52,FALSE)) ->  | D182: =IF(ISNA(IF(B182>=0.1,VLOOKUP($A182,GYPSY_Projected!$C$1:$BH$252,34,FALSE)/B182,0)),"",IF(B182>=0.1,VLOOKUP($A182,GYPSY_Projected!$C$1:$BH$252,34,FALSE)/B182,0)) ->  | E182: =IF(ISNA(VLOOKUP($A182,GYPSY_Projected!$C$1:$BH$252,54,FALSE)),"",VLOOKUP($A182,GYPSY_Projected!$C$1:$BH$252,54,FALSE)) ->  | F182: =IF(ISNA(VLOOKUP($A182,GYPSY_Projected!$C$1:$BH$252,55,FALSE)),"",VLOOKUP($A182,GYPSY_Projected!$C$1:$BH$252,55,FALSE)) ->  | G182: =IF(ISNA(IF(E182>=0.1,VLOOKUP($A182,GYPSY_Projected!$C$1:$BH$252,7,FALSE)/E182,0)),"",IF(E182>=0.1,VLOOKUP($A182,GYPSY_Projected!$C$1:$BH$252,7,FALSE)/E182,0)) ->  | H182: =IF(ISNA(VLOOKUP($A182,GYPSY_Projected!$C$1:$BH$252,57,FALSE)),"",VLOOKUP($A182,GYPSY_Projected!$C$1:$BH$252,57,FALSE)) ->  | I182: =IF(ISNA(VLOOKUP($A182,GYPSY_Projected!$C$1:$BH$252,58,FALSE)),"",VLOOKUP($A182,GYPSY_Projected!$C$1:$BH$252,58,FALSE)) -> 
A183: =IF(GYPSY_Projected!A$1="","",GYPSY_Projected!C$162) ->  | B183: =IF(ISNA(VLOOKUP($A183,GYPSY_Projected!$C$1:$BH$252,51,FALSE)),"",VLOOKUP($A183,GYPSY_Projected!$C$1:$BH$252,51,FALSE)) ->  | C183: =IF(ISNA(VLOOKUP($A183,GYPSY_Projected!$C$1:$BH$252,52,FALSE)),"",VLOOKUP($A183,GYPSY_Projected!$C$1:$BH$252,52,FALSE)) ->  | D183: =IF(ISNA(IF(B183>=0.1,VLOOKUP($A183,GYPSY_Projected!$C$1:$BH$252,34,FALSE)/B183,0)),"",IF(B183>=0.1,VLOOKUP($A183,GYPSY_Projected!$C$1:$BH$252,34,FALSE)/B183,0)) ->  | E183: =IF(ISNA(VLOOKUP($A183,GYPSY_Projected!$C$1:$BH$252,54,FALSE)),"",VLOOKUP($A183,GYPSY_Projected!$C$1:$BH$252,54,FALSE)) ->  | F183: =IF(ISNA(VLOOKUP($A183,GYPSY_Projected!$C$1:$BH$252,55,FALSE)),"",VLOOKUP($A183,GYPSY_Projected!$C$1:$BH$252,55,FALSE)) ->  | G183: =IF(ISNA(IF(E183>=0.1,VLOOKUP($A183,GYPSY_Projected!$C$1:$BH$252,7,FALSE)/E183,0)),"",IF(E183>=0.1,VLOOKUP($A183,GYPSY_Projected!$C$1:$BH$252,7,FALSE)/E183,0)) ->  | H183: =IF(ISNA(VLOOKUP($A183,GYPSY_Projected!$C$1:$BH$252,57,FALSE)),"",VLOOKUP($A183,GYPSY_Projected!$C$1:$BH$252,57,FALSE)) ->  | I183: =IF(ISNA(VLOOKUP($A183,GYPSY_Projected!$C$1:$BH$252,58,FALSE)),"",VLOOKUP($A183,GYPSY_Projected!$C$1:$BH$252,58,FALSE)) -> 
A184: =IF(GYPSY_Projected!A$1="","",GYPSY_Projected!C$172) ->  | B184: =IF(ISNA(VLOOKUP($A184,GYPSY_Projected!$C$1:$BH$252,51,FALSE)),"",VLOOKUP($A184,GYPSY_Projected!$C$1:$BH$252,51,FALSE)) ->  | C184: =IF(ISNA(VLOOKUP($A184,GYPSY_Projected!$C$1:$BH$252,52,FALSE)),"",VLOOKUP($A184,GYPSY_Projected!$C$1:$BH$252,52,FALSE)) ->  | D184: =IF(ISNA(IF(B184>=0.1,VLOOKUP($A184,GYPSY_Projected!$C$1:$BH$252,34,FALSE)/B184,0)),"",IF(B184>=0.1,VLOOKUP($A184,GYPSY_Projected!$C$1:$BH$252,34,FALSE)/B184,0)) ->  | E184: =IF(ISNA(VLOOKUP($A184,GYPSY_Projected!$C$1:$BH$252,54,FALSE)),"",VLOOKUP($A184,GYPSY_Projected!$C$1:$BH$252,54,FALSE)) ->  | F184: =IF(ISNA(VLOOKUP($A184,GYPSY_Projected!$C$1:$BH$252,55,FALSE)),"",VLOOKUP($A184,GYPSY_Projected!$C$1:$BH$252,55,FALSE)) ->  | G184: =IF(ISNA(IF(E184>=0.1,VLOOKUP($A184,GYPSY_Projected!$C$1:$BH$252,7,FALSE)/E184,0)),"",IF(E184>=0.1,VLOOKUP($A184,GYPSY_Projected!$C$1:$BH$252,7,FALSE)/E184,0)) ->  | H184: =IF(ISNA(VLOOKUP($A184,GYPSY_Projected!$C$1:$BH$252,57,FALSE)),"",VLOOKUP($A184,GYPSY_Projected!$C$1:$BH$252,57,FALSE)) ->  | I184: =IF(ISNA(VLOOKUP($A184,GYPSY_Projected!$C$1:$BH$252,58,FALSE)),"",VLOOKUP($A184,GYPSY_Projected!$C$1:$BH$252,58,FALSE)) -> 
A185: =IF(GYPSY_Projected!A$1="","",GYPSY_Projected!C$182) ->  | B185: =IF(ISNA(VLOOKUP($A185,GYPSY_Projected!$C$1:$BH$252,51,FALSE)),"",VLOOKUP($A185,GYPSY_Projected!$C$1:$BH$252,51,FALSE)) ->  | C185: =IF(ISNA(VLOOKUP($A185,GYPSY_Projected!$C$1:$BH$252,52,FALSE)),"",VLOOKUP($A185,GYPSY_Projected!$C$1:$BH$252,52,FALSE)) ->  | D185: =IF(ISNA(IF(B185>=0.1,VLOOKUP($A185,GYPSY_Projected!$C$1:$BH$252,34,FALSE)/B185,0)),"",IF(B185>=0.1,VLOOKUP($A185,GYPSY_Projected!$C$1:$BH$252,34,FALSE)/B185,0)) ->  | E185: =IF(ISNA(VLOOKUP($A185,GYPSY_Projected!$C$1:$BH$252,54,FALSE)),"",VLOOKUP($A185,GYPSY_Projected!$C$1:$BH$252,54,FALSE)) ->  | F185: =IF(ISNA(VLOOKUP($A185,GYPSY_Projected!$C$1:$BH$252,55,FALSE)),"",VLOOKUP($A185,GYPSY_Projected!$C$1:$BH$252,55,FALSE)) ->  | G185: =IF(ISNA(IF(E185>=0.1,VLOOKUP($A185,GYPSY_Projected!$C$1:$BH$252,7,FALSE)/E185,0)),"",IF(E185>=0.1,VLOOKUP($A185,GYPSY_Projected!$C$1:$BH$252,7,FALSE)/E185,0)) ->  | H185: =IF(ISNA(VLOOKUP($A185,GYPSY_Projected!$C$1:$BH$252,57,FALSE)),"",VLOOKUP($A185,GYPSY_Projected!$C$1:$BH$252,57,FALSE)) ->  | I185: =IF(ISNA(VLOOKUP($A185,GYPSY_Projected!$C$1:$BH$252,58,FALSE)),"",VLOOKUP($A185,GYPSY_Projected!$C$1:$BH$252,58,FALSE)) -> 
A186: =IF(GYPSY_Projected!A$1="","",GYPSY_Projected!C$192) ->  | B186: =IF(ISNA(VLOOKUP($A186,GYPSY_Projected!$C$1:$BH$252,51,FALSE)),"",VLOOKUP($A186,GYPSY_Projected!$C$1:$BH$252,51,FALSE)) ->  | C186: =IF(ISNA(VLOOKUP($A186,GYPSY_Projected!$C$1:$BH$252,52,FALSE)),"",VLOOKUP($A186,GYPSY_Projected!$C$1:$BH$252,52,FALSE)) ->  | D186: =IF(ISNA(IF(B186>=0.1,VLOOKUP($A186,GYPSY_Projected!$C$1:$BH$252,34,FALSE)/B186,0)),"",IF(B186>=0.1,VLOOKUP($A186,GYPSY_Projected!$C$1:$BH$252,34,FALSE)/B186,0)) ->  | E186: =IF(ISNA(VLOOKUP($A186,GYPSY_Projected!$C$1:$BH$252,54,FALSE)),"",VLOOKUP($A186,GYPSY_Projected!$C$1:$BH$252,54,FALSE)) ->  | F186: =IF(ISNA(VLOOKUP($A186,GYPSY_Projected!$C$1:$BH$252,55,FALSE)),"",VLOOKUP($A186,GYPSY_Projected!$C$1:$BH$252,55,FALSE)) ->  | G186: =IF(ISNA(IF(E186>=0.1,VLOOKUP($A186,GYPSY_Projected!$C$1:$BH$252,7,FALSE)/E186,0)),"",IF(E186>=0.1,VLOOKUP($A186,GYPSY_Projected!$C$1:$BH$252,7,FALSE)/E186,0)) ->  | H186: =IF(ISNA(VLOOKUP($A186,GYPSY_Projected!$C$1:$BH$252,57,FALSE)),"",VLOOKUP($A186,GYPSY_Projected!$C$1:$BH$252,57,FALSE)) ->  | I186: =IF(ISNA(VLOOKUP($A186,GYPSY_Projected!$C$1:$BH$252,58,FALSE)),"",VLOOKUP($A186,GYPSY_Projected!$C$1:$BH$252,58,FALSE)) -> 
A187: =IF(GYPSY_Projected!A$1="","",GYPSY_Projected!C$202) ->  | B187: =IF(ISNA(VLOOKUP($A187,GYPSY_Projected!$C$1:$BH$252,51,FALSE)),"",VLOOKUP($A187,GYPSY_Projected!$C$1:$BH$252,51,FALSE)) ->  | C187: =IF(ISNA(VLOOKUP($A187,GYPSY_Projected!$C$1:$BH$252,52,FALSE)),"",VLOOKUP($A187,GYPSY_Projected!$C$1:$BH$252,52,FALSE)) ->  | D187: =IF(ISNA(IF(B187>=0.1,VLOOKUP($A187,GYPSY_Projected!$C$1:$BH$252,34,FALSE)/B187,0)),"",IF(B187>=0.1,VLOOKUP($A187,GYPSY_Projected!$C$1:$BH$252,34,FALSE)/B187,0)) ->  | E187: =IF(ISNA(VLOOKUP($A187,GYPSY_Projected!$C$1:$BH$252,54,FALSE)),"",VLOOKUP($A187,GYPSY_Projected!$C$1:$BH$252,54,FALSE)) ->  | F187: =IF(ISNA(VLOOKUP($A187,GYPSY_Projected!$C$1:$BH$252,55,FALSE)),"",VLOOKUP($A187,GYPSY_Projected!$C$1:$BH$252,55,FALSE)) ->  | G187: =IF(ISNA(IF(E187>=0.1,VLOOKUP($A187,GYPSY_Projected!$C$1:$BH$252,7,FALSE)/E187,0)),"",IF(E187>=0.1,VLOOKUP($A187,GYPSY_Projected!$C$1:$BH$252,7,FALSE)/E187,0)) ->  | H187: =IF(ISNA(VLOOKUP($A187,GYPSY_Projected!$C$1:$BH$252,57,FALSE)),"",VLOOKUP($A187,GYPSY_Projected!$C$1:$BH$252,57,FALSE)) ->  | I187: =IF(ISNA(VLOOKUP($A187,GYPSY_Projected!$C$1:$BH$252,58,FALSE)),"",VLOOKUP($A187,GYPSY_Projected!$C$1:$BH$252,58,FALSE)) -> 
A188: =IF(GYPSY_Projected!A$1="","",GYPSY_Projected!C$212) ->  | B188: =IF(ISNA(VLOOKUP($A188,GYPSY_Projected!$C$1:$BH$252,51,FALSE)),"",VLOOKUP($A188,GYPSY_Projected!$C$1:$BH$252,51,FALSE)) ->  | C188: =IF(ISNA(VLOOKUP($A188,GYPSY_Projected!$C$1:$BH$252,52,FALSE)),"",VLOOKUP($A188,GYPSY_Projected!$C$1:$BH$252,52,FALSE)) ->  | D188: =IF(ISNA(IF(B188>=0.1,VLOOKUP($A188,GYPSY_Projected!$C$1:$BH$252,34,FALSE)/B188,0)),"",IF(B188>=0.1,VLOOKUP($A188,GYPSY_Projected!$C$1:$BH$252,34,FALSE)/B188,0)) ->  | E188: =IF(ISNA(VLOOKUP($A188,GYPSY_Projected!$C$1:$BH$252,54,FALSE)),"",VLOOKUP($A188,GYPSY_Projected!$C$1:$BH$252,54,FALSE)) ->  | F188: =IF(ISNA(VLOOKUP($A188,GYPSY_Projected!$C$1:$BH$252,55,FALSE)),"",VLOOKUP($A188,GYPSY_Projected!$C$1:$BH$252,55,FALSE)) ->  | G188: =IF(ISNA(IF(E188>=0.1,VLOOKUP($A188,GYPSY_Projected!$C$1:$BH$252,7,FALSE)/E188,0)),"",IF(E188>=0.1,VLOOKUP($A188,GYPSY_Projected!$C$1:$BH$252,7,FALSE)/E188,0)) ->  | H188: =IF(ISNA(VLOOKUP($A188,GYPSY_Projected!$C$1:$BH$252,57,FALSE)),"",VLOOKUP($A188,GYPSY_Projected!$C$1:$BH$252,57,FALSE)) ->  | I188: =IF(ISNA(VLOOKUP($A188,GYPSY_Projected!$C$1:$BH$252,58,FALSE)),"",VLOOKUP($A188,GYPSY_Projected!$C$1:$BH$252,58,FALSE)) -> 
A189: =IF(GYPSY_Projected!A$1="","",GYPSY_Projected!C$222) ->  | B189: =IF(ISNA(VLOOKUP($A189,GYPSY_Projected!$C$1:$BH$252,51,FALSE)),"",VLOOKUP($A189,GYPSY_Projected!$C$1:$BH$252,51,FALSE)) ->  | C189: =IF(ISNA(VLOOKUP($A189,GYPSY_Projected!$C$1:$BH$252,52,FALSE)),"",VLOOKUP($A189,GYPSY_Projected!$C$1:$BH$252,52,FALSE)) ->  | D189: =IF(ISNA(IF(B189>=0.1,VLOOKUP($A189,GYPSY_Projected!$C$1:$BH$252,34,FALSE)/B189,0)),"",IF(B189>=0.1,VLOOKUP($A189,GYPSY_Projected!$C$1:$BH$252,34,FALSE)/B189,0)) ->  | E189: =IF(ISNA(VLOOKUP($A189,GYPSY_Projected!$C$1:$BH$252,54,FALSE)),"",VLOOKUP($A189,GYPSY_Projected!$C$1:$BH$252,54,FALSE)) ->  | F189: =IF(ISNA(VLOOKUP($A189,GYPSY_Projected!$C$1:$BH$252,55,FALSE)),"",VLOOKUP($A189,GYPSY_Projected!$C$1:$BH$252,55,FALSE)) ->  | G189: =IF(ISNA(IF(E189>=0.1,VLOOKUP($A189,GYPSY_Projected!$C$1:$BH$252,7,FALSE)/E189,0)),"",IF(E189>=0.1,VLOOKUP($A189,GYPSY_Projected!$C$1:$BH$252,7,FALSE)/E189,0)) ->  | H189: =IF(ISNA(VLOOKUP($A189,GYPSY_Projected!$C$1:$BH$252,57,FALSE)),"",VLOOKUP($A189,GYPSY_Projected!$C$1:$BH$252,57,FALSE)) ->  | I189: =IF(ISNA(VLOOKUP($A189,GYPSY_Projected!$C$1:$BH$252,58,FALSE)),"",VLOOKUP($A189,GYPSY_Projected!$C$1:$BH$252,58,FALSE)) -> 
A190: =IF(GYPSY_Projected!A$1="","",GYPSY_Projected!C$232) ->  | B190: =IF(ISNA(VLOOKUP($A190,GYPSY_Projected!$C$1:$BH$252,51,FALSE)),"",VLOOKUP($A190,GYPSY_Projected!$C$1:$BH$252,51,FALSE)) ->  | C190: =IF(ISNA(VLOOKUP($A190,GYPSY_Projected!$C$1:$BH$252,52,FALSE)),"",VLOOKUP($A190,GYPSY_Projected!$C$1:$BH$252,52,FALSE)) ->  | D190: =IF(ISNA(IF(B190>=0.1,VLOOKUP($A190,GYPSY_Projected!$C$1:$BH$252,34,FALSE)/B190,0)),"",IF(B190>=0.1,VLOOKUP($A190,GYPSY_Projected!$C$1:$BH$252,34,FALSE)/B190,0)) ->  | E190: =IF(ISNA(VLOOKUP($A190,GYPSY_Projected!$C$1:$BH$252,54,FALSE)),"",VLOOKUP($A190,GYPSY_Projected!$C$1:$BH$252,54,FALSE)) ->  | F190: =IF(ISNA(VLOOKUP($A190,GYPSY_Projected!$C$1:$BH$252,55,FALSE)),"",VLOOKUP($A190,GYPSY_Projected!$C$1:$BH$252,55,FALSE)) ->  | G190: =IF(ISNA(IF(E190>=0.1,VLOOKUP($A190,GYPSY_Projected!$C$1:$BH$252,7,FALSE)/E190,0)),"",IF(E190>=0.1,VLOOKUP($A190,GYPSY_Projected!$C$1:$BH$252,7,FALSE)/E190,0)) ->  | H190: =IF(ISNA(VLOOKUP($A190,GYPSY_Projected!$C$1:$BH$252,57,FALSE)),"",VLOOKUP($A190,GYPSY_Projected!$C$1:$BH$252,57,FALSE)) ->  | I190: =IF(ISNA(VLOOKUP($A190,GYPSY_Projected!$C$1:$BH$252,58,FALSE)),"",VLOOKUP($A190,GYPSY_Projected!$C$1:$BH$252,58,FALSE)) -> 
A191: =IF(GYPSY_Projected!A$1="","",GYPSY_Projected!C$242) ->  | B191: =IF(ISNA(VLOOKUP($A191,GYPSY_Projected!$C$1:$BH$252,51,FALSE)),"",VLOOKUP($A191,GYPSY_Projected!$C$1:$BH$252,51,FALSE)) ->  | C191: =IF(ISNA(VLOOKUP($A191,GYPSY_Projected!$C$1:$BH$252,52,FALSE)),"",VLOOKUP($A191,GYPSY_Projected!$C$1:$BH$252,52,FALSE)) ->  | D191: =IF(ISNA(IF(B191>=0.1,VLOOKUP($A191,GYPSY_Projected!$C$1:$BH$252,34,FALSE)/B191,0)),"",IF(B191>=0.1,VLOOKUP($A191,GYPSY_Projected!$C$1:$BH$252,34,FALSE)/B191,0)) ->  | E191: =IF(ISNA(VLOOKUP($A191,GYPSY_Projected!$C$1:$BH$252,54,FALSE)),"",VLOOKUP($A191,GYPSY_Projected!$C$1:$BH$252,54,FALSE)) ->  | F191: =IF(ISNA(VLOOKUP($A191,GYPSY_Projected!$C$1:$BH$252,55,FALSE)),"",VLOOKUP($A191,GYPSY_Projected!$C$1:$BH$252,55,FALSE)) ->  | G191: =IF(ISNA(IF(E191>=0.1,VLOOKUP($A191,GYPSY_Projected!$C$1:$BH$252,7,FALSE)/E191,0)),"",IF(E191>=0.1,VLOOKUP($A191,GYPSY_Projected!$C$1:$BH$252,7,FALSE)/E191,0)) ->  | H191: =IF(ISNA(VLOOKUP($A191,GYPSY_Projected!$C$1:$BH$252,57,FALSE)),"",VLOOKUP($A191,GYPSY_Projected!$C$1:$BH$252,57,FALSE)) ->  | I191: =IF(ISNA(VLOOKUP($A191,GYPSY_Projected!$C$1:$BH$252,58,FALSE)),"",VLOOKUP($A191,GYPSY_Projected!$C$1:$BH$252,58,FALSE)) -> 
A192: =IF(GYPSY_Projected!A$1="","",GYPSY_Projected!C$252) ->  | B192: =IF(ISNA(VLOOKUP($A192,GYPSY_Projected!$C$1:$BH$252,51,FALSE)),"",VLOOKUP($A192,GYPSY_Projected!$C$1:$BH$252,51,FALSE)) ->  | C192: =IF(ISNA(VLOOKUP($A192,GYPSY_Projected!$C$1:$BH$252,52,FALSE)),"",VLOOKUP($A192,GYPSY_Projected!$C$1:$BH$252,52,FALSE)) ->  | D192: =IF(ISNA(IF(B192>=0.1,VLOOKUP($A192,GYPSY_Projected!$C$1:$BH$252,34,FALSE)/B192,0)),"",IF(B192>=0.1,VLOOKUP($A192,GYPSY_Projected!$C$1:$BH$252,34,FALSE)/B192,0)) ->  | E192: =IF(ISNA(VLOOKUP($A192,GYPSY_Projected!$C$1:$BH$252,54,FALSE)),"",VLOOKUP($A192,GYPSY_Projected!$C$1:$BH$252,54,FALSE)) ->  | F192: =IF(ISNA(VLOOKUP($A192,GYPSY_Projected!$C$1:$BH$252,55,FALSE)),"",VLOOKUP($A192,GYPSY_Projected!$C$1:$BH$252,55,FALSE)) ->  | G192: =IF(ISNA(IF(E192>=0.1,VLOOKUP($A192,GYPSY_Projected!$C$1:$BH$252,7,FALSE)/E192,0)),"",IF(E192>=0.1,VLOOKUP($A192,GYPSY_Projected!$C$1:$BH$252,7,FALSE)/E192,0)) ->  | H192: =IF(ISNA(VLOOKUP($A192,GYPSY_Projected!$C$1:$BH$252,57,FALSE)),"",VLOOKUP($A192,GYPSY_Projected!$C$1:$BH$252,57,FALSE)) ->  | I192: =IF(ISNA(VLOOKUP($A192,GYPSY_Projected!$C$1:$BH$252,58,FALSE)),"",VLOOKUP($A192,GYPSY_Projected!$C$1:$BH$252,58,FALSE)) -> 

Sheet GYPSY_Controls (hidden)
A1: GYPSY Available | B1: FALSE
A2: GYPSY Version
A3: SAS Version
A4: DLL Version
A5: DLL Build
A7: Stand ID
A8: Stand Type | B8: Regenerated
A9: Stand Age
A10: Is Spatial | B10: TRUE
A11: BA Adjusted | B11: FALSE
A12: Util STDOB | B12: 15
A13: Util TOP DIB | B13: 10
A14: Util STHT | B14: 30
A15: Valid Input | B15: FALSE
A18: Obs_header | B18: gypsy_model_id | C18: stand_id | D18: standtype | E18: standage | F18: spatial | G18: ba_known | H18: sdob_aw | I18: tdib_aw | J18: stht_aw | K18: sdob_sb | L18: tdib_sb | M18: stht_sb | N18: sdob_sw | O18: tdib_sw | P18: stht_sw | Q18: sdob_pl | R18: tdib_pl | S18: stht_pl | T18: tage_aw | U18: bage_aw | V18: topht_aw | W18: den13_aw | X18: ps_aw | Y18: ba_aw | Z18: tage_sb | AA18: bage_sb | AB18: topht_sb | AC18: den03_sb | AD18: ps_sb | AE18: ba_sb | AF18: tage_sw | AG18: bage_sw | AH18: topht_sw | AI18: den03_sw | AJ18: ps_sw | AK18: ba_sw | AL18: tage_pl | AM18: bage_pl | AN18: topht_pl | AO18: den03_pl | AP18: ps_pl | AQ18: ba_pl | AR18: SI_bh_aw | AS18: SI_t_aw | AT18: y2bh_aw | AU18: SDF_aw | AV18: N0_aw | AW18: PSI_aw | AX18: SI_bh_sb | AY18: SI_t_sb | AZ18: y2bh_sb | BA18: SDF_sb | BB18: N0_sb | BC18: PSI_sb | BD18: SI_bh_sw | BE18: SI_t_sw | BF18: y2bh_sw | BG18: SDF_sw | BH18: N0_sw | BI18: PSI_sw | BJ18: SI_bh_pl | BK18: SI_t_pl | BL18: y2bh_pl | BM18: SDF_pl | BN18: N0_pl | BO18: PSI_pl
A20: Proj_header | B20: gypsy_model_id | C20: stand_id | D20: standage_p | E20: tage_aw | F20: bage_aw | G20: ba_aw | H20: ps_aw | I20: den13_aw | J20: mden13_aw | K20: sc_aw | L20: topht_aw | M20: qmd_aw | N20: tage_sb | O20: bage_sb | P20: ba_sb | Q20: ps_sb | R20: den03_sb | S20: mden03_sb | T20: sc_sb | U20: topht_sb | V20: qmd_sb | W20: tage_sw | X20: bage_sw | Y20: ba_sw | Z20: ps_sw | AA20: den03_sw | AB20: mden03_sw | AC20: sc_sw | AD20: topht_sw | AE20: qmd_sw | AF20: tage_pl | AG20: bage_pl | AH20: ba_pl | AI20: ps_pl | AJ20: den03_pl | AK20: mden03_pl | AL20: sc_pl | AM20: topht_pl | AN20: qmd_pl | AO20: tv_aw | AP20: mv_aw | AQ20: mai_aw | AR20: tv_sb | AS20: mv_sb | AT20: mai_sb | AU20: tv_sw | AV20: mv_sw | AW20: mai_sw | AX20: tv_pl | AY20: mv_pl | AZ20: mai_pl | BA20: tv_con | BB20: mv_con | BC20: mai_con | BD20: tv_dec | BE20: mv_dec | BF20: mai_dec | BG20: tv_tot | BH20: mv_tot | BI20: mai_tot
